Capital or Revenue,Directorate,Transaction Number,Date,Service Area,Expenses Type,Amount,Supplier Name
Revenue,Managing Director & Head of Paid Service,5105699018,12.11.2014,Public Health Core,Professional Services,"5,600.00",REDACTED PERSONAL DATA
Revenue,Director of Childrens Services,5105698256,07.11.2014,Personal & Community Development Learning,Payment to Private Contractors,810.00,REDACTED PERSONAL DATA
Revenue,Head of Economy & Tourism,5105600542,27.11.2014,Shared Ownership,Security of Buildings,100.00,REDACTED PERSONAL DATA
Revenue,Head of HR & Organisational Change,5105600542,27.11.2014,Somerton Industrial Park,Security of Buildings,100.00,REDACTED PERSONAL DATA
Revenue,Head of Economy & Tourism,5105600542,27.11.2014,Non-operational buildings,Security of Buildings,100.00,REDACTED PERSONAL DATA
Revenue,Head of Economy & Tourism,5105600542,27.11.2014,Non-operational buildings,Security of Buildings,100.00,REDACTED PERSONAL DATA
Revenue,Head of Economy & Tourism,5105600542,27.11.2014,York Centre E Cowes,Security of Buildings,100.00,REDACTED PERSONAL DATA
Revenue,Head of Economy & Tourism,5105600542,27.11.2014,York Centre E Cowes,Security of Buildings,25.00,REDACTED PERSONAL DATA
Revenue,Head of Economy & Tourism,5105600542,27.11.2014,Medina Adult Training Centre Empty Costs,Security of Buildings,100.00,REDACTED PERSONAL DATA
Revenue,Head of Economy & Tourism,5105600542,27.11.2014,Medina Adult Training Centre Empty Costs,Security of Buildings,25.00,REDACTED PERSONAL DATA
Revenue,Head of Economy & Tourism,5105600542,27.11.2014,Church View Ventnor,Security of Buildings,100.00,REDACTED PERSONAL DATA
Revenue,Head of Economy & Tourism,5105600542,27.11.2014,Carisbrooke Contact Centre,Security of Buildings,100.00,REDACTED PERSONAL DATA
Revenue,Director of Childrens Services,5105600542,27.11.2014,Youth- Cowes,Security of Buildings,100.00,REDACTED PERSONAL DATA
Revenue,Director of Childrens Services,5105600542,27.11.2014,Youth- Ryde  (Well St),Security of Buildings,100.00,REDACTED PERSONAL DATA
Revenue,Director of Childrens Services,5105600542,27.11.2014,Youth- Sandown/Lake,Security of Buildings,100.00,REDACTED PERSONAL DATA
Revenue,Director of Childrens Services,5105600542,27.11.2014,Youth- Shorwell,Security of Buildings,100.00,REDACTED PERSONAL DATA
Revenue,Head of Economy & Tourism,5105600542,27.11.2014,"Atkinson Drive, Newport",Security of Buildings,100.00,REDACTED PERSONAL DATA
Revenue,Head of Economy & Tourism,5105600542,27.11.2014,"Atkinson Drive, Newport",Security of Buildings,25.00,REDACTED PERSONAL DATA
Revenue,Director of Childrens Services,5105600985,27.11.2014,Old Cowes Enterprise College,Minor Works,500.00,REDACTED PERSONAL DATA
Revenue,Director of Childrens Services,5105600542,27.11.2014,Old Cowes Enterprise College,Security of Buildings,100.00,REDACTED PERSONAL DATA
Revenue,Director of Childrens Services,5105600542,27.11.2014,Old Cowes Enterprise College,Security of Buildings,85.00,REDACTED PERSONAL DATA
Revenue,Director of Childrens Services,5105600542,27.11.2014,Old Cowes Enterprise College,Security of Buildings,300.00,REDACTED PERSONAL DATA
Revenue,Director of Childrens Services,5105600542,27.11.2014,Gatten & Lake Primary School Disposal,Security of Buildings,300.00,REDACTED PERSONAL DATA
Revenue,Head of Economy & Tourism,5105600542,27.11.2014,Ryde Depot,Security of Buildings,100.00,REDACTED PERSONAL DATA
Revenue,Director of Childrens Services,5105697846,05.11.2014,Thompson House Tuition Centre (PRU),Professional Services,360.00,REDACTED PERSONAL DATA
Revenue,Director of Childrens Services,5105601397,27.11.2014,Accreditation Centre,Training,456.00,REDACTED PERSONAL DATA
Revenue,Managing Director & Head of Paid Service,5105600325,27.11.2014,Drug Misuse - Adults,Payment to Private Contractors,210.00,REDACTED PERSONAL DATA
Capital,Corporate Items,5105600561,27.11.2014,Balance Sheet,Vehicle Maintenance Costs,226.27,ISLANDWIDE WINDSCREENS
Revenue,Head of Economy & Tourism,5105600963,27.11.2014,Arts Projects,Professional Services,100.00,REDACTED PERSONAL DATA
Revenue,Director of Childrens Services,5105699019,12.11.2014,Accreditation Centre,Training,736.00,REDACTED PERSONAL DATA
Revenue,Director of Childrens Services,5105601646,27.11.2014,Accreditation Centre,Training,768.00,REDACTED PERSONAL DATA
Revenue,Managing Director & Head of Paid Service,5105600473,27.11.2014,Strengthening Families,Payments to Voluntary and Other Associations,50.00,REDACTED PERSONAL DATA
Revenue,Managing Director & Head of Paid Service,5105600207,27.11.2014,Strengthening Families,Payments to Voluntary and Other Associations,50.00,REDACTED PERSONAL DATA
Revenue,Managing Director & Head of Paid Service,5105698480,07.11.2014,Strengthening Families,Payments to Voluntary and Other Associations,50.00,REDACTED PERSONAL DATA
Revenue,Director of Childrens Services,5105697778,05.11.2014,Thompson House Tuition Centre (PRU),Professional Services,300.00,ISLAND EQUUS
Revenue,Director of Childrens Services,5105697860,05.11.2014,Clatterford Pupil Referral Unit (PRU),Professional Services,"2,610.00",ISLAND EQUUS
Revenue,Director of Childrens Services,5105699634,19.11.2014,Special Educational Needs Reforms Grant,Agency staff,"1,454.90",REDACTED PERSONAL DATA
Revenue,Director of Childrens Services,5105699634,19.11.2014,Special Educational Needs Reforms Grant,Agency staff,58.70,REDACTED PERSONAL DATA
Revenue,Director of Childrens Services,5105600947,27.11.2014,Thompson House Tuition Centre (PRU),Professional Services,832.20,REDACTED PERSONAL DATA
Revenue,Director of Childrens Services,5105600947,27.11.2014,Clatterford Pupil Referral Unit (PRU),Professional Services,832.20,REDACTED PERSONAL DATA
Revenue,Director of Childrens Services,5105600214,27.11.2014,MOI Funding,Training,150.00,REDACTED PERSONAL DATA
Revenue,Director of Childrens Services,5105600214,27.11.2014,MOI Funding,Training,350.00,REDACTED PERSONAL DATA
Revenue,Director of Childrens Services,5105601246,27.11.2014,Short Breaks,Charges from Independent Providers,"1,565.04",REDACTED PERSONAL DATA
Revenue,Head of Planning & Regulatory Services,5105698822,12.11.2014,A.O.N.B.,Consultants Fees,60.00,REDACTED PERSONAL DATA
Capital,Head of Economy & Tourism,5105697900,05.11.2014,Rights Of Way Capital Programme,Payment to Contractors - Capital,186.00,REDACTED PERSONAL DATA
Capital,Head of Economy & Tourism,5105697905,05.11.2014,Rights Of Way Capital Programme,Payment to Contractors - Capital,186.00,REDACTED PERSONAL DATA
Capital,Head of Economy & Tourism,5105697903,05.11.2014,Rights Of Way Capital Programme,Payment to Contractors - Capital,361.00,REDACTED PERSONAL DATA
Revenue,Director of Childrens Services,5105601432,27.11.2014,Leaving Care Costs,Transport of Clients,300.00,REDACTED PERSONAL DATA
Revenue,Director of Childrens Services,5105601432,27.11.2014,Leaving Care Costs,Transport of Clients,5.00,REDACTED PERSONAL DATA
Revenue,Head of ASC & Community Wellbeing,5105600994,27.11.2014,Leaseholds by LA,Accommodation Costs - Leaseholder Payments,695.89,REDACTED PERSONAL DATA
Revenue,Head of ASC & Community Wellbeing,5105600994,27.11.2014,Leaseholds by LA,Accommodation Costs - Leaseholder Payments,695.89,REDACTED PERSONAL DATA
Revenue,Head of ASC & Community Wellbeing,5105600994,27.11.2014,Leaseholds by LA,Accommodation Costs - Leaseholder Payments,695.89,REDACTED PERSONAL DATA
Revenue,Head of ASC & Community Wellbeing,5105600994,27.11.2014,Leaseholds by LA,Accommodation Costs - Leaseholder Payments,695.89,REDACTED PERSONAL DATA
Revenue,Head of ASC & Community Wellbeing,5105600994,27.11.2014,Leaseholds by LA,Accommodation Costs - Leaseholder Payments,695.89,REDACTED PERSONAL DATA
Revenue,Head of Economy & Tourism,5105600395,27.11.2014,"St Thomas Church, Ryde",Minor Works,100.00,"PETER A ATTRILL, GARDENING SERVICES"
Revenue,Director of Childrens Services,5105600330,27.11.2014,LSCB (Local Safeguarding Childrens Board),Training,500.00,REDACTED PERSONAL DATA
Revenue,Director of Childrens Services,5105600330,27.11.2014,LSCB (Local Safeguarding Childrens Board),Training,181.66,REDACTED PERSONAL DATA
Revenue,Director of Childrens Services,5105601431,27.11.2014,Complaints (Children & Families),Professional Services,"1,637.56",REDACTED PERSONAL DATA
Revenue,Head of Corp Gov & Monitoring Officer,5105600203,27.11.2014,Elections,Rent of Buildings and Rooms,110.00,1ST GODSHILL AND ROOKLEY SCOUTS
Revenue,Head of ASC & Community Wellbeing,5105601014,27.11.2014,Leaseholds by LA,Accommodation Costs - Leaseholder Payments,866.67,2K PROPERTY
Revenue,Head of ASC & Community Wellbeing,5105600961,27.11.2014,Adelaide Resource Centre,Catering Purchases,69.03,3663 (BFS GROUP LTD)
Revenue,Head of ASC & Community Wellbeing,5105600966,27.11.2014,Adelaide Resource Centre,Catering Purchases,137.30,3663 (BFS GROUP LTD)
Revenue,Head of ASC & Community Wellbeing,5105600981,27.11.2014,Adelaide Resource Centre,Catering Purchases,237.52,3663 (BFS GROUP LTD)
Revenue,Head of ASC & Community Wellbeing,5105600982,27.11.2014,Adelaide Resource Centre,Catering Purchases,323.39,3663 (BFS GROUP LTD)
Revenue,Head of ASC & Community Wellbeing,5105600982,27.11.2014,Adelaide Resource Centre,Catering Purchases,0.01,3663 (BFS GROUP LTD)
Revenue,Head of ASC & Community Wellbeing,5105600981,27.11.2014,Adelaide Resource Centre,Catering Purchases,8.14,3663 (BFS GROUP LTD)
Revenue,Head of ASC & Community Wellbeing,5105600966,27.11.2014,Adelaide Resource Centre,Catering Purchases,5.14,3663 (BFS GROUP LTD)
Revenue,Head of ASC & Community Wellbeing,5105600961,27.11.2014,Adelaide Resource Centre,Catering Purchases,2.57,3663 (BFS GROUP LTD)
Revenue,Head of ASC & Community Wellbeing,5105699611,14.11.2014,Adelaide Resource Centre,Catering Purchases,-3.92,3663 (BFS GROUP LTD)
Revenue,Head of ASC & Community Wellbeing,5105699613,14.11.2014,Adelaide Resource Centre,Catering Purchases,-7.92,3663 (BFS GROUP LTD)
Revenue,Head of ASC & Community Wellbeing,5105698288,07.11.2014,Adelaide Resource Centre,Catering Purchases,15.88,3663 (BFS GROUP LTD)
Revenue,Head of ASC & Community Wellbeing,5105698292,07.11.2014,Adelaide Resource Centre,Catering Purchases,5.14,3663 (BFS GROUP LTD)
Revenue,Head of ASC & Community Wellbeing,5105698290,07.11.2014,Adelaide Resource Centre,Catering Purchases,19.56,3663 (BFS GROUP LTD)
Revenue,Head of ASC & Community Wellbeing,5105698322,07.11.2014,Adelaide Resource Centre,Catering Purchases,25.68,3663 (BFS GROUP LTD)
Revenue,Head of ASC & Community Wellbeing,5105698322,07.11.2014,Adelaide Resource Centre,Catering Purchases,124.58,3663 (BFS GROUP LTD)
Revenue,Head of ASC & Community Wellbeing,5105698290,07.11.2014,Adelaide Resource Centre,Catering Purchases,258.02,3663 (BFS GROUP LTD)
Revenue,Head of ASC & Community Wellbeing,5105698292,07.11.2014,Adelaide Resource Centre,Catering Purchases,148.13,3663 (BFS GROUP LTD)
Revenue,Head of ASC & Community Wellbeing,5105698288,07.11.2014,Adelaide Resource Centre,Catering Purchases,222.89,3663 (BFS GROUP LTD)
Revenue,Head of ASC & Community Wellbeing,5105698326,14.11.2014,Adelaide Resource Centre,Catering Purchases,19.28,3663 (BFS GROUP LTD)
Revenue,Head of ASC & Community Wellbeing,5105697803,05.11.2014,Gouldings Resource Centre,Catering Equipment,17.98,3663 (BFS GROUP LTD)
Revenue,Head of ASC & Community Wellbeing,5105698952,12.11.2014,Gouldings Resource Centre,Catering Purchases,808.31,3663 (BFS GROUP LTD)
Revenue,Head of ASC & Community Wellbeing,5105698952,12.11.2014,Gouldings Resource Centre,Catering Purchases,115.33,3663 (BFS GROUP LTD)
Revenue,Head of ASC & Community Wellbeing,5105600687,27.11.2014,Gouldings Resource Centre,Catering Purchases,142.93,3663 (BFS GROUP LTD)
Revenue,Head of ASC & Community Wellbeing,5105600627,27.11.2014,Westminster House,Catering Purchases,153.75,3663 (BFS GROUP LTD)
Revenue,Head of ASC & Community Wellbeing,5105600629,27.11.2014,Westminster House,Catering Purchases,86.77,3663 (BFS GROUP LTD)
Revenue,Head of ASC & Community Wellbeing,5105697881,05.11.2014,Westminster House,Catering Purchases,186.88,3663 (BFS GROUP LTD)
Revenue,Head of ASC & Community Wellbeing,5105697896,05.11.2014,Westminster House,Catering Purchases,69.80,3663 (BFS GROUP LTD)
Revenue,Head of ASC & Community Wellbeing,5105697882,05.11.2014,Westminster House,Catering Purchases,91.09,3663 (BFS GROUP LTD)
Revenue,Head of Economy & Tourism,5105600208,27.11.2014,Ryde Sports Centre,Stock Purchases,227.87,3663 (BFS GROUP LTD)
Revenue,Head of Economy & Tourism,5105697743,05.11.2014,Ryde Sports Centre,Stock Purchases,145.45,3663 (BFS GROUP LTD)
Revenue,Head of Economy & Tourism,5105698276,07.11.2014,The Heights,Stock Purchases,86.58,3663 (BFS GROUP LTD)
Revenue,Head of Economy & Tourism,5105698276,07.11.2014,The Heights,Stock Purchases,58.59,3663 (BFS GROUP LTD)
Revenue,Head of Economy & Tourism,5105698282,07.11.2014,The Heights,Stock Purchases,287.83,3663 (BFS GROUP LTD)
Revenue,Head of Economy & Tourism,5105698264,12.11.2014,The Heights,Stock Purchases,235.20,3663 (BFS GROUP LTD)
Revenue,Head of Economy & Tourism,5105698264,12.11.2014,The Heights,Stock Purchases,0.01,3663 (BFS GROUP LTD)
Revenue,Head of Economy & Tourism,5105693825,12.11.2014,The Heights,Stock Purchases,172.32,3663 (BFS GROUP LTD)
Revenue,Head of Economy & Tourism,5105693834,12.11.2014,The Heights,Stock Purchases,-23.28,3663 (BFS GROUP LTD)
Revenue,Head of Economy & Tourism,5105693825,12.11.2014,The Heights,Stock Purchases,83.34,3663 (BFS GROUP LTD)
Revenue,Head of Economy & Tourism,5105698263,07.11.2014,The Heights,Stock Purchases,77.90,3663 (BFS GROUP LTD)
Revenue,Head of Economy & Tourism,5105698263,07.11.2014,The Heights,Stock Purchases,23.66,3663 (BFS GROUP LTD)
Revenue,Head of Economy & Tourism,5105698260,07.11.2014,Medina Leisure Centre,Stock Purchases,489.94,3663 (BFS GROUP LTD)
Revenue,Head of Economy & Tourism,5105600713,27.11.2014,Medina Leisure Centre,Stock Purchases,231.31,3663 (BFS GROUP LTD)
Revenue,Head of Economy & Tourism,5105600709,27.11.2014,Medina Leisure Centre,Stock Purchases,40.91,3663 (BFS GROUP LTD)
Revenue,Head of Economy & Tourism,5105600709,27.11.2014,Medina Leisure Centre,Stock Purchases,61.78,3663 (BFS GROUP LTD)
Revenue,Head of Economy & Tourism,5105600959,27.11.2014,Medina Leisure Centre,Stock Purchases,563.77,3663 (BFS GROUP LTD)
Revenue,Head of Economy & Tourism,5105698315,07.11.2014,Medina Leisure Centre,Stock Purchases,277.01,3663 (BFS GROUP LTD)
Revenue,Head of Economy & Tourism,5105698493,07.11.2014,Medina Leisure Centre,Stock Purchases,28.98,3663 (BFS GROUP LTD)
Revenue,Head of Economy & Tourism,5105698493,07.11.2014,Medina Leisure Centre,Stock Purchases,32.57,3663 (BFS GROUP LTD)
Revenue,Head of ASC & Community Wellbeing,5105697728,05.11.2014,Adelaide Resource Centre,Consumable Cleaning Materials,261.00,A & M APPLIANCE CARE
Revenue,Head of ASC & Community Wellbeing,5105600934,27.11.2014,Gouldings Resource Centre,Consumable Cleaning Materials,36.00,A & M APPLIANCE CARE
Revenue,Head of ASC & Community Wellbeing,5105698469,07.11.2014,Gouldings Resource Centre,Consumable Cleaning Materials,135.00,A & M APPLIANCE CARE
Revenue,Head of ASC & Community Wellbeing,5105697748,05.11.2014,Westminster House,Prop Svs only - Day to day mtce,55.00,A & M APPLIANCE CARE
Revenue,Director of Childrens Services,5105697804,12.11.2014,Beaulieu House,Minor Works,140.40,A & M APPLIANCE CARE
Revenue,Head of Economy & Tourism,5105698355,14.11.2014,October Walking Festival,Advertising & Publicity,585.00,A & N MEDIA FINANCE SERVICES LTD
Revenue,Director of Childrens Services,5105600732,27.11.2014,Core Programmes,Training,725.00,REDACTED PERSONAL DATA
Revenue,Director of Childrens Services,5105697986,07.11.2014,Core Programmes,Training,725.00,REDACTED PERSONAL DATA
Revenue,Head of ASC & Community Wellbeing,5105601000,27.11.2014,Leaseholds by LA,Accommodation Costs - Leaseholder Payments,780.00,REDACTED PERSONAL DATA
Revenue,Director of Childrens Services,5105600784,27.11.2014,Special Guardianship Order Costs,Support Children,168.39,REDACTED PERSONAL DATA
Revenue,Director of Childrens Services,5105698053,07.11.2014,Special Guardianship Order Costs,Support Children,168.39,REDACTED PERSONAL DATA
Revenue,Director of Childrens Services,5105698053,07.11.2014,Special Guardianship Order Costs,Support Children,168.39,REDACTED PERSONAL DATA
Revenue,Director of Childrens Services,5105601496,27.11.2014,Special Guardianship Order Costs,Support Children,168.39,REDACTED PERSONAL DATA
Revenue,Director of Childrens Services,5105601496,27.11.2014,Special Guardianship Order Costs,Support Children,168.39,REDACTED PERSONAL DATA
Revenue,Director of Childrens Services,5105600784,27.11.2014,Special Guardianship Order Costs,Support Children,168.39,REDACTED PERSONAL DATA
Revenue,Director of Childrens Services,5105699719,14.11.2014,Special Guardianship Order Costs,Support Children,168.39,REDACTED PERSONAL DATA
Revenue,Director of Childrens Services,5105699719,14.11.2014,Special Guardianship Order Costs,Support Children,168.39,REDACTED PERSONAL DATA
Revenue,Director of Childrens Services,5105600856,27.11.2014,Leaving Care Costs,Support Children,120.89,REDACTED PERSONAL DATA
Revenue,Director of Childrens Services,5105600856,27.11.2014,Leaving Care Costs,Support Children,120.89,REDACTED PERSONAL DATA
Revenue,Director of Childrens Services,5105601567,27.11.2014,Leaving Care Costs,Support Children,120.89,REDACTED PERSONAL DATA
Revenue,Director of Childrens Services,5105601567,27.11.2014,Leaving Care Costs,Support Children,120.89,REDACTED PERSONAL DATA
Revenue,Director of Childrens Services,5105698125,07.11.2014,Leaving Care Costs,Support Children,120.89,REDACTED PERSONAL DATA
Revenue,Director of Childrens Services,5105698125,07.11.2014,Leaving Care Costs,Support Children,120.89,REDACTED PERSONAL DATA
Revenue,Director of Childrens Services,5105699791,14.11.2014,Leaving Care Costs,Support Children,120.89,REDACTED PERSONAL DATA
Revenue,Director of Childrens Services,5105699791,14.11.2014,Leaving Care Costs,Support Children,120.89,REDACTED PERSONAL DATA
Revenue,Director of Childrens Services,5105600856,27.11.2014,Leaving Care Costs,Accommodation Costs - Service Users,57.50,REDACTED PERSONAL DATA
Revenue,Director of Childrens Services,5105600856,27.11.2014,Leaving Care Costs,Accommodation Costs - Service Users,57.50,REDACTED PERSONAL DATA
Revenue,Director of Childrens Services,5105601567,27.11.2014,Leaving Care Costs,Accommodation Costs - Service Users,57.50,REDACTED PERSONAL DATA
Revenue,Director of Childrens Services,5105601567,27.11.2014,Leaving Care Costs,Accommodation Costs - Service Users,57.50,REDACTED PERSONAL DATA
Revenue,Director of Childrens Services,5105698125,07.11.2014,Leaving Care Costs,Accommodation Costs - Service Users,57.50,REDACTED PERSONAL DATA
Revenue,Director of Childrens Services,5105698125,07.11.2014,Leaving Care Costs,Accommodation Costs - Service Users,57.50,REDACTED PERSONAL DATA
Revenue,Director of Childrens Services,5105699791,14.11.2014,Leaving Care Costs,Accommodation Costs - Service Users,57.50,REDACTED PERSONAL DATA
Revenue,Director of Childrens Services,5105699791,14.11.2014,Leaving Care Costs,Accommodation Costs - Service Users,57.50,REDACTED PERSONAL DATA
Revenue,Head of ASC & Community Wellbeing,5105601009,27.11.2014,Leaseholds by LA,Accommodation Costs - Leaseholder Payments,510.25,REDACTED PERSONAL DATA
Revenue,Head of ASC & Community Wellbeing,5105601009,27.11.2014,Leaseholds by LA,Accommodation Costs - Leaseholder Payments,510.25,REDACTED PERSONAL DATA
Revenue,Head of ASC & Community Wellbeing,5105601009,27.11.2014,Leaseholds by LA,Accommodation Costs - Leaseholder Payments,510.25,REDACTED PERSONAL DATA
Revenue,Head of ASC & Community Wellbeing,5105601009,27.11.2014,Leaseholds by LA,Accommodation Costs - Leaseholder Payments,510.25,REDACTED PERSONAL DATA
Revenue,Head of ASC & Community Wellbeing,5105601009,27.11.2014,Leaseholds by LA,Accommodation Costs - Leaseholder Payments,510.25,REDACTED PERSONAL DATA
Revenue,Head of ASC & Community Wellbeing,5105601009,27.11.2014,Leaseholds by LA,Accommodation Costs - Leaseholder Payments,510.25,REDACTED PERSONAL DATA
Revenue,Director of Childrens Services,5105600762,27.11.2014,Adoption Costs,Support Children,186.49,REDACTED PERSONAL DATA
Revenue,Director of Childrens Services,5105698031,07.11.2014,Adoption Costs,Support Children,186.49,REDACTED PERSONAL DATA
Revenue,Director of Childrens Services,5105601474,27.11.2014,Adoption Costs,Support Children,186.49,REDACTED PERSONAL DATA
Revenue,Director of Childrens Services,5105699697,14.11.2014,Adoption Costs,Support Children,186.49,REDACTED PERSONAL DATA
Revenue,Director of Childrens Services,5105600823,27.11.2014,In-house Fostering,Boarding Out Allowances,199.00,REDACTED PERSONAL DATA
Revenue,Director of Childrens Services,5105600823,27.11.2014,In-house Fostering,Boarding Out Allowances,200.00,REDACTED PERSONAL DATA
Revenue,Director of Childrens Services,5105698092,07.11.2014,In-house Fostering,Boarding Out Allowances,225.58,REDACTED PERSONAL DATA
Revenue,Director of Childrens Services,5105699758,14.11.2014,In-house Fostering,Boarding Out Allowances,225.58,REDACTED PERSONAL DATA
Revenue,Director of Childrens Services,5105698092,07.11.2014,In-house Fostering,Boarding Out Allowances,199.00,REDACTED PERSONAL DATA
Revenue,Director of Childrens Services,5105698092,07.11.2014,In-house Fostering,Boarding Out Allowances,200.00,REDACTED PERSONAL DATA
Revenue,Director of Childrens Services,5105699758,14.11.2014,In-house Fostering,Boarding Out Allowances,199.00,REDACTED PERSONAL DATA
Revenue,Director of Childrens Services,5105699758,14.11.2014,In-house Fostering,Boarding Out Allowances,200.00,REDACTED PERSONAL DATA
Revenue,Head of ASC & Community Wellbeing,5105601011,27.11.2014,Leaseholds by LA,Accommodation Costs - Leaseholder Payments,780.00,REDACTED PERSONAL DATA
Revenue,Head of ASC & Community Wellbeing,5105600998,27.11.2014,Leaseholds by LA,Accommodation Costs - Leaseholder Payments,649.83,REDACTED PERSONAL DATA
Revenue,Head of ASC & Community Wellbeing,5105600998,27.11.2014,Leaseholds by LA,Accommodation Costs - Leaseholder Payments,789.01,REDACTED PERSONAL DATA
Revenue,Head of ASC & Community Wellbeing,5105600998,27.11.2014,Leaseholds by LA,Accommodation Costs - Leaseholder Payments,835.08,REDACTED PERSONAL DATA
Revenue,Director of Childrens Services,5105600758,27.11.2014,Adoption Costs,Support Children,87.15,REDACTED PERSONAL DATA
Revenue,Director of Childrens Services,5105698027,07.11.2014,Adoption Costs,Support Children,87.15,REDACTED PERSONAL DATA
Revenue,Director of Childrens Services,5105601470,27.11.2014,Adoption Costs,Support Children,87.15,REDACTED PERSONAL DATA
Revenue,Director of Childrens Services,5105699693,14.11.2014,Adoption Costs,Support Children,87.15,REDACTED PERSONAL DATA
Revenue,Director of Childrens Services,5105600884,27.11.2014,In-house Fostering,Boarding Out Allowances,150.00,REDACTED PERSONAL DATA
Revenue,Director of Childrens Services,5105600884,27.11.2014,In-house Fostering,Boarding Out Allowances,242.08,REDACTED PERSONAL DATA
Revenue,Director of Childrens Services,5105601595,27.11.2014,In-house Fostering,Boarding Out Allowances,150.00,REDACTED PERSONAL DATA
Revenue,Director of Childrens Services,5105601595,27.11.2014,In-house Fostering,Boarding Out Allowances,242.08,REDACTED PERSONAL DATA
Revenue,Director of Childrens Services,5105699818,14.11.2014,In-house Fostering,Boarding Out Allowances,150.00,REDACTED PERSONAL DATA
Revenue,Director of Childrens Services,5105699818,14.11.2014,In-house Fostering,Boarding Out Allowances,242.08,REDACTED PERSONAL DATA
Revenue,Director of Childrens Services,5105698153,07.11.2014,In-house Fostering,Boarding Out Allowances,242.08,REDACTED PERSONAL DATA
Revenue,Director of Childrens Services,5105698153,07.11.2014,In-house Fostering,Boarding Out Allowances,150.00,REDACTED PERSONAL DATA
Revenue,Head of ASC & Community Wellbeing,5105601112,27.11.2014,Supporting People Older Persons,Payment to Private Contractors,423.69,ABBEYFIELD WEST WIGHT SOCIETY
Revenue,Head of ASC & Community Wellbeing,5105697160,05.11.2014,Elderly Frail Residential Care,Charges from Independent Providers,"1,700.44",ACACIA CARE HOME
Revenue,Head of ASC & Community Wellbeing,5105697160,05.11.2014,Elderly Frail Residential Care,Charges from Independent Providers,"1,700.44",ACACIA CARE HOME
Revenue,Head of ASC & Community Wellbeing,5105697160,05.11.2014,Elderly Frail Residential Care,Charges from Independent Providers,"1,700.44",ACACIA CARE HOME
Revenue,Head of ASC & Community Wellbeing,5105697160,05.11.2014,Elderly Frail Residential Care,Charges from Independent Providers,"1,700.44",ACACIA CARE HOME
Revenue,Head of ASC & Community Wellbeing,5105698711,12.11.2014,Elderly Frail Residential Care,Charges from Independent Providers,"1,639.71",ACACIA CARE HOME
Revenue,Head of ASC & Community Wellbeing,5105698711,12.11.2014,Elderly Mentally Ill Residential Care,Charges from Independent Providers,"1,781.36",ACACIA CARE HOME
Revenue,Director of Childrens Services,5105600217,27.11.2014,Thompson House Tuition Centre (PRU),Professional Services,400.00,ACADEMY21 LIMITED
Revenue,Head of Corp Gov & Monitoring Officer,5105600244,27.11.2014,Media,Professional Subscriptions,"3,500.00",ACCESS INTELLIGENCE MEDIA & COMMUNICATIONS LTD
Revenue,Head of Corp Gov & Monitoring Officer,5105699986,27.11.2014,Democratic Representation & Management,Recruitment Advertising,44.00,ACCESS PERSONAL CHECKING SERVICES LTD
Revenue,Head of Corp Gov & Monitoring Officer,5105699986,27.11.2014,Democratic Representation & Management,Recruitment Advertising,6.00,ACCESS PERSONAL CHECKING SERVICES LTD
Revenue,Head of ASC & Community Wellbeing,5105699986,27.11.2014,S75 Integrated Community Equipment Store,Interview & recruitment expenses,52.00,ACCESS PERSONAL CHECKING SERVICES LTD
Revenue,Head of ASC & Community Wellbeing,5105699986,27.11.2014,S75 Integrated Community Equipment Store,Interview & recruitment expenses,12.00,ACCESS PERSONAL CHECKING SERVICES LTD
Revenue,Head of ASC & Community Wellbeing,5105699986,27.11.2014,Commissioning Manager for Adult Social Care,Interview & recruitment expenses,44.00,ACCESS PERSONAL CHECKING SERVICES LTD
Revenue,Head of ASC & Community Wellbeing,5105699986,27.11.2014,Commissioning Manager for Adult Social Care,Interview & recruitment expenses,6.00,ACCESS PERSONAL CHECKING SERVICES LTD
Revenue,Head of ASC & Community Wellbeing,5105699986,27.11.2014,Overbrook,Interview & recruitment expenses,88.00,ACCESS PERSONAL CHECKING SERVICES LTD
Revenue,Head of ASC & Community Wellbeing,5105699986,27.11.2014,Overbrook,Interview & recruitment expenses,12.00,ACCESS PERSONAL CHECKING SERVICES LTD
Revenue,Head of ASC & Community Wellbeing,5105699986,27.11.2014,Plean Dene,Interview & recruitment expenses,88.00,ACCESS PERSONAL CHECKING SERVICES LTD
Revenue,Head of ASC & Community Wellbeing,5105699986,27.11.2014,Plean Dene,Interview & recruitment expenses,12.00,ACCESS PERSONAL CHECKING SERVICES LTD
Revenue,Head of ASC & Community Wellbeing,5105699986,27.11.2014,Saxonbury,Interview & recruitment expenses,44.00,ACCESS PERSONAL CHECKING SERVICES LTD
Revenue,Head of ASC & Community Wellbeing,5105699986,27.11.2014,Saxonbury,Interview & recruitment expenses,6.00,ACCESS PERSONAL CHECKING SERVICES LTD
Revenue,Head of ASC & Community Wellbeing,5105699986,27.11.2014,FAC Team,Interview & recruitment expenses,44.00,ACCESS PERSONAL CHECKING SERVICES LTD
Revenue,Head of ASC & Community Wellbeing,5105699986,27.11.2014,FAC Team,Interview & recruitment expenses,6.00,ACCESS PERSONAL CHECKING SERVICES LTD
Revenue,Head of ASC & Community Wellbeing,5105699986,27.11.2014,Deputyship Office,Interview & recruitment expenses,44.00,ACCESS PERSONAL CHECKING SERVICES LTD
Revenue,Head of ASC & Community Wellbeing,5105699986,27.11.2014,Deputyship Office,Interview & recruitment expenses,6.00,ACCESS PERSONAL CHECKING SERVICES LTD
Revenue,Head of ASC & Community Wellbeing,5105699986,27.11.2014,Community Outreach,Interview & recruitment expenses,132.00,ACCESS PERSONAL CHECKING SERVICES LTD
Revenue,Head of ASC & Community Wellbeing,5105699986,27.11.2014,Community Outreach,Interview & recruitment expenses,18.00,ACCESS PERSONAL CHECKING SERVICES LTD
Revenue,Head of ASC & Community Wellbeing,5105699986,27.11.2014,Adelaide Resource Centre,Interview & recruitment expenses,88.00,ACCESS PERSONAL CHECKING SERVICES LTD
Revenue,Head of ASC & Community Wellbeing,5105699986,27.11.2014,Adelaide Resource Centre,Interview & recruitment expenses,12.00,ACCESS PERSONAL CHECKING SERVICES LTD
Revenue,Head of ASC & Community Wellbeing,5105699986,27.11.2014,Gouldings Resource Centre,Interview & recruitment expenses,44.00,ACCESS PERSONAL CHECKING SERVICES LTD
Revenue,Head of ASC & Community Wellbeing,5105699986,27.11.2014,Gouldings Resource Centre,Interview & recruitment expenses,6.00,ACCESS PERSONAL CHECKING SERVICES LTD
Revenue,Head of ASC & Community Wellbeing,5105699986,27.11.2014,Westminster House,Interview & recruitment expenses,44.00,ACCESS PERSONAL CHECKING SERVICES LTD
Revenue,Head of ASC & Community Wellbeing,5105699986,27.11.2014,Westminster House,Interview & recruitment expenses,6.00,ACCESS PERSONAL CHECKING SERVICES LTD
Revenue,Head of ASC & Community Wellbeing,5105699986,27.11.2014,Mental Health Day Services,Interview & recruitment expenses,44.00,ACCESS PERSONAL CHECKING SERVICES LTD
Revenue,Head of ASC & Community Wellbeing,5105699986,27.11.2014,Mental Health Day Services,Interview & recruitment expenses,6.00,ACCESS PERSONAL CHECKING SERVICES LTD
Revenue,Head of Economy & Tourism,5105699986,27.11.2014,The Heights,Interview & recruitment expenses,88.00,ACCESS PERSONAL CHECKING SERVICES LTD
Revenue,Head of Economy & Tourism,5105699986,27.11.2014,The Heights,Interview & recruitment expenses,12.00,ACCESS PERSONAL CHECKING SERVICES LTD
Revenue,Head of Economy & Tourism,5105699986,27.11.2014,Medina Leisure Centre,Interview & recruitment expenses,44.00,ACCESS PERSONAL CHECKING SERVICES LTD
Revenue,Head of Economy & Tourism,5105699986,27.11.2014,Medina Leisure Centre,Interview & recruitment expenses,12.00,ACCESS PERSONAL CHECKING SERVICES LTD
Revenue,Director of Childrens Services,5105699986,27.11.2014,Outreach Services,Interview & recruitment expenses,44.00,ACCESS PERSONAL CHECKING SERVICES LTD
Revenue,Director of Childrens Services,5105699986,27.11.2014,Outreach Services,Interview & recruitment expenses,6.00,ACCESS PERSONAL CHECKING SERVICES LTD
Revenue,Director of Childrens Services,5105699986,27.11.2014,Youth Offending Team,Interview & recruitment expenses,44.00,ACCESS PERSONAL CHECKING SERVICES LTD
Revenue,Director of Childrens Services,5105699986,27.11.2014,Direct Payments Children & Families,Interview & recruitment expenses,176.00,ACCESS PERSONAL CHECKING SERVICES LTD
Revenue,Director of Childrens Services,5105699986,27.11.2014,Direct Payments Children & Families,Interview & recruitment expenses,24.00,ACCESS PERSONAL CHECKING SERVICES LTD
Revenue,Director of Childrens Services,5105699986,27.11.2014,In-house Fostering,Interview & recruitment expenses,792.00,ACCESS PERSONAL CHECKING SERVICES LTD
Revenue,Director of Childrens Services,5105699986,27.11.2014,In-house Fostering,Interview & recruitment expenses,126.00,ACCESS PERSONAL CHECKING SERVICES LTD
Revenue,Director of Childrens Services,5105699986,27.11.2014,Adoption Team,Interview & recruitment expenses,132.00,ACCESS PERSONAL CHECKING SERVICES LTD
Revenue,Director of Childrens Services,5105699986,27.11.2014,Adoption Team,Interview & recruitment expenses,18.00,ACCESS PERSONAL CHECKING SERVICES LTD
Revenue,Director of Childrens Services,5105699986,27.11.2014,Children In Need 3,Interview & recruitment expenses,44.00,ACCESS PERSONAL CHECKING SERVICES LTD
Revenue,Director of Childrens Services,5105699986,27.11.2014,Children In Need 3,Interview & recruitment expenses,6.00,ACCESS PERSONAL CHECKING SERVICES LTD
Revenue,Head of Economy & Tourism,5105699986,27.11.2014,Duke of Edingburgh Award,Interview & recruitment expenses,44.00,ACCESS PERSONAL CHECKING SERVICES LTD
Revenue,Head of Economy & Tourism,5105699986,27.11.2014,Duke of Edingburgh Award,Interview & recruitment expenses,6.00,ACCESS PERSONAL CHECKING SERVICES LTD
Revenue,Director of Childrens Services,5105699986,27.11.2014,Hearing Impaired Service,Interview & recruitment expenses,44.00,ACCESS PERSONAL CHECKING SERVICES LTD
Revenue,Director of Childrens Services,5105699986,27.11.2014,Hearing Impaired Service,Interview & recruitment expenses,6.00,ACCESS PERSONAL CHECKING SERVICES LTD
Revenue,Director of Childrens Services,5105699986,27.11.2014,Beaulieu House,Interview & recruitment expenses,88.00,ACCESS PERSONAL CHECKING SERVICES LTD
Revenue,Director of Childrens Services,5105699986,27.11.2014,Beaulieu House,Interview & recruitment expenses,12.00,ACCESS PERSONAL CHECKING SERVICES LTD
Revenue,Director of Childrens Services,5105699986,27.11.2014,Service Management (Children & Families),Interview & recruitment expenses,44.00,ACCESS PERSONAL CHECKING SERVICES LTD
Revenue,Director of Childrens Services,5105699986,27.11.2014,Service Management (Children & Families),Interview & recruitment expenses,6.00,ACCESS PERSONAL CHECKING SERVICES LTD
Revenue,Head of Planning & Regulatory Services,5105698692,21.11.2014,Licensing Services,Interview & recruitment expenses,352.00,ACCESS PERSONAL CHECKING SERVICES LTD
Revenue,Head of Planning & Regulatory Services,5105698692,21.11.2014,Licensing Services,Professional Services,42.00,ACCESS PERSONAL CHECKING SERVICES LTD
Revenue,Head of ASC & Community Wellbeing,5105600512,27.11.2014,Elderly Frail Homecare,Charges from Independent Providers,0.00,ACORN CARE SERVICE LTD
Revenue,Head of ASC & Community Wellbeing,5105699207,12.11.2014,Elderly Frail Homecare,Charges from Independent Providers,430.36,ACORN CARE SERVICE LTD
Revenue,Head of ASC & Community Wellbeing,5105699208,12.11.2014,Elderly Frail Homecare,Charges from Independent Providers,664.09,ACORN CARE SERVICE LTD
Revenue,Head of ASC & Community Wellbeing,5105699221,12.11.2014,Elderly Frail Homecare,Charges from Independent Providers,59.36,ACORN CARE SERVICE LTD
Revenue,Head of ASC & Community Wellbeing,5105699222,12.11.2014,Elderly Frail Homecare,Charges from Independent Providers,497.14,ACORN CARE SERVICE LTD
Revenue,Head of ASC & Community Wellbeing,5105699224,12.11.2014,Elderly Frail Homecare,Charges from Independent Providers,207.76,ACORN CARE SERVICE LTD
Revenue,Head of ASC & Community Wellbeing,5105699225,12.11.2014,Elderly Frail Homecare,Charges from Independent Providers,415.52,ACORN CARE SERVICE LTD
Revenue,Head of ASC & Community Wellbeing,5105699218,12.11.2014,Elderly Frail Homecare,Charges from Independent Providers,415.52,ACORN CARE SERVICE LTD
Revenue,Head of ASC & Community Wellbeing,5105699209,12.11.2014,Elderly Frail Homecare,Charges from Independent Providers,578.76,ACORN CARE SERVICE LTD
Revenue,Head of ASC & Community Wellbeing,5105699211,12.11.2014,Elderly Frail Homecare,Charges from Independent Providers,"2,641.52",ACORN CARE SERVICE LTD
Revenue,Head of ASC & Community Wellbeing,5105699210,12.11.2014,Elderly Frail Homecare,Charges from Independent Providers,118.72,ACORN CARE SERVICE LTD
Revenue,Head of ASC & Community Wellbeing,5105699213,12.11.2014,Elderly Frail Homecare,Charges from Independent Providers,478.59,ACORN CARE SERVICE LTD
Revenue,Head of ASC & Community Wellbeing,5105699191,12.11.2014,Elderly Frail Homecare,Charges from Independent Providers,385.84,ACORN CARE SERVICE LTD
Revenue,Head of ASC & Community Wellbeing,5105699193,12.11.2014,Elderly Frail Homecare,Charges from Independent Providers,831.04,ACORN CARE SERVICE LTD
Revenue,Head of ASC & Community Wellbeing,5105699216,12.11.2014,Elderly Frail Homecare,Charges from Independent Providers,448.91,ACORN CARE SERVICE LTD
Revenue,Head of ASC & Community Wellbeing,5105699220,12.11.2014,Elderly Frail Homecare,Charges from Independent Providers,389.55,ACORN CARE SERVICE LTD
Revenue,Head of ASC & Community Wellbeing,5105699219,12.11.2014,Elderly Frail Homecare,Charges from Independent Providers,445.20,ACORN CARE SERVICE LTD
Revenue,Head of ASC & Community Wellbeing,5105699215,12.11.2014,Elderly Frail Homecare,Charges from Independent Providers,29.68,ACORN CARE SERVICE LTD
Revenue,Head of ASC & Community Wellbeing,5105699231,12.11.2014,Elderly Frail Homecare,Charges from Independent Providers,389.55,ACORN CARE SERVICE LTD
Revenue,Head of ASC & Community Wellbeing,5105699229,12.11.2014,Elderly Frail Homecare,Charges from Independent Providers,37.10,ACORN CARE SERVICE LTD
Revenue,Head of ASC & Community Wellbeing,5105699230,12.11.2014,Elderly Frail Homecare,Charges from Independent Providers,296.80,ACORN CARE SERVICE LTD
Revenue,Head of ASC & Community Wellbeing,5105699227,12.11.2014,Elderly Frail Homecare,Charges from Independent Providers,968.76,ACORN CARE SERVICE LTD
Revenue,Head of ASC & Community Wellbeing,5105699232,12.11.2014,Elderly Frail Homecare,Charges from Independent Providers,89.04,ACORN CARE SERVICE LTD
Revenue,Head of ASC & Community Wellbeing,5105699226,12.11.2014,Elderly Frail Homecare,Charges from Independent Providers,85.33,ACORN CARE SERVICE LTD
Revenue,Head of ASC & Community Wellbeing,5105699202,12.11.2014,Elderly Frail Homecare,Charges from Independent Providers,155.82,ACORN CARE SERVICE LTD
Revenue,Head of ASC & Community Wellbeing,5105699204,12.11.2014,Elderly Frail Homecare,Charges from Independent Providers,604.73,ACORN CARE SERVICE LTD
Revenue,Head of ASC & Community Wellbeing,5105699186,12.11.2014,Elderly Frail Homecare,Charges from Independent Providers,"2,437.47",ACORN CARE SERVICE LTD
Revenue,Head of ASC & Community Wellbeing,5105699192,12.11.2014,Elderly Frail Homecare,Charges from Independent Providers,"1,157.52",ACORN CARE SERVICE LTD
Revenue,Head of ASC & Community Wellbeing,5105699199,12.11.2014,Elderly Frail Homecare,Charges from Independent Providers,207.76,ACORN CARE SERVICE LTD
Revenue,Head of ASC & Community Wellbeing,5105699189,12.11.2014,Elderly Frail Homecare,Charges from Independent Providers,"1,558.20",ACORN CARE SERVICE LTD
Revenue,Head of ASC & Community Wellbeing,5105699206,12.11.2014,Elderly Frail Homecare,Charges from Independent Providers,133.56,ACORN CARE SERVICE LTD
Revenue,Head of ASC & Community Wellbeing,5105699198,12.11.2014,Elderly Frail Homecare,Charges from Independent Providers,59.36,ACORN CARE SERVICE LTD
Revenue,Head of ASC & Community Wellbeing,5105699187,12.11.2014,Elderly Frail Homecare,Charges from Independent Providers,"2,344.72",ACORN CARE SERVICE LTD
Revenue,Head of ASC & Community Wellbeing,5105699194,12.11.2014,Elderly Frail Homecare,Charges from Independent Providers,155.82,ACORN CARE SERVICE LTD
Revenue,Head of ASC & Community Wellbeing,5105699195,12.11.2014,Elderly Frail Homecare,Charges from Independent Providers,534.24,ACORN CARE SERVICE LTD
Revenue,Head of ASC & Community Wellbeing,5105699196,12.11.2014,Elderly Frail Homecare,Charges from Independent Providers,727.16,ACORN CARE SERVICE LTD
Revenue,Head of ASC & Community Wellbeing,5105699197,12.11.2014,Elderly Frail Homecare,Charges from Independent Providers,100.17,ACORN CARE SERVICE LTD
Revenue,Head of ASC & Community Wellbeing,5105699200,12.11.2014,Elderly Frail Homecare,Charges from Independent Providers,118.72,ACORN CARE SERVICE LTD
Revenue,Head of ASC & Community Wellbeing,5105699201,12.11.2014,Elderly Frail Homecare,Charges from Independent Providers,819.91,ACORN CARE SERVICE LTD
Revenue,Head of ASC & Community Wellbeing,5105699190,12.11.2014,Elderly Frail Homecare,Charges from Independent Providers,"1,387.54",ACORN CARE SERVICE LTD
Revenue,Head of ASC & Community Wellbeing,5105699188,12.11.2014,Elderly Frail Homecare,Charges from Independent Providers,192.92,ACORN CARE SERVICE LTD
Revenue,Head of ASC & Community Wellbeing,5105699203,12.11.2014,Elderly Frail Homecare,Regular Respite Care,59.36,ACORN CARE SERVICE LTD
Revenue,Head of ASC & Community Wellbeing,5105699205,12.11.2014,Elderly Frail Homecare,Regular Respite Care,237.44,ACORN CARE SERVICE LTD
Revenue,Head of ASC & Community Wellbeing,5105699214,12.11.2014,Elderly Frail Homecare,Regular Respite Care,118.72,ACORN CARE SERVICE LTD
Revenue,Head of ASC & Community Wellbeing,5105699212,12.11.2014,Elderly Frail Homecare,Regular Respite Care,118.72,ACORN CARE SERVICE LTD
Revenue,Head of ASC & Community Wellbeing,5105699223,12.11.2014,Elderly Frail Homecare,Regular Respite Care,118.72,ACORN CARE SERVICE LTD
Revenue,Head of ASC & Community Wellbeing,5105699228,12.11.2014,Elderly Frail Homecare,Regular Respite Care,0.00,ACORN CARE SERVICE LTD
Revenue,Head of ASC & Community Wellbeing,5105699233,12.11.2014,Elderly Frail Homecare,Charges from Independent Providers,155.82,ACORN CARE SERVICE LTD
Revenue,Head of ASC & Community Wellbeing,5105699217,12.11.2014,Elderly Frail Homecare,Regular Respite Care,59.36,ACORN CARE SERVICE LTD
Revenue,Chief Fire Officer,5105600225,27.11.2014,Fire Technical Support,Vehicle Maintenance Costs,178.00,ADAMS MOREY LTD
Revenue,Chief Fire Officer,5105600209,27.11.2014,Fire Technical Support,Vehicle Maintenance Costs,285.34,ADAMS MOREY LTD
Revenue,Chief Fire Officer,5105600563,27.11.2014,Fire Technical Support,Vehicle Maintenance Costs,5.50,ADAMS MOREY LTD
Revenue,Chief Fire Officer,5105600563,27.11.2014,Fire Technical Support,Vehicle Maintenance Costs,9.48,ADAMS MOREY LTD
Revenue,Chief Fire Officer,5105600563,27.11.2014,Fire Technical Support,Vehicle Maintenance Costs,129.03,ADAMS MOREY LTD
Revenue,Chief Fire Officer,5105600563,27.11.2014,Fire Technical Support,Vehicle Maintenance Costs,21.16,ADAMS MOREY LTD
Revenue,Chief Fire Officer,5105600563,27.11.2014,Fire Technical Support,Vehicle Maintenance Costs,12.25,ADAMS MOREY LTD
Revenue,Chief Fire Officer,5105600566,27.11.2014,Fire Technical Support,Vehicle Maintenance Costs,42.50,ADAMS MOREY LTD
Revenue,Chief Fire Officer,5105600566,27.11.2014,Fire Technical Support,Vehicle Maintenance Costs,12.87,ADAMS MOREY LTD
Revenue,Chief Fire Officer,5105600566,27.11.2014,Fire Technical Support,Vehicle Maintenance Costs,5.55,ADAMS MOREY LTD
Revenue,Chief Fire Officer,5105600566,27.11.2014,Fire Technical Support,Vehicle Maintenance Costs,8.25,ADAMS MOREY LTD
Revenue,Chief Fire Officer,5105600566,27.11.2014,Fire Technical Support,Vehicle Maintenance Costs,37.44,ADAMS MOREY LTD
Revenue,Chief Fire Officer,5105600566,27.11.2014,Fire Technical Support,Vehicle Maintenance Costs,7.66,ADAMS MOREY LTD
Revenue,Chief Fire Officer,5105600479,27.11.2014,Fire Technical Support,Vehicle Maintenance Costs,530.00,ADAMS MOREY LTD
Revenue,Chief Fire Officer,5105600479,27.11.2014,Fire Technical Support,Vehicle Maintenance Costs,"1,399.99",ADAMS MOREY LTD
Revenue,Chief Fire Officer,5105600479,27.11.2014,Fire Technical Support,Vehicle Maintenance Costs,48.48,ADAMS MOREY LTD
Revenue,Chief Fire Officer,5105600479,27.11.2014,Fire Technical Support,Vehicle Maintenance Costs,43.88,ADAMS MOREY LTD
Revenue,Chief Fire Officer,5105601358,27.11.2014,Fire Technical Support,Vehicle Maintenance Costs,14.50,ADAMS MOREY LTD
Revenue,Chief Fire Officer,5105697890,05.11.2014,Fire Technical Support,Vehicle Maintenance Costs,49.86,ADAMS MOREY LTD
Revenue,Chief Fire Officer,5105601704,27.11.2014,Fire Technical Support,Vehicle Maintenance Costs,14.50,ADAMS MOREY LTD
Revenue,Chief Fire Officer,5105601693,27.11.2014,Fire Technical Support,Vehicle Maintenance Costs,14.50,ADAMS MOREY LTD
Revenue,Chief Fire Officer,5105698700,12.11.2014,Fire Technical Support,Vehicle Maintenance Costs,40.00,ADAMS MOREY LTD
Revenue,Chief Fire Officer,5105698753,12.11.2014,Fire Technical Support,Vehicle Maintenance Costs,28.12,ADAMS MOREY LTD
Revenue,Chief Fire Officer,5105698753,12.11.2014,Fire Technical Support,Vehicle Maintenance Costs,50.04,ADAMS MOREY LTD
Revenue,Chief Fire Officer,5105698753,12.11.2014,Fire Technical Support,Vehicle Maintenance Costs,6.85,ADAMS MOREY LTD
Revenue,Chief Fire Officer,5105698753,12.11.2014,Fire Technical Support,Vehicle Maintenance Costs,13.80,ADAMS MOREY LTD
Revenue,Chief Fire Officer,5105698753,12.11.2014,Fire Technical Support,Vehicle Maintenance Costs,6.12,ADAMS MOREY LTD
Revenue,Chief Fire Officer,5105698753,12.11.2014,Fire Technical Support,Vehicle Maintenance Costs,13.94,ADAMS MOREY LTD
Revenue,Chief Fire Officer,5105698753,12.11.2014,Fire Technical Support,Vehicle Maintenance Costs,37.85,ADAMS MOREY LTD
Capital,Chief Fire Officer,5105600562,27.11.2014,Fire Capital Projects,Vehicle Leasing and Acquisition,309.56,ADAMS MOREY LTD
Revenue,Head of Economy & Tourism,5105698970,12.11.2014,Crematorium,Operational Equipment,81.51,ADCOCK REFRIGERATION
Revenue,Head of Economy & Tourism,5105693488,05.11.2014,Crematorium,Maintenance of Operational Equipment,198.00,ADCOCK REFRIGERATION
Revenue,Managing Director & Head of Paid Service,5105600134,27.11.2014,Drug Misuse - Adults,Payment to Private Contractors,"2,360.00",ADDICTION RECOVERY CENTRE (ARC)
Revenue,Head of ASC & Community Wellbeing,5105697037,05.11.2014,Elderly Frail Residential Care,Charges from Independent Providers,"1,812.44",ADIEMUS CARE LTD
Revenue,Director of Childrens Services,5105699013,12.11.2014,Adoption Costs,Advertising & Publicity,685.13,ADOPTION UK
Revenue,Director of Childrens Services,5105699035,12.11.2014,Adoption Costs,Advertising & Publicity,685.13,ADOPTION UK
Revenue,Head of Planning & Regulatory Services,5105698766,12.11.2014,Planning Business Support,Security of Buildings,78.00,ADT FIRE AND SECURITY PLC
Revenue,Head of Economy & Tourism,5105699964,27.11.2014,Dinosaur Isle Museum (Sandown Geology),Operational Equipment,497.25,AEP LTD
Revenue,Director of Childrens Services,5105600428,27.11.2014,Children In Need 2,Agency staff,"1,687.50",AFFINITY WORKFORCE
Revenue,Director of Childrens Services,5105601648,27.11.2014,Children In Need 3,Agency staff,"1,305.00",AFFINITY WORKFORCE
Revenue,Director of Childrens Services,5105601649,27.11.2014,Children In Need 3,Agency staff,967.50,AFFINITY WORKFORCE
Revenue,Director of Childrens Services,5105601656,27.11.2014,Children In Need 3,Agency staff,"1,665.00",AFFINITY WORKFORCE
Revenue,Director of Childrens Services,5105601656,27.11.2014,Children In Need 3,Agency staff,36.90,AFFINITY WORKFORCE
Revenue,Director of Childrens Services,5105601649,27.11.2014,Children In Need 3,Agency staff,74.25,AFFINITY WORKFORCE
Revenue,Head of ASC & Community Wellbeing,5105698689,12.11.2014,Learning Disability Other Care,Client Expenses,16.00,AGE CONCERN T/A AGE UK
Revenue,Head of ASC & Community Wellbeing,5105698474,07.11.2014,Learning Disability Homes Management & Admin,Publications,54.46,AGORA BUSINESS PUBLICATIONS LLP
Revenue,Director of Childrens Services,5105601247,27.11.2014,Children in Care Team,Support Children,120.00,ALAN SHEPARD (IOW)
Revenue,Director of Childrens Services,5105600717,27.11.2014,S17 Child Protection,Support Children,185.00,ALAN SHEPARD (IOW)
Revenue,Head of Economy & Tourism,5105698956,12.11.2014,Crematorium,General Materials,72.37,ALBANY FARM & G MACHINERY LTD
Revenue,Head of Planning & Regulatory Services,5105697981,07.11.2014,Development Control,Advertising & Publicity,460.26,ALEXANDER ADVERTISING (INT) LTD
Revenue,Head of Planning & Regulatory Services,5105600485,27.11.2014,Development Control,Advertising & Publicity,188.29,ALEXANDER ADVERTISING (INT) LTD
Revenue,Head of Planning & Regulatory Services,5105698624,07.11.2014,Development Control,Advertising & Publicity,209.21,ALEXANDER ADVERTISING (INT) LTD
Revenue,Head of Planning & Regulatory Services,5105699065,12.11.2014,Development Control,Advertising & Publicity,240.59,ALEXANDER ADVERTISING (INT) LTD
Revenue,Head of Economy & Tourism,5105698376,07.11.2014,Dinosaur Isle Museum (Sandown Geology),Heritage Acquisitions,400.00,REDACTED PERSONAL DATA
Revenue,Director of Childrens Services,5105698949,14.11.2014,Short Breaks,Charges from Independent Providers,43.50,ALPHA (IOW) LTD
Revenue,Director of Childrens Services,5105698949,14.11.2014,Support for Looked After Children - Disabled Childrens Team,Transport of Clients,152.25,ALPHA (IOW) LTD
Revenue,Director of Childrens Services,5105698949,14.11.2014,Independ. & Non-Maint. Special Schls & Independ. Specialist Provision,Transport of Clients,152.25,ALPHA (IOW) LTD
Revenue,Director of Childrens Services,5105697843,05.11.2014,Special Educational Needs Transport,Taxis - Contract Hire,243.84,ALPHA (IOW) LTD
Revenue,Director of Childrens Services,5105600525,27.11.2014,Special Educational Needs Transport,Taxis - Contract Hire,200.00,ALPHA (IOW) LTD
Revenue,Director of Childrens Services,5105600525,27.11.2014,Special Educational Needs Transport,Taxis - Contract Hire,304.80,ALPHA (IOW) LTD
Revenue,Director of Childrens Services,5105600525,27.11.2014,Special Educational Needs Transport,Taxis - Contract Hire,267.90,ALPHA (IOW) LTD
Revenue,Director of Childrens Services,5105600525,27.11.2014,Special Educational Needs Transport,Taxis - Contract Hire,457.20,ALPHA (IOW) LTD
Revenue,Director of Childrens Services,5105600525,27.11.2014,Special Educational Needs Transport,Taxis - Contract Hire,461.75,ALPHA (IOW) LTD
Revenue,Director of Childrens Services,5105601381,27.11.2014,Special Educational Needs Transport,Taxis - Contract Hire,376.00,ALPHA (IOW) LTD
Revenue,Director of Childrens Services,5105601381,27.11.2014,Special Educational Needs Transport,Taxis - Contract Hire,355.60,ALPHA (IOW) LTD
Revenue,Director of Childrens Services,5105601381,27.11.2014,Special Educational Needs Transport,Taxis - Contract Hire,396.90,ALPHA (IOW) LTD
Revenue,Director of Childrens Services,5105601381,27.11.2014,Special Educational Needs Transport,Taxis - Contract Hire,313.35,ALPHA (IOW) LTD
Revenue,Director of Childrens Services,5105601381,27.11.2014,Special Educational Needs Transport,Taxis - Contract Hire,321.45,ALPHA (IOW) LTD
Revenue,Director of Childrens Services,5105601381,27.11.2014,Special Educational Needs Transport,Taxis - Contract Hire,320.00,ALPHA (IOW) LTD
Revenue,Director of Childrens Services,5105600525,27.11.2014,Special Educational Needs Transport,Taxis - Contract Hire,188.00,ALPHA (IOW) LTD
Revenue,Director of Childrens Services,5105600525,27.11.2014,Special Educational Needs Transport,Taxis - Contract Hire,376.00,ALPHA (IOW) LTD
Revenue,Director of Childrens Services,5105600525,27.11.2014,Special Educational Needs Transport,Taxis - Contract Hire,355.60,ALPHA (IOW) LTD
Revenue,Director of Childrens Services,5105600525,27.11.2014,Special Educational Needs Transport,Taxis - Contract Hire,396.90,ALPHA (IOW) LTD
Revenue,Director of Childrens Services,5105600525,27.11.2014,Special Educational Needs Transport,Taxis - Contract Hire,313.35,ALPHA (IOW) LTD
Revenue,Director of Childrens Services,5105600525,27.11.2014,Special Educational Needs Transport,Taxis - Contract Hire,321.45,ALPHA (IOW) LTD
Revenue,Director of Childrens Services,5105600525,27.11.2014,Special Educational Needs Transport,Taxis - Contract Hire,320.00,ALPHA (IOW) LTD
Revenue,Director of Childrens Services,5105697843,05.11.2014,Special Educational Needs Transport,Taxis - Contract Hire,200.00,ALPHA (IOW) LTD
Revenue,Director of Childrens Services,5105697843,05.11.2014,Special Educational Needs Transport,Taxis - Contract Hire,376.00,ALPHA (IOW) LTD
Revenue,Director of Childrens Services,5105697843,05.11.2014,Special Educational Needs Transport,Taxis - Contract Hire,355.60,ALPHA (IOW) LTD
Revenue,Director of Childrens Services,5105697843,05.11.2014,Special Educational Needs Transport,Taxis - Contract Hire,396.90,ALPHA (IOW) LTD
Revenue,Director of Childrens Services,5105697843,05.11.2014,Special Educational Needs Transport,Taxis - Contract Hire,313.35,ALPHA (IOW) LTD
Revenue,Director of Childrens Services,5105601381,27.11.2014,Special Educational Needs Transport,Taxis - Contract Hire,267.90,ALPHA (IOW) LTD
Revenue,Director of Childrens Services,5105601381,27.11.2014,Special Educational Needs Transport,Taxis - Contract Hire,457.20,ALPHA (IOW) LTD
Revenue,Director of Childrens Services,5105601381,27.11.2014,Special Educational Needs Transport,Taxis - Contract Hire,461.75,ALPHA (IOW) LTD
Revenue,Director of Childrens Services,5105601381,27.11.2014,Special Educational Needs Transport,Taxis - Contract Hire,304.80,ALPHA (IOW) LTD
Revenue,Director of Childrens Services,5105601381,27.11.2014,Special Educational Needs Transport,Taxis - Contract Hire,188.00,ALPHA (IOW) LTD
Revenue,Director of Childrens Services,5105601381,27.11.2014,Special Educational Needs Transport,Taxis - Contract Hire,200.00,ALPHA (IOW) LTD
Revenue,Director of Childrens Services,5105697843,05.11.2014,Special Educational Needs Transport,Taxis - Contract Hire,321.45,ALPHA (IOW) LTD
Revenue,Director of Childrens Services,5105697843,05.11.2014,Special Educational Needs Transport,Taxis - Contract Hire,256.00,ALPHA (IOW) LTD
Revenue,Director of Childrens Services,5105697843,05.11.2014,Special Educational Needs Transport,Taxis - Contract Hire,241.11,ALPHA (IOW) LTD
Revenue,Director of Childrens Services,5105697843,05.11.2014,Special Educational Needs Transport,Taxis - Contract Hire,365.76,ALPHA (IOW) LTD
Revenue,Director of Childrens Services,5105697843,05.11.2014,Special Educational Needs Transport,Taxis - Contract Hire,369.40,ALPHA (IOW) LTD
Revenue,Director of Childrens Services,5105697843,05.11.2014,Special Educational Needs Transport,Taxis - Contract Hire,150.40,ALPHA (IOW) LTD
Revenue,Director of Childrens Services,5105697843,05.11.2014,Home to School Transport,Taxis - Contract Hire,203.20,ALPHA (IOW) LTD
Revenue,Director of Childrens Services,5105697843,05.11.2014,Home to School Transport,Taxis - Contract Hire,314.95,ALPHA (IOW) LTD
Revenue,Director of Childrens Services,5105697843,05.11.2014,Home to School Transport,Taxis - Contract Hire,256.95,ALPHA (IOW) LTD
Revenue,Director of Childrens Services,5105601381,27.11.2014,Home to School Transport,Taxis - Contract Hire,396.90,ALPHA (IOW) LTD
Revenue,Director of Childrens Services,5105601381,27.11.2014,Home to School Transport,Taxis - Contract Hire,254.00,ALPHA (IOW) LTD
Revenue,Director of Childrens Services,5105697843,05.11.2014,Home to School Transport,Taxis - Contract Hire,332.40,ALPHA (IOW) LTD
Revenue,Director of Childrens Services,5105600525,27.11.2014,Home to School Transport,Taxis - Contract Hire,314.95,ALPHA (IOW) LTD
Revenue,Director of Childrens Services,5105600525,27.11.2014,Home to School Transport,Taxis - Contract Hire,428.25,ALPHA (IOW) LTD
Revenue,Director of Childrens Services,5105600525,27.11.2014,Home to School Transport,Taxis - Contract Hire,415.50,ALPHA (IOW) LTD
Revenue,Director of Childrens Services,5105600525,27.11.2014,Home to School Transport,Taxis - Contract Hire,254.00,ALPHA (IOW) LTD
Revenue,Director of Childrens Services,5105601381,27.11.2014,Home to School Transport,Taxis - Contract Hire,314.95,ALPHA (IOW) LTD
Revenue,Director of Childrens Services,5105601381,27.11.2014,Home to School Transport,Taxis - Contract Hire,428.25,ALPHA (IOW) LTD
Revenue,Director of Childrens Services,5105601381,27.11.2014,Home to School Transport,Taxis - Contract Hire,415.50,ALPHA (IOW) LTD
Revenue,Director of Childrens Services,5105600525,27.11.2014,Home to School Transport,Taxis - Contract Hire,396.90,ALPHA (IOW) LTD
Revenue,Director of Childrens Services,5105697843,05.11.2014,Home to School Transport,Taxis - Contract Hire,317.52,ALPHA (IOW) LTD
Revenue,Head of ASC & Community Wellbeing,5105697077,05.11.2014,Learning Disability Residential Care,Charges from Independent Providers,"3,836.84",ALPHAGRANGE LTD
Revenue,Director of Childrens Services,5105697722,05.11.2014,LSCB (Local Safeguarding Childrens Board),Training,"4,653.50",ALTEREGO CREATIVE SOLUTIONS LTD
Revenue,Director of Childrens Services,5105696904,19.11.2014,LSCB (Local Safeguarding Childrens Board),Conference Expenses,56.50,ALTEREGO CREATIVE SOLUTIONS LTD
Revenue,Director of Childrens Services,5105696904,19.11.2014,LSCB (Local Safeguarding Childrens Board),Conference Expenses,996.00,ALTEREGO CREATIVE SOLUTIONS LTD
Revenue,Head of ASC & Community Wellbeing,5105697079,05.11.2014,Elderly Frail Residential Care,Charges from Independent Providers,"1,781.36",ANCONA CARE HOME
Revenue,Head of ASC & Community Wellbeing,5105697079,05.11.2014,Elderly Frail Residential Care,Charges from Independent Providers,"2,093.84",ANCONA CARE HOME
Revenue,Head of ASC & Community Wellbeing,5105697079,05.11.2014,Elderly Frail Residential Care,Charges from Independent Providers,"1,700.44",ANCONA CARE HOME
Revenue,Head of ASC & Community Wellbeing,5105697079,05.11.2014,Elderly Mentally Ill Residential Care,Charges from Independent Providers,"1,781.36",ANCONA CARE HOME
Revenue,Head of ASC & Community Wellbeing,5105697079,05.11.2014,Elderly Mentally Ill Residential Care,Charges from Independent Providers,"1,781.36",ANCONA CARE HOME
Revenue,Head of ASC & Community Wellbeing,5105697079,05.11.2014,REDACTED PERSONAL DATA,Order Settlement to Bal Sht GL,"2,093.84",ANCONA CARE HOME
Revenue,Chief Fire Officer,5105600130,27.11.2014,Fire Technical Support,Vehicle Maintenance Costs,4.45,ANGLOCO LTD
Revenue,Chief Fire Officer,5105600130,27.11.2014,Fire Technical Support,Vehicle Maintenance Costs,44.02,ANGLOCO LTD
Revenue,Chief Fire Officer,5105600130,27.11.2014,Fire Technical Support,Vehicle Maintenance Costs,22.50,ANGLOCO LTD
Revenue,Chief Fire Officer,5105697874,07.11.2014,Fire Technical Support,Vehicle Maintenance Costs,61.89,ANGLOCO LTD
Revenue,Chief Fire Officer,5105697874,07.11.2014,Fire Technical Support,Vehicle Maintenance Costs,12.45,ANGLOCO LTD
Revenue,Chief Fire Officer,5105697874,07.11.2014,Fire Technical Support,Vehicle Maintenance Costs,29.25,ANGLOCO LTD
Revenue,Chief Fire Officer,5105697874,07.11.2014,Fire Technical Support,Vehicle Maintenance Costs,15.00,ANGLOCO LTD
Revenue,Head of Exchequer Services,5105601082,27.11.2014,Staff Benefits,Payment to Private Contractors,225.00,REDACTED PERSONAL DATA
Revenue,Head of Economy & Tourism,5105600430,27.11.2014,Print Unit,Printing Costs,21.09,ANTALIS MCNAUGHTON
Revenue,Head of Economy & Tourism,5105600430,27.11.2014,Print Unit,Printing Costs,58.40,ANTALIS MCNAUGHTON
Revenue,Head of Economy & Tourism,5105600430,27.11.2014,Print Unit,Printing Costs,19.87,ANTALIS MCNAUGHTON
Revenue,Head of Economy & Tourism,5105697754,05.11.2014,Print Unit,Printing Costs,93.20,ANTALIS MCNAUGHTON
Revenue,Head of Economy & Tourism,5105697754,05.11.2014,Print Unit,Printing Costs,58.40,ANTALIS MCNAUGHTON
Revenue,Head of Economy & Tourism,5105697754,05.11.2014,Print Unit,Printing Costs,63.48,ANTALIS MCNAUGHTON
Revenue,Head of Economy & Tourism,5105699679,14.11.2014,Print Unit,Printing Costs,28.12,ANTALIS MCNAUGHTON
Revenue,Head of Economy & Tourism,5105699679,14.11.2014,Print Unit,Printing Costs,46.60,ANTALIS MCNAUGHTON
Revenue,Head of Economy & Tourism,5105698675,12.11.2014,Print Unit,Printing Costs,27.60,ANTALIS MCNAUGHTON
Revenue,Head of Economy & Tourism,5105698675,12.11.2014,Print Unit,Printing Costs,116.50,ANTALIS MCNAUGHTON
Revenue,Head of Economy & Tourism,5105698470,07.11.2014,Print Unit,Printing Costs,90.00,ANTALIS MCNAUGHTON
Revenue,Head of Corp Gov & Monitoring Officer,5105697723,05.11.2014,Coroner,Payment to Private Contractors,180.00,HASELEY MANOR
Revenue,Head of Corp Gov & Monitoring Officer,5105697723,05.11.2014,Coroner,Payment to Private Contractors,420.00,HASELEY MANOR
Revenue,Chief Fire Officer,5105600731,27.11.2014,LIFE Project,Operational Equipment,629.03,APOLLO BLINDS IOW
Revenue,Head of Economy & Tourism,5105601676,27.11.2014,Estuaries Officer,Payment to Private Contractors,"3,500.00",ARC CONSULTING LTD
Revenue,Head of Economy & Tourism,5105699672,14.11.2014,Corporate Property Maintenance Team,Clothing & Laundry,314.98,ARCO LTD
Revenue,Head of Economy & Tourism,5105699668,14.11.2014,Corporate Property Maintenance Team,Clothing & Laundry,5.85,ARCO LTD
Revenue,Head of Economy & Tourism,5105601398,27.11.2014,Medina Leisure Centre,Clothing & Laundry,21.52,ARCO LTD
Revenue,Chief Fire Officer,5105601675,27.11.2014,Fire Technical Support,Vehicle Maintenance Costs,23.12,ARCO LTD
Revenue,Chief Fire Officer,5105601675,27.11.2014,Fire Technical Support,Vehicle Maintenance Costs,23.12,ARCO LTD
Revenue,Head of Planning & Regulatory Services,5105697727,05.11.2014,Environmental Health - Geographical Team,Operational Equipment,18.16,ARCO LTD
Revenue,Head of Planning & Regulatory Services,5105697727,05.11.2014,Environmental Health - Geographical Team,Operational Equipment,18.16,ARCO LTD
Revenue,Managing Director & Head of Paid Service,5105698445,07.11.2014,Contraception,Payment to Private Contractors,330.00,ARGYLL HOUSE SURGERY
Revenue,Managing Director & Head of Paid Service,5105698445,07.11.2014,NHS Health Check Programme,Payment to Private Contractors,575.00,ARGYLL HOUSE SURGERY
Revenue,Head of ASC & Community Wellbeing,5105698387,12.11.2014,Adelaide Resource Centre,Maintenance of Operational Equipment,426.00,ARJO MED AB LTD
Revenue,Head of Economy & Tourism,5105699059,12.11.2014,Crematorium,Grounds Maintenance,41.65,ASHDOWN SUPPLIES
Revenue,Director of Childrens Services,5105600331,27.11.2014,Workforce Development Schools,Training,832.35,ASPIRO EDUCATION LIMITED
Revenue,Head of Economy & Tourism,5105698632,12.11.2014,Historic Environment Record,Professional Subscriptions,140.00,ASSOCIATION OF LOCAL GOVERNMENT ARCHAEOLOGICAL OFFICERS
Revenue,Head of HR & Organisational Change,5105698817,14.11.2014,"Seaclose Offices, Newport",Prop Svs only - Day to day mtce,169.00,ASSA ABLOY ENTRANCE SYSTEMS LTD
Revenue,Head of HR & Organisational Change,5105698419,07.11.2014,"Westridge, Ryde",Property Services - Planned Maintenance,99.46,ASSA ABLOY ENTRANCE SYSTEMS LTD
Revenue,Head of ASC & Community Wellbeing,5105698966,12.11.2014,Gouldings Resource Centre,Prop Svs only - Day to day mtce,157.00,ASSA ABLOY ENTRANCE SYSTEMS LTD
Revenue,Head of Economy & Tourism,5105601144,27.11.2014,Sandown Library,Prop Svs only - Day to day mtce,131.49,ASSA ABLOY ENTRANCE SYSTEMS LTD
Revenue,Director of Childrens Services,5105600722,27.11.2014,In-house Fostering,Support Children,"1,075.90",ASSESSMENT & QUALIFICATION ALLIANCE
Revenue,Head of Corp Gov & Monitoring Officer,5105600329,27.11.2014,Electoral Registration Office,Training,715.00,ASSOCIATION OF ELECTORAL ADMINISTRATORS
Revenue,Chief Fire Officer,5105601160,27.11.2014,Fire Technical Support,Vehicle Maintenance Costs,110.46,ATS EUROMASTER LTD
Revenue,Chief Fire Officer,5105601160,27.11.2014,Fire Technical Support,Vehicle Maintenance Costs,4.35,ATS EUROMASTER LTD
Revenue,Chief Fire Officer,5105601160,27.11.2014,Fire Technical Support,Vehicle Maintenance Costs,1.16,ATS EUROMASTER LTD
Revenue,Chief Fire Officer,5105601160,27.11.2014,Fire Technical Support,Vehicle Maintenance Costs,1.86,ATS EUROMASTER LTD
Revenue,Director of Childrens Services,5105696853,07.11.2014,7740 - HW06 EJD,Vehicle Maintenance Costs,281.56,ATS EUROMASTER LTD
Revenue,Director of Childrens Services,5105696855,07.11.2014,7740 - HW06 EJD,Vehicle Maintenance Costs,-140.78,ATS EUROMASTER LTD
Revenue,Head of ASC & Community Wellbeing,5105697050,05.11.2014,Elderly Frail Residential Care,Charges from Independent Providers,"2,093.84",AUTUMN HOUSE CARE LTD
Revenue,Head of ASC & Community Wellbeing,5105698705,12.11.2014,Elderly Frail Residential Care,Charges from Independent Providers,"1,645.16",AUTUMN HOUSE CARE LTD
Revenue,Head of ASC & Community Wellbeing,5105698705,12.11.2014,Elderly Frail Residential Care,Charges from Independent Providers,"4,187.68",AUTUMN HOUSE CARE LTD
Revenue,Head of ASC & Community Wellbeing,5105600144,27.11.2014,Elderly Mentally Ill Residential Care,Charges from Independent Providers,"2,243.40",AUTUMN HOUSE CARE LTD
Revenue,Head of ASC & Community Wellbeing,5105600144,27.11.2014,Elderly Mentally Ill Residential Care,Charges from Independent Providers,"10,469.20",AUTUMN HOUSE CARE LTD
Revenue,Head of ASC & Community Wellbeing,5105697050,05.11.2014,Elderly Mentally Ill Residential Care,Charges from Independent Providers,"2,093.84",AUTUMN HOUSE CARE LTD
Revenue,Head of ASC & Community Wellbeing,5105697050,05.11.2014,Elderly Mentally Ill Residential Care,Charges from Independent Providers,"2,093.84",AUTUMN HOUSE CARE LTD
Revenue,Head of ASC & Community Wellbeing,5105697050,05.11.2014,Elderly Mentally Ill Residential Care,Charges from Independent Providers,"2,093.84",AUTUMN HOUSE CARE LTD
Revenue,Head of ASC & Community Wellbeing,5105697050,05.11.2014,Elderly Mentally Ill Residential Care,Charges from Independent Providers,"1,781.36",AUTUMN HOUSE CARE LTD
Revenue,Head of ASC & Community Wellbeing,5105697050,05.11.2014,Elderly Mentally Ill Residential Care,Charges from Independent Providers,"2,093.84",AUTUMN HOUSE CARE LTD
Revenue,Head of ASC & Community Wellbeing,5105697050,05.11.2014,Elderly Mentally Ill Residential Care,Charges from Independent Providers,"2,093.84",AUTUMN HOUSE CARE LTD
Revenue,Head of ASC & Community Wellbeing,5105697050,05.11.2014,Elderly Mentally Ill Residential Care,Charges from Independent Providers,"1,781.36",AUTUMN HOUSE CARE LTD
Revenue,Head of ASC & Community Wellbeing,5105697050,05.11.2014,Elderly Mentally Ill Residential Care,Charges from Independent Providers,"2,093.84",AUTUMN HOUSE CARE LTD
Revenue,Head of ASC & Community Wellbeing,5105697050,05.11.2014,Elderly Mentally Ill Residential Care,Charges from Independent Providers,"1,781.36",AUTUMN HOUSE CARE LTD
Revenue,Head of ASC & Community Wellbeing,5105697050,05.11.2014,Elderly Mentally Ill Residential Care,Charges from Independent Providers,"2,093.84",AUTUMN HOUSE CARE LTD
Revenue,Head of ASC & Community Wellbeing,5105697050,05.11.2014,Elderly Mentally Ill Residential Care,Charges from Independent Providers,"1,781.36",AUTUMN HOUSE CARE LTD
Revenue,Head of ASC & Community Wellbeing,5105697050,05.11.2014,Elderly Mentally Ill Residential Care,Charges from Independent Providers,"2,093.84",AUTUMN HOUSE CARE LTD
Revenue,Head of ASC & Community Wellbeing,5105697050,05.11.2014,Elderly Mentally Ill Residential Care,Charges from Independent Providers,"2,093.84",AUTUMN HOUSE CARE LTD
Revenue,Head of ASC & Community Wellbeing,5105697050,05.11.2014,Elderly Mentally Ill Residential Care,Charges from Independent Providers,"2,093.84",AUTUMN HOUSE CARE LTD
Revenue,Head of ASC & Community Wellbeing,5105697050,05.11.2014,Elderly Mentally Ill Residential Care,Charges from Independent Providers,"2,093.84",AUTUMN HOUSE CARE LTD
Revenue,Head of ASC & Community Wellbeing,5105697050,05.11.2014,Elderly Mentally Ill Residential Care,Charges from Independent Providers,"2,093.84",AUTUMN HOUSE CARE LTD
Revenue,Head of ASC & Community Wellbeing,5105697050,05.11.2014,Elderly Mentally Ill Residential Care,Charges from Independent Providers,"2,093.84",AUTUMN HOUSE CARE LTD
Revenue,Head of ASC & Community Wellbeing,5105697050,05.11.2014,Elderly Mentally Ill Residential Care,Charges from Independent Providers,"2,093.84",AUTUMN HOUSE CARE LTD
Revenue,Head of ASC & Community Wellbeing,5105697050,05.11.2014,Elderly Mentally Ill Residential Care,Charges from Independent Providers,"2,093.84",AUTUMN HOUSE CARE LTD
Revenue,Head of ASC & Community Wellbeing,5105697050,05.11.2014,Elderly Mentally Ill Residential Care,Charges from Independent Providers,"2,093.84",AUTUMN HOUSE CARE LTD
Revenue,Head of ASC & Community Wellbeing,5105697050,05.11.2014,Elderly Mentally Ill Residential Care,Charges from Independent Providers,"2,093.84",AUTUMN HOUSE CARE LTD
Revenue,Head of ASC & Community Wellbeing,5105697050,05.11.2014,Elderly Mentally Ill Residential Care,Charges from Independent Providers,"2,093.84",AUTUMN HOUSE CARE LTD
Revenue,Head of ASC & Community Wellbeing,5105697050,05.11.2014,Mental Health Residential Care,Charges from Independent Providers,"1,700.44",AUTUMN HOUSE CARE LTD
Revenue,Head of ASC & Community Wellbeing,5105600652,27.11.2014,Mental Health Residential Care,Charges from Independent Providers,"1,700.44",AUTUMN HOUSE CARE LTD
Revenue,Head of ASC & Community Wellbeing,5105697050,05.11.2014,Physical Disability Residential Care,Charges from Independent Providers,"2,093.84",AUTUMN HOUSE CARE LTD
Revenue,Director of Childrens Services,5105697848,05.11.2014,Thompson House Tuition Centre (PRU),Professional Services,419.75,AVON VALLEY COLLEGE
Revenue,Director of Childrens Services,5105697848,05.11.2014,Clatterford Pupil Referral Unit (PRU),Professional Services,419.75,AVON VALLEY COLLEGE
Revenue,Director of Childrens Services,5105600776,27.11.2014,Leaving Care Costs,Accommodation Costs - Service Users,50.00,REDACTED PERSONAL DATA
Revenue,Director of Childrens Services,5105601488,27.11.2014,Leaving Care Costs,Accommodation Costs - Service Users,50.00,REDACTED PERSONAL DATA
Revenue,Director of Childrens Services,5105698045,07.11.2014,Leaving Care Costs,Accommodation Costs - Service Users,50.00,REDACTED PERSONAL DATA
Revenue,Director of Childrens Services,5105699711,14.11.2014,Leaving Care Costs,Accommodation Costs - Service Users,50.00,REDACTED PERSONAL DATA
Revenue,Head of ASC & Community Wellbeing,5105697064,05.11.2014,Learning Disability Residential Care,Charges from Independent Providers,"1,894.76",REDACTED PERSONAL DATA
Revenue,Head of ASC & Community Wellbeing,5105697064,05.11.2014,Learning Disability Residential Care,Charges from Independent Providers,"1,894.76",REDACTED PERSONAL DATA
Revenue,Head of ASC & Community Wellbeing,5105697064,05.11.2014,Learning Disability Residential Care,Charges from Independent Providers,"2,745.40",REDACTED PERSONAL DATA
Revenue,Head of ASC & Community Wellbeing,5105600995,27.11.2014,Leaseholds by LA,Accommodation Costs - Leaseholder Payments,815.49,REDACTED PERSONAL DATA
Revenue,Head of Exchequer Services,5105601067,27.11.2014,Staff Benefits,Payment to Private Contractors,243.00,REDACTED PERSONAL DATA
Revenue,Head of Exchequer Services,5105601067,27.11.2014,Staff Benefits,Payment to Private Contractors,100.00,REDACTED PERSONAL DATA
Revenue,Head of Exchequer Services,5105601067,27.11.2014,Staff Benefits,Payment to Private Contractors,50.00,REDACTED PERSONAL DATA
Revenue,Head of ASC & Community Wellbeing,5105601002,27.11.2014,Leaseholds by LA,Accommodation Costs - Leaseholder Payments,799.50,REDACTED PERSONAL DATA
Revenue,Head of ASC & Community Wellbeing,5105601002,27.11.2014,Leaseholds by LA,Accommodation Costs - Leaseholder Payments,888.33,REDACTED PERSONAL DATA
Revenue,Head of ASC & Community Wellbeing,5105601002,27.11.2014,Leaseholds by LA,Accommodation Costs - Leaseholder Payments,866.67,REDACTED PERSONAL DATA
Revenue,Head of ASC & Community Wellbeing,5105601002,27.11.2014,Leaseholds by LA,Accommodation Costs - Leaseholder Payments,866.67,REDACTED PERSONAL DATA
Revenue,Head of ASC & Community Wellbeing,5105601002,27.11.2014,Leaseholds by LA,Accommodation Costs - Leaseholder Payments,799.50,REDACTED PERSONAL DATA
Revenue,Director of Childrens Services,5105699653,14.11.2014,Purchased Residential,Charges from Independent Providers,"13,263.57",BACK ON TRACK
Revenue,Head of HR & Organisational Change,5105697906,07.11.2014,"Enterprise House, Newport",Payment to Contractors - Capital,"1,712.76",BALFOUR BEATTY
Revenue,Head of HR & Organisational Change,5105697961,05.11.2014,"Civic Centre,Sandown",Prop Svs only - Day to day mtce,"1,007.57",BALFOUR BEATTY
Revenue,Head of HR & Organisational Change,5105698403,07.11.2014,"Civic Centre,Sandown",Property Services - Planned Maintenance,372.37,BALFOUR BEATTY
Capital,Head of HR & Organisational Change,5105698463,07.11.2014,Management of Asbestos,Payment to Contractors - Capital,892.00,BALFOUR BEATTY
Revenue,Head of ASC & Community Wellbeing,5105697988,07.11.2014,S75 Integrated Community Equipment Store,Fixtures and Fittings,523.23,BALFOUR BEATTY
Revenue,Head of ASC & Community Wellbeing,5105698460,07.11.2014,S75 Integrated Community Equipment Store,Fixtures and Fittings,368.00,BALFOUR BEATTY
Revenue,Head of ASC & Community Wellbeing,5105698447,07.11.2014,Adelaide Resource Centre,Prop Svs only - Day to day mtce,319.28,BALFOUR BEATTY
Revenue,Head of ASC & Community Wellbeing,5105698390,07.11.2014,Adelaide Resource Centre,Property Services - Planned Maintenance,240.00,BALFOUR BEATTY
Revenue,Head of ASC & Community Wellbeing,5105698370,07.11.2014,Adelaide Resource Centre,Property Services - Planned Maintenance,778.02,BALFOUR BEATTY
Revenue,Head of ASC & Community Wellbeing,5105698457,07.11.2014,Gouldings Resource Centre,Property Services - Planned Maintenance,450.75,BALFOUR BEATTY
Revenue,Head of ASC & Community Wellbeing,5105698365,07.11.2014,Gouldings Resource Centre,Property Services - Planned Maintenance,288.00,BALFOUR BEATTY
Revenue,Head of ASC & Community Wellbeing,5105698454,07.11.2014,Westminster House,Property Services - Planned Maintenance,232.98,BALFOUR BEATTY
Revenue,Head of ASC & Community Wellbeing,5105698398,07.11.2014,Mental Health Day Services,Property Services - Planned Maintenance,326.39,BALFOUR BEATTY
Revenue,Head of Economy & Tourism,5105697964,05.11.2014,Cowes Library,Prop Svs only - Day to day mtce,403.57,BALFOUR BEATTY
Revenue,Head of Economy & Tourism,5105697953,05.11.2014,East Cowes Library,Prop Svs only - Day to day mtce,219.99,BALFOUR BEATTY
Revenue,Head of Economy & Tourism,5105698374,07.11.2014,Sandown Library,Prop Svs only - Day to day mtce,241.74,BALFOUR BEATTY
Revenue,Head of Economy & Tourism,5105698455,07.11.2014,Cothey Bottom Store RYDE,Property Services - Planned Maintenance,221.49,BALFOUR BEATTY
Revenue,Head of Economy & Tourism,5105698393,07.11.2014,Dinosaur Isle Museum (Sandown Geology),Property Services - Planned Maintenance,414.76,BALFOUR BEATTY
Revenue,Head of Economy & Tourism,5105698332,07.11.2014,Dinosaur Isle Museum (Sandown Geology),Prop Svs only - Day to day mtce,202.53,BALFOUR BEATTY
Revenue,Head of Economy & Tourism,5105697898,05.11.2014,Archaeology,Prop Svs only - Day to day mtce,229.44,BALFOUR BEATTY
Revenue,Head of Economy & Tourism,5105698380,07.11.2014,The Heights,Prop Svs only - Day to day mtce,879.00,BALFOUR BEATTY
Revenue,Head of Economy & Tourism,5105697913,05.11.2014,Medina Leisure Centre,Prop Svs only - Day to day mtce,483.62,BALFOUR BEATTY
Revenue,Head of Economy & Tourism,5105697969,05.11.2014,Westridge Squash Courts,Prop Svs only - Day to day mtce,298.65,BALFOUR BEATTY
Revenue,Director of Childrens Services,5105698451,07.11.2014,Youth- Newport,Property Services - Planned Maintenance,208.15,BALFOUR BEATTY
Revenue,Director of Childrens Services,5105698356,07.11.2014,Beaulieu House,Minor Works,527.01,BALFOUR BEATTY
Revenue,Director of Childrens Services,5105698385,07.11.2014,Children's Services Strategic Management,Minor Works,289.83,BALFOUR BEATTY
Revenue,Director of Childrens Services,5105697946,05.11.2014,Childrens Centres Maintenance,Minor Works,351.72,BALFOUR BEATTY
Revenue,Head of Finance & S151 Officer,5105698401,07.11.2014,Public Conveniences - General,Prop Svs only - Day to day mtce,318.71,BALFOUR BEATTY
Revenue,Head of Finance & S151 Officer,5105698352,07.11.2014,Public Conveniences - General,Prop Svs only - Day to day mtce,326.26,BALFOUR BEATTY
Revenue,Chief Fire Officer,5105688412,05.11.2014,Deputy Chief Fire Office,Prop Svs only - Day to day mtce,273.20,BALFOUR BEATTY
Revenue,Chief Fire Officer,5105697968,05.11.2014,Deputy Chief Fire Office,Prop Svs only - Day to day mtce,278.58,BALFOUR BEATTY
Revenue,Chief Fire Officer,5105697956,05.11.2014,Deputy Chief Fire Office,Prop Svs only - Day to day mtce,419.61,BALFOUR BEATTY
Revenue,Chief Fire Officer,5105698014,07.11.2014,Deputy Chief Fire Office,Prop Svs only - Day to day mtce,352.08,BALFOUR BEATTY
Revenue,Chief Fire Officer,5105698459,12.11.2014,Deputy Chief Fire Office,Prop Svs only - Day to day mtce,"1,383.00",BALFOUR BEATTY
Revenue,Chief Fire Officer,5105698347,07.11.2014,Deputy Chief Fire Office,Prop Svs only - Day to day mtce,267.46,BALFOUR BEATTY
Revenue,Chief Fire Officer,5105601146,27.11.2014,Fire Technical Support,Payment to Private Contractors,"6,683.45",BALLYCLARE LTD
Revenue,Director of Childrens Services,5105698483,07.11.2014,Family Support Work,Payment to Private Contractors,"41,779.25",BARNARDOS
Revenue,Head of HR & Organisational Change,5105699596,12.11.2014,Corporate Stores,Sundry Office Expenses,707.14,BARTLETTS SERVICE STATION
Revenue,Head of HR & Organisational Change,5105699598,12.11.2014,Corporate Stores,Sundry Office Expenses,730.71,BARTLETTS SERVICE STATION
Revenue,Head of Economy & Tourism,5105697999,14.11.2014,Rights of Way Operations,Vehicle Maintenance Costs,270.00,BARTLETTS SERVICE STATION
Revenue,Head of Economy & Tourism,5105697970,27.11.2014,Rights of Way Operations,Vehicle Maintenance Costs,100.00,BARTLETTS SERVICE STATION
Revenue,Chief Fire Officer,5105601632,27.11.2014,Diversity & Workforce,Operational Equipment,225.00,BARTLETTS SERVICE STATION
Revenue,Chief Fire Officer,5105600661,27.11.2014,Diversity & Workforce,Operational Equipment,150.00,BARTLETTS SERVICE STATION
Revenue,Chief Fire Officer,5105600399,27.11.2014,Diversity & Workforce,Operational Equipment,60.00,BARTLETTS SERVICE STATION
Revenue,Chief Fire Officer,5105600401,27.11.2014,Diversity & Workforce,Operational Equipment,120.00,BARTLETTS SERVICE STATION
Revenue,Head of Exchequer Services,5105601047,27.11.2014,Staff Benefits,Payment to Private Contractors,12.00,BARTON PRIMARY & EARLY YEARS
Revenue,Head of Exchequer Services,5105601047,27.11.2014,Staff Benefits,Payment to Private Contractors,50.00,BARTON PRIMARY & EARLY YEARS
Revenue,Head of Exchequer Services,5105601047,27.11.2014,Staff Benefits,Payment to Private Contractors,11.67,BARTON PRIMARY & EARLY YEARS
Revenue,Director of Childrens Services,5105698490,07.11.2014,In-house Fostering,Advertising & Publicity,716.00,BEACON MEDIA LIMITED
Revenue,Director of Childrens Services,5105698406,07.11.2014,Support for Looked After Children - Disabled Childrens Team,Transport of Clients,840.00,BEACON TAXIS
Revenue,Director of Childrens Services,5105600552,27.11.2014,Support for Looked After Children - Disabled Childrens Team,Transport of Clients,600.00,BEACON TAXIS
Revenue,Director of Childrens Services,5105601149,27.11.2014,Independ. & Non-Maint. Special Schls & Independ. Specialist Provision,Transport of Clients,600.00,BEACON TAXIS
Revenue,Head of ASC & Community Wellbeing,5105697272,05.11.2014,Elderly Mentally Ill Nursing Mainland,Charges from Independent Providers,"2,269.40",BEAUMONT LODGE LTD
Revenue,Head of ASC & Community Wellbeing,5105600478,27.11.2014,Community Laundry Service,Clothing & Laundry,13.74,BERENDSEN
Revenue,Head of ASC & Community Wellbeing,5105694132,19.11.2014,Community Laundry Service,Clothing & Laundry,13.74,BERENDSEN
Revenue,Head of ASC & Community Wellbeing,5105694158,19.11.2014,Community Laundry Service,Clothing & Laundry,13.74,BERENDSEN
Revenue,Head of ASC & Community Wellbeing,5105694159,19.11.2014,Community Laundry Service,Clothing & Laundry,13.74,BERENDSEN
Revenue,Head of ASC & Community Wellbeing,5105689227,19.11.2014,Community Laundry Service,Clothing & Laundry,13.74,BERENDSEN
Revenue,Head of ASC & Community Wellbeing,5105699639,19.11.2014,Community Laundry Service,Clothing & Laundry,13.74,BERENDSEN
Revenue,Head of ASC & Community Wellbeing,5105699974,27.11.2014,Community Laundry Service,Clothing & Laundry,13.74,BERENDSEN
Revenue,Head of ASC & Community Wellbeing,5105698647,12.11.2014,B&B Properties,Accommodation Costs - Bed & Breakfast,"3,399.00",BERTRAM LODGE
Revenue,Head of Exchequer Services,5105600577,27.11.2014,Revenues & Benefits Operational Support,Sundry Office Expenses,32.40,BETA PAK LTD
Revenue,Head of ASC & Community Wellbeing,5105699044,12.11.2014,Downside Community & Learning Centre,Consumable Cleaning Materials,26.84,BETA PAK LTD
Revenue,Head of ASC & Community Wellbeing,5105699044,12.11.2014,Downside Community & Learning Centre,Consumable Cleaning Materials,8.16,BETA PAK LTD
Revenue,Head of ASC & Community Wellbeing,5105699044,12.11.2014,Downside Community & Learning Centre,Consumable Cleaning Materials,3.14,BETA PAK LTD
Revenue,Head of ASC & Community Wellbeing,5105699044,12.11.2014,Downside Community & Learning Centre,Consumable Cleaning Materials,19.97,BETA PAK LTD
Revenue,Head of ASC & Community Wellbeing,5105699044,12.11.2014,Downside Community & Learning Centre,Consumable Cleaning Materials,11.21,BETA PAK LTD
Revenue,Head of ASC & Community Wellbeing,5105601664,27.11.2014,Downside Community & Learning Centre,Consumable Cleaning Materials,39.90,BETA PAK LTD
Revenue,Head of ASC & Community Wellbeing,5105601664,27.11.2014,Downside Community & Learning Centre,Consumable Cleaning Materials,8.16,BETA PAK LTD
Revenue,Head of ASC & Community Wellbeing,5105601664,27.11.2014,Downside Community & Learning Centre,Consumable Cleaning Materials,2.17,BETA PAK LTD
Revenue,Head of ASC & Community Wellbeing,5105696299,05.11.2014,31 Carter Avenue,Operational Equipment,56.10,BETA PAK LTD
Revenue,Head of ASC & Community Wellbeing,5105600593,27.11.2014,31 Carter Avenue,Operational Equipment,17.59,BETA PAK LTD
Revenue,Head of ASC & Community Wellbeing,5105600586,27.11.2014,31 Carter Avenue,Operational Equipment,199.36,BETA PAK LTD
Revenue,Head of ASC & Community Wellbeing,5105601178,27.11.2014,31 Carter Avenue,Operational Equipment,7.28,BETA PAK LTD
Revenue,Head of ASC & Community Wellbeing,5105601180,27.11.2014,31 Carter Avenue,Operational Equipment,55.28,BETA PAK LTD
Revenue,Head of ASC & Community Wellbeing,5105600122,27.11.2014,31 Carter Avenue,Operational Equipment,169.19,BETA PAK LTD
Revenue,Head of ASC & Community Wellbeing,5105600266,27.11.2014,Overbrook,Operational Equipment,63.78,BETA PAK LTD
Revenue,Head of ASC & Community Wellbeing,5105600645,27.11.2014,Overbrook,Operational Equipment,127.61,BETA PAK LTD
Revenue,Head of ASC & Community Wellbeing,5105601715,27.11.2014,Overbrook,Operational Equipment,14.33,BETA PAK LTD
Revenue,Head of ASC & Community Wellbeing,5105698371,07.11.2014,Plean Dene,Operational Equipment,46.90,BETA PAK LTD
Revenue,Head of ASC & Community Wellbeing,5105600614,27.11.2014,Plean Dene,Operational Equipment,260.00,BETA PAK LTD
Revenue,Head of ASC & Community Wellbeing,5105698983,19.11.2014,Plean Dene,Operational Equipment,193.33,BETA PAK LTD
Revenue,Head of ASC & Community Wellbeing,5105698983,19.11.2014,Plean Dene,Operational Equipment,45.96,BETA PAK LTD
Revenue,Head of ASC & Community Wellbeing,5105601184,27.11.2014,Saxonbury,Operational Equipment,144.31,BETA PAK LTD
Revenue,Head of ASC & Community Wellbeing,5105600548,27.11.2014,Highmead,Operational Equipment,245.77,BETA PAK LTD
Revenue,Head of ASC & Community Wellbeing,5105698497,07.11.2014,Highmead,Operational Equipment,441.57,BETA PAK LTD
Revenue,Head of ASC & Community Wellbeing,5105697875,05.11.2014,The Laurels,Operational Equipment,40.12,BETA PAK LTD
Revenue,Head of ASC & Community Wellbeing,5105697879,05.11.2014,The Laurels,Operational Equipment,302.82,BETA PAK LTD
Revenue,Head of ASC & Community Wellbeing,5105697887,05.11.2014,The Laurels,Operational Equipment,17.06,BETA PAK LTD
Revenue,Head of ASC & Community Wellbeing,5105697889,05.11.2014,The Laurels,Operational Equipment,10.00,BETA PAK LTD
Revenue,Head of ASC & Community Wellbeing,5105600625,27.11.2014,The Laurels,Operational Equipment,397.31,BETA PAK LTD
Revenue,Head of ASC & Community Wellbeing,5105698482,07.11.2014,Gouldings Resource Centre,Consumable Cleaning Materials,259.98,BETA PAK LTD
Revenue,Head of ASC & Community Wellbeing,5105600502,27.11.2014,Gouldings Resource Centre,Consumable Cleaning Materials,340.02,BETA PAK LTD
Revenue,Head of ASC & Community Wellbeing,5105699967,27.11.2014,Gouldings Resource Centre,Consumable Cleaning Materials,39.62,BETA PAK LTD
Revenue,Head of ASC & Community Wellbeing,5105698479,07.11.2014,Gouldings Resource Centre,Catering Purchases,77.96,BETA PAK LTD
Revenue,Head of ASC & Community Wellbeing,5105601235,27.11.2014,Westminster House,Consumable Cleaning Materials,-9.56,BETA PAK LTD
Revenue,Head of ASC & Community Wellbeing,5105696490,27.11.2014,Westminster House,Consumable Cleaning Materials,9.56,BETA PAK LTD
Revenue,Head of Economy & Tourism,5105697897,05.11.2014,Museums & Collections Management,Operational Equipment,44.00,BETA PAK LTD
Revenue,Head of Economy & Tourism,5105697897,05.11.2014,Museums & Collections Management,Operational Equipment,7.24,BETA PAK LTD
Revenue,Head of Economy & Tourism,5105697899,07.11.2014,The Heights,Maintenance of Operational Equipment,52.50,BETA PAK LTD
Revenue,Head of ASC & Community Wellbeing,5105600174,27.11.2014,Elderly Frail Homecare,Charges from Independent Providers,497.14,BETTER AT HOME IOW LTD
Revenue,Head of ASC & Community Wellbeing,5105600173,27.11.2014,Elderly Frail Homecare,Charges from Independent Providers,"1,350.44",BETTER AT HOME IOW LTD
Revenue,Head of ASC & Community Wellbeing,5105600172,27.11.2014,Elderly Frail Homecare,Charges from Independent Providers,845.88,BETTER AT HOME IOW LTD
Revenue,Head of ASC & Community Wellbeing,5105600171,27.11.2014,Elderly Frail Homecare,Charges from Independent Providers,259.70,BETTER AT HOME IOW LTD
Revenue,Head of ASC & Community Wellbeing,5105698241,07.11.2014,Elderly Frail Homecare,Charges from Independent Providers,"1,298.50",BETTER AT HOME IOW LTD
Revenue,Head of ASC & Community Wellbeing,5105698233,07.11.2014,Elderly Frail Homecare,Charges from Independent Providers,693.77,BETTER AT HOME IOW LTD
Revenue,Head of ASC & Community Wellbeing,5105698245,07.11.2014,Elderly Frail Homecare,Charges from Independent Providers,467.46,BETTER AT HOME IOW LTD
Revenue,Head of ASC & Community Wellbeing,5105698246,07.11.2014,Elderly Frail Homecare,Charges from Independent Providers,697.48,BETTER AT HOME IOW LTD
Revenue,Head of ASC & Community Wellbeing,5105698242,07.11.2014,Elderly Frail Homecare,Charges from Independent Providers,"1,550.78",BETTER AT HOME IOW LTD
Revenue,Head of ASC & Community Wellbeing,5105698219,07.11.2014,Elderly Frail Homecare,Charges from Independent Providers,519.40,BETTER AT HOME IOW LTD
Revenue,Head of ASC & Community Wellbeing,5105698220,07.11.2014,Elderly Frail Homecare,Charges from Independent Providers,259.70,BETTER AT HOME IOW LTD
Revenue,Head of ASC & Community Wellbeing,5105698214,07.11.2014,Elderly Frail Homecare,Charges from Independent Providers,55.65,BETTER AT HOME IOW LTD
Revenue,Head of ASC & Community Wellbeing,5105698213,07.11.2014,Elderly Frail Homecare,Charges from Independent Providers,74.20,BETTER AT HOME IOW LTD
Revenue,Head of ASC & Community Wellbeing,5105698218,07.11.2014,Elderly Frail Homecare,Charges from Independent Providers,244.86,BETTER AT HOME IOW LTD
Revenue,Head of ASC & Community Wellbeing,5105698210,07.11.2014,Elderly Frail Homecare,Charges from Independent Providers,519.40,BETTER AT HOME IOW LTD
Revenue,Head of ASC & Community Wellbeing,5105698204,07.11.2014,Elderly Frail Homecare,Charges from Independent Providers,593.60,BETTER AT HOME IOW LTD
Revenue,Head of ASC & Community Wellbeing,5105698202,07.11.2014,Elderly Frail Homecare,Charges from Independent Providers,704.90,BETTER AT HOME IOW LTD
Revenue,Head of ASC & Community Wellbeing,5105698199,07.11.2014,Elderly Frail Homecare,Charges from Independent Providers,779.10,BETTER AT HOME IOW LTD
Revenue,Head of ASC & Community Wellbeing,5105698198,07.11.2014,Elderly Frail Homecare,Charges from Independent Providers,259.70,BETTER AT HOME IOW LTD
Revenue,Head of ASC & Community Wellbeing,5105698196,07.11.2014,Elderly Frail Homecare,Charges from Independent Providers,519.40,BETTER AT HOME IOW LTD
Revenue,Head of ASC & Community Wellbeing,5105698195,07.11.2014,Elderly Frail Homecare,Charges from Independent Providers,"1,216.88",BETTER AT HOME IOW LTD
Revenue,Head of ASC & Community Wellbeing,5105698188,07.11.2014,Elderly Frail Homecare,Charges from Independent Providers,"1,242.85",BETTER AT HOME IOW LTD
Revenue,Head of ASC & Community Wellbeing,5105698186,07.11.2014,Elderly Frail Homecare,Charges from Independent Providers,"1,113.00",BETTER AT HOME IOW LTD
Revenue,Head of ASC & Community Wellbeing,5105698216,07.11.2014,Elderly Frail Homecare,Charges from Independent Providers,363.58,BETTER AT HOME IOW LTD
Revenue,Head of ASC & Community Wellbeing,5105698217,07.11.2014,Elderly Frail Homecare,Charges from Independent Providers,14.84,BETTER AT HOME IOW LTD
Revenue,Head of ASC & Community Wellbeing,5105698192,07.11.2014,Elderly Frail Homecare,Charges from Independent Providers,534.24,BETTER AT HOME IOW LTD
Revenue,Head of ASC & Community Wellbeing,5105698224,07.11.2014,Elderly Frail Homecare,Charges from Independent Providers,259.70,BETTER AT HOME IOW LTD
Revenue,Head of ASC & Community Wellbeing,5105698225,07.11.2014,Elderly Frail Homecare,Charges from Independent Providers,519.40,BETTER AT HOME IOW LTD
Revenue,Head of ASC & Community Wellbeing,5105698234,07.11.2014,Elderly Frail Homecare,Charges from Independent Providers,389.55,BETTER AT HOME IOW LTD
Revenue,Head of ASC & Community Wellbeing,5105698222,07.11.2014,Elderly Frail Homecare,Charges from Independent Providers,122.43,BETTER AT HOME IOW LTD
Revenue,Head of ASC & Community Wellbeing,5105698209,07.11.2014,Elderly Frail Homecare,Charges from Independent Providers,259.70,BETTER AT HOME IOW LTD
Revenue,Head of ASC & Community Wellbeing,5105698206,07.11.2014,Elderly Frail Homecare,Charges from Independent Providers,704.90,BETTER AT HOME IOW LTD
Revenue,Head of ASC & Community Wellbeing,5105698205,07.11.2014,Elderly Frail Homecare,Charges from Independent Providers,166.95,BETTER AT HOME IOW LTD
Revenue,Head of ASC & Community Wellbeing,5105698203,07.11.2014,Elderly Frail Homecare,Charges from Independent Providers,74.20,BETTER AT HOME IOW LTD
Revenue,Head of ASC & Community Wellbeing,5105698201,07.11.2014,Elderly Frail Homecare,Charges from Independent Providers,"1,176.07",BETTER AT HOME IOW LTD
Revenue,Head of ASC & Community Wellbeing,5105698194,07.11.2014,Elderly Frail Homecare,Charges from Independent Providers,908.95,BETTER AT HOME IOW LTD
Revenue,Head of ASC & Community Wellbeing,5105698190,07.11.2014,Elderly Frail Homecare,Charges from Independent Providers,"1,298.50",BETTER AT HOME IOW LTD
Revenue,Head of ASC & Community Wellbeing,5105698189,07.11.2014,Elderly Frail Homecare,Charges from Independent Providers,"1,194.62",BETTER AT HOME IOW LTD
Revenue,Head of ASC & Community Wellbeing,5105698187,07.11.2014,Elderly Frail Homecare,Charges from Independent Providers,864.43,BETTER AT HOME IOW LTD
Revenue,Head of ASC & Community Wellbeing,5105698193,07.11.2014,Elderly Frail Homecare,Charges from Independent Providers,259.70,BETTER AT HOME IOW LTD
Revenue,Head of ASC & Community Wellbeing,5105698191,07.11.2014,Elderly Frail Homecare,Charges from Independent Providers,519.40,BETTER AT HOME IOW LTD
Revenue,Head of ASC & Community Wellbeing,5105698227,07.11.2014,Elderly Frail Homecare,Charges from Independent Providers,519.40,BETTER AT HOME IOW LTD
Revenue,Head of ASC & Community Wellbeing,5105698200,07.11.2014,Elderly Frail Homecare,Charges from Independent Providers,597.31,BETTER AT HOME IOW LTD
Revenue,Head of ASC & Community Wellbeing,5105698207,07.11.2014,Elderly Frail Homecare,Charges from Independent Providers,278.25,BETTER AT HOME IOW LTD
Revenue,Head of ASC & Community Wellbeing,5105698183,07.11.2014,Elderly Frail Homecare,Charges from Independent Providers,37.10,BETTER AT HOME IOW LTD
Revenue,Head of ASC & Community Wellbeing,5105698184,07.11.2014,Elderly Frail Homecare,Charges from Independent Providers,"1,461.74",BETTER AT HOME IOW LTD
Revenue,Head of ASC & Community Wellbeing,5105698185,07.11.2014,Elderly Frail Homecare,Charges from Independent Providers,"1,869.84",BETTER AT HOME IOW LTD
Revenue,Head of ASC & Community Wellbeing,5105698230,07.11.2014,Elderly Frail Homecare,Charges from Independent Providers,396.97,BETTER AT HOME IOW LTD
Revenue,Head of ASC & Community Wellbeing,5105698197,07.11.2014,Elderly Frail Homecare,Charges from Independent Providers,727.16,BETTER AT HOME IOW LTD
Revenue,Head of ASC & Community Wellbeing,5105698250,07.11.2014,Elderly Frail Homecare,Charges from Independent Providers,519.40,BETTER AT HOME IOW LTD
Revenue,Head of ASC & Community Wellbeing,5105698248,07.11.2014,Elderly Frail Homecare,Charges from Independent Providers,415.52,BETTER AT HOME IOW LTD
Revenue,Head of ASC & Community Wellbeing,5105698248,07.11.2014,Elderly Frail Homecare,Charges from Independent Providers,103.88,BETTER AT HOME IOW LTD
Revenue,Head of ASC & Community Wellbeing,5105698252,07.11.2014,Elderly Frail Homecare,Charges from Independent Providers,103.88,BETTER AT HOME IOW LTD
Revenue,Head of ASC & Community Wellbeing,5105698251,07.11.2014,Elderly Frail Homecare,Charges from Independent Providers,990.57,BETTER AT HOME IOW LTD
Revenue,Head of ASC & Community Wellbeing,5105698215,07.11.2014,Elderly Frail Homecare,Regular Respite Care,148.40,BETTER AT HOME IOW LTD
Revenue,Head of ASC & Community Wellbeing,5105698208,07.11.2014,Elderly Frail Homecare,Regular Respite Care,148.40,BETTER AT HOME IOW LTD
Revenue,Head of ASC & Community Wellbeing,5105698212,07.11.2014,Elderly Frail Homecare,Regular Respite Care,148.40,BETTER AT HOME IOW LTD
Revenue,Head of ASC & Community Wellbeing,5105698211,07.11.2014,Elderly Frail Homecare,Regular Respite Care,267.12,BETTER AT HOME IOW LTD
Revenue,Head of ASC & Community Wellbeing,5105698235,07.11.2014,Elderly Frail Homecare,Regular Respite Care,118.72,BETTER AT HOME IOW LTD
Revenue,Head of ASC & Community Wellbeing,5105698221,07.11.2014,Elderly Frail Homecare,Regular Respite Care,222.60,BETTER AT HOME IOW LTD
Revenue,Head of ASC & Community Wellbeing,5105698244,07.11.2014,Elderly Frail Homecare,Regular Respite Care,148.40,BETTER AT HOME IOW LTD
Revenue,Head of ASC & Community Wellbeing,5105698232,07.11.2014,Elderly Frail Homecare,Regular Respite Care,296.80,BETTER AT HOME IOW LTD
Revenue,Head of ASC & Community Wellbeing,5105698240,07.11.2014,Elderly Frail Homecare,Regular Respite Care,59.36,BETTER AT HOME IOW LTD
Revenue,Head of ASC & Community Wellbeing,5105698249,07.11.2014,Elderly Frail Homecare,Regular Respite Care,89.04,BETTER AT HOME IOW LTD
Revenue,Head of ASC & Community Wellbeing,5105698249,07.11.2014,Elderly Frail Homecare,Regular Respite Care,89.04,BETTER AT HOME IOW LTD
Revenue,Head of ASC & Community Wellbeing,5105698247,07.11.2014,Elderly Frail Homecare,Regular Respite Care,148.40,BETTER AT HOME IOW LTD
Revenue,Head of ASC & Community Wellbeing,5105698238,07.11.2014,Elderly Mentally Ill Homecare,Charges from Independent Providers,"2,411.50",BETTER AT HOME IOW LTD
Revenue,Head of ASC & Community Wellbeing,5105698223,07.11.2014,Elderly Mentally Ill Homecare,Charges from Independent Providers,779.10,BETTER AT HOME IOW LTD
Revenue,Head of ASC & Community Wellbeing,5105698239,07.11.2014,Elderly Mentally Ill Homecare,Charges from Independent Providers,519.40,BETTER AT HOME IOW LTD
Revenue,Head of ASC & Community Wellbeing,5105698237,07.11.2014,Physical Disability Homecare,Charges from Independent Providers,408.10,BETTER AT HOME IOW LTD
Revenue,Head of ASC & Community Wellbeing,5105698231,07.11.2014,Physical Disability Homecare,Charges from Independent Providers,252.28,BETTER AT HOME IOW LTD
Revenue,Head of ASC & Community Wellbeing,5105698243,07.11.2014,Physical Disability Homecare,Charges from Independent Providers,452.62,BETTER AT HOME IOW LTD
Revenue,Head of ASC & Community Wellbeing,5105698226,07.11.2014,Physical Disability Homecare,Charges from Independent Providers,100.17,BETTER AT HOME IOW LTD
Revenue,Head of ASC & Community Wellbeing,5105698229,07.11.2014,Physical Disability Homecare,Charges from Independent Providers,378.42,BETTER AT HOME IOW LTD
Revenue,Head of ASC & Community Wellbeing,5105698228,07.11.2014,Physical Disability Homecare,Charges from Independent Providers,519.40,BETTER AT HOME IOW LTD
Revenue,Head of ASC & Community Wellbeing,5105698236,07.11.2014,Physical Disability Homecare,Regular Respite Care,207.76,BETTER AT HOME IOW LTD
Revenue,Head of Economy & Tourism,5105699031,12.11.2014,Public Libraries Central,Stationery,90.00,BIBLIOTHECA LTD
Revenue,Head of Economy & Tourism,5105699031,12.11.2014,Public Libraries Central,Stationery,10.00,BIBLIOTHECA LTD
Revenue,Head of Economy & Tourism,5105601249,27.11.2014,Public Libraries Central,Stationery,115.64,BIBLIOTHECA LTD
Revenue,Head of HR & Organisational Change,5105698648,12.11.2014,"Civic Centre,Sandown","Refuse Collection, Disposal and Recycling Costs",92.48,BIFFA WASTE SERVICES LTD
Revenue,Head of HR & Organisational Change,5105698676,14.11.2014,"Civic Centre,Sandown","Refuse Collection, Disposal and Recycling Costs",17.39,BIFFA WASTE SERVICES LTD
Revenue,Head of HR & Organisational Change,5105695279,12.11.2014,"Bugle House,Newport","Refuse Collection, Disposal and Recycling Costs",189.55,BIFFA WASTE SERVICES LTD
Revenue,Head of HR & Organisational Change,5105695279,12.11.2014,"Westridge, Ryde","Refuse Collection, Disposal and Recycling Costs",60.00,BIFFA WASTE SERVICES LTD
Revenue,Head of ASC & Community Wellbeing,5105695279,12.11.2014,S75 Integrated Community Equipment Store,"Refuse Collection, Disposal and Recycling Costs",78.88,BIFFA WASTE SERVICES LTD
Revenue,Head of ASC & Community Wellbeing,5105699057,12.11.2014,31 Carter Avenue,"Refuse Collection, Disposal and Recycling Costs",-9.01,BIFFA WASTE SERVICES LTD
Revenue,Head of ASC & Community Wellbeing,5105695279,12.11.2014,31 Carter Avenue,"Refuse Collection, Disposal and Recycling Costs",112.26,BIFFA WASTE SERVICES LTD
Revenue,Head of ASC & Community Wellbeing,5105695279,12.11.2014,Overbrook,"Refuse Collection, Disposal and Recycling Costs",114.50,BIFFA WASTE SERVICES LTD
Revenue,Head of ASC & Community Wellbeing,5105695279,12.11.2014,Seagulls,"Refuse Collection, Disposal and Recycling Costs",83.79,BIFFA WASTE SERVICES LTD
Revenue,Head of ASC & Community Wellbeing,5105695279,12.11.2014,Plean Dene,"Refuse Collection, Disposal and Recycling Costs",200.55,BIFFA WASTE SERVICES LTD
Revenue,Head of ASC & Community Wellbeing,5105695279,12.11.2014,Saxonbury,"Refuse Collection, Disposal and Recycling Costs",97.75,BIFFA WASTE SERVICES LTD
Revenue,Head of ASC & Community Wellbeing,5105695279,12.11.2014,40 Venner Avenue,"Refuse Collection, Disposal and Recycling Costs",5.95,BIFFA WASTE SERVICES LTD
Revenue,Head of ASC & Community Wellbeing,5105695279,12.11.2014,Highmead,"Refuse Collection, Disposal and Recycling Costs",64.33,BIFFA WASTE SERVICES LTD
Revenue,Head of ASC & Community Wellbeing,5105695279,12.11.2014,The Laurels,"Refuse Collection, Disposal and Recycling Costs",64.33,BIFFA WASTE SERVICES LTD
Revenue,Head of ASC & Community Wellbeing,5105695279,12.11.2014,Westminster House,"Refuse Collection, Disposal and Recycling Costs",54.60,BIFFA WASTE SERVICES LTD
Revenue,Head of Economy & Tourism,5105695279,12.11.2014,Leisure Management & Admin,"Refuse Collection, Disposal and Recycling Costs",189.55,BIFFA WASTE SERVICES LTD
Revenue,Head of Economy & Tourism,5105695279,12.11.2014,Public Libraries Central,"Refuse Collection, Disposal and Recycling Costs",576.10,BIFFA WASTE SERVICES LTD
Revenue,Director of Childrens Services,5105695279,12.11.2014,Learning & Development Running Costs,"Refuse Collection, Disposal and Recycling Costs",42.67,BIFFA WASTE SERVICES LTD
Revenue,Head of Economy & Tourism,5105695279,12.11.2014,Cothey Bottom Store RYDE,"Refuse Collection, Disposal and Recycling Costs",30.01,BIFFA WASTE SERVICES LTD
Revenue,Head of Economy & Tourism,5105695279,12.11.2014,Dinosaur Isle Museum (Sandown Geology),"Refuse Collection, Disposal and Recycling Costs",55.08,BIFFA WASTE SERVICES LTD
Revenue,Head of Economy & Tourism,5105695279,12.11.2014,The Heights,"Refuse Collection, Disposal and Recycling Costs",427.75,BIFFA WASTE SERVICES LTD
Revenue,Head of Economy & Tourism,5105695279,12.11.2014,Medina Leisure Centre,"Refuse Collection, Disposal and Recycling Costs",291.69,BIFFA WASTE SERVICES LTD
Revenue,Head of Economy & Tourism,5105695279,12.11.2014,Westridge Squash Courts,"Refuse Collection, Disposal and Recycling Costs",30.01,BIFFA WASTE SERVICES LTD
Revenue,Head of Economy & Tourism,5105695279,12.11.2014,Ryde Harbour,"Refuse Collection, Disposal and Recycling Costs",230.66,BIFFA WASTE SERVICES LTD
Revenue,Head of Economy & Tourism,5105695279,12.11.2014,Seaclose Amusements,"Refuse Collection, Disposal and Recycling Costs",19.44,BIFFA WASTE SERVICES LTD
Revenue,Director of Childrens Services,5105695279,12.11.2014,Family Information Zone,"Refuse Collection, Disposal and Recycling Costs",20.80,BIFFA WASTE SERVICES LTD
Revenue,Director of Childrens Services,5105695279,12.11.2014,Youth Offending Team,"Refuse Collection, Disposal and Recycling Costs",448.00,BIFFA WASTE SERVICES LTD
Revenue,Director of Childrens Services,5105695279,12.11.2014,Specialist Service Business Admin,"Refuse Collection, Disposal and Recycling Costs",195.50,BIFFA WASTE SERVICES LTD
Revenue,Director of Childrens Services,5105695279,12.11.2014,Beaulieu House,"Refuse Collection, Disposal and Recycling Costs",211.50,BIFFA WASTE SERVICES LTD
Revenue,Director of Childrens Services,5105695279,12.11.2014,Parent Partnership,"Refuse Collection, Disposal and Recycling Costs",20.80,BIFFA WASTE SERVICES LTD
Revenue,Director of Childrens Services,5105695279,12.11.2014,Education Participation Team,"Refuse Collection, Disposal and Recycling Costs",65.73,BIFFA WASTE SERVICES LTD
Revenue,Head of Economy & Tourism,5105695279,12.11.2014,Ferry Management,"Refuse Collection, Disposal and Recycling Costs",103.25,BIFFA WASTE SERVICES LTD
Revenue,Head of Economy & Tourism,5105695279,12.11.2014,Fort Victoria,"Refuse Collection, Disposal and Recycling Costs",171.19,BIFFA WASTE SERVICES LTD
Revenue,Head of Economy & Tourism,5105695279,12.11.2014,Newport Harbour Account,"Refuse Collection, Disposal and Recycling Costs",564.66,BIFFA WASTE SERVICES LTD
Revenue,Head of Economy & Tourism,5105695279,12.11.2014,Newport Harbour Account,"Refuse Collection, Disposal and Recycling Costs",122.71,BIFFA WASTE SERVICES LTD
Revenue,Chief Fire Officer,5105698654,12.11.2014,Fire Operations,"Refuse Collection, Disposal and Recycling Costs",152.80,BIFFA WASTE SERVICES LTD
Revenue,Chief Fire Officer,5105698699,19.11.2014,Fire Operations,"Refuse Collection, Disposal and Recycling Costs",40.30,BIFFA WASTE SERVICES LTD
Revenue,Chief Fire Officer,5105698763,19.11.2014,Fire Operations,"Refuse Collection, Disposal and Recycling Costs",81.10,BIFFA WASTE SERVICES LTD
Revenue,Chief Fire Officer,5105699049,19.11.2014,Fire Operations,"Refuse Collection, Disposal and Recycling Costs",134.00,BIFFA WASTE SERVICES LTD
Revenue,Head of Planning & Regulatory Services,5105695279,12.11.2014,Planning Business Support,"Refuse Collection, Disposal and Recycling Costs",195.50,BIFFA WASTE SERVICES LTD
Revenue,Head of Planning & Regulatory Services,5105695279,12.11.2014,Regulatory Management & Admin Support,"Refuse Collection, Disposal and Recycling Costs",116.11,BIFFA WASTE SERVICES LTD
Revenue,Head of Economy & Tourism,5105695279,12.11.2014,Crematorium,"Refuse Collection, Disposal and Recycling Costs",116.11,BIFFA WASTE SERVICES LTD
Revenue,Director of Childrens Services,5105600877,27.11.2014,Leaving Care Costs,Support Children,65.00,REDACTED PERSONAL DATA
Revenue,Director of Childrens Services,5105601588,27.11.2014,Leaving Care Costs,Support Children,65.00,REDACTED PERSONAL DATA
Revenue,Director of Childrens Services,5105698145,07.11.2014,Leaving Care Costs,Support Children,65.00,REDACTED PERSONAL DATA
Revenue,Director of Childrens Services,5105699811,14.11.2014,Leaving Care Costs,Support Children,65.00,REDACTED PERSONAL DATA
Revenue,Head of HR & Organisational Change,5105699671,21.11.2014,ICT Contracts,Computer Software Licencing,"1,200.00",BLAZIE ENGINEERING LTD
Revenue,Director of Childrens Services,5105698639,12.11.2014,Purchased Fostering,Charges from Independent Providers,"3,126.30",BLUE SKY FOSTERING LTD
Revenue,Director of Childrens Services,5105698656,12.11.2014,Purchased Fostering,Charges from Independent Providers,"3,126.30",BLUE SKY FOSTERING LTD
Revenue,Director of Childrens Services,5105698655,12.11.2014,Purchased Fostering,Charges from Independent Providers,"3,126.30",BLUE SKY FOSTERING LTD
Revenue,Director of Childrens Services,5105698758,14.11.2014,Beaulieu House,General Materials,33.50,BOC LTD
Revenue,Head of Economy & Tourism,5105601159,27.11.2014,Ferry Maintenance,Maintenance of Operational Equipment,142.20,BOC LTD
Revenue,Director of Childrens Services,5105699647,14.11.2014,Short Breaks,Charges from Independent Providers,520.00,BODSTER EQUINE ASSISTED LEARN CIC
Revenue,Head of ASC & Community Wellbeing,5105699975,27.11.2014,Overbrook,Catering Purchases,159.12,BOOKER CASH & CARRY LTD
Revenue,Head of ASC & Community Wellbeing,5105699985,27.11.2014,Overbrook,Catering Purchases,148.77,BOOKER CASH & CARRY LTD
Revenue,Head of ASC & Community Wellbeing,5105697844,05.11.2014,Plean Dene,Catering Purchases,220.12,BOOKER CASH & CARRY LTD
Revenue,Head of ASC & Community Wellbeing,5105697844,05.11.2014,Plean Dene,Catering Purchases,9.72,BOOKER CASH & CARRY LTD
Revenue,Head of ASC & Community Wellbeing,5105698471,07.11.2014,Plean Dene,Catering Purchases,46.06,BOOKER CASH & CARRY LTD
Revenue,Head of ASC & Community Wellbeing,5105600602,27.11.2014,Plean Dene,Catering Purchases,100.76,BOOKER CASH & CARRY LTD
Revenue,Head of ASC & Community Wellbeing,5105600333,27.11.2014,Plean Dene,Catering Purchases,29.13,BOOKER CASH & CARRY LTD
Revenue,Head of ASC & Community Wellbeing,5105600128,27.11.2014,Plean Dene,Catering Purchases,180.18,BOOKER CASH & CARRY LTD
Revenue,Managing Director & Head of Paid Service,5105600405,27.11.2014,Contraception,Payment to Private Contractors,236.50,BOOTS THE CHEMIST LTD (Ryde)
Revenue,Managing Director & Head of Paid Service,5105600405,27.11.2014,Contraception,Payment to Private Contractors,57.20,BOOTS THE CHEMIST LTD (Ryde)
Revenue,Managing Director & Head of Paid Service,5105600405,27.11.2014,Contraception,Payment to Private Contractors,10.65,BOOTS THE CHEMIST LTD (Ryde)
Revenue,Managing Director & Head of Paid Service,5105600405,27.11.2014,STI Tests & Treatment,Payment to Private Contractors,5.00,BOOTS THE CHEMIST LTD (Ryde)
Revenue,Managing Director & Head of Paid Service,5105600405,27.11.2014,Drug Misuse - Adults,Payment to Private Contractors,647.50,BOOTS THE CHEMIST LTD (Ryde)
Revenue,Managing Director & Head of Paid Service,5105600405,27.11.2014,Drug Misuse - Adults,Payment to Private Contractors,768.00,BOOTS THE CHEMIST LTD (Ryde)
Revenue,Managing Director & Head of Paid Service,5105600417,27.11.2014,Drug Misuse - Adults,Payment to Private Contractors,14.00,BOOTS UK LTD (107 HIGH ST SANDOWN)
Revenue,Managing Director & Head of Paid Service,5105600417,27.11.2014,Drug Misuse - Adults,Payment to Private Contractors,110.00,BOOTS UK LTD (107 HIGH ST SANDOWN)
Revenue,Managing Director & Head of Paid Service,5105600442,27.11.2014,Contraception,Payment to Private Contractors,43.00,BOOTS UK LTD (COWES)
Revenue,Managing Director & Head of Paid Service,5105600442,27.11.2014,Contraception,Payment to Private Contractors,10.40,BOOTS UK LTD (COWES)
Revenue,Managing Director & Head of Paid Service,5105600442,27.11.2014,STI Tests & Treatment,Medical Fees and Staff Welfare,30.00,BOOTS UK LTD (COWES)
Revenue,Managing Director & Head of Paid Service,5105600442,27.11.2014,STI Tests & Treatment,Payment to Private Contractors,5.00,BOOTS UK LTD (COWES)
Revenue,Managing Director & Head of Paid Service,5105600442,27.11.2014,STI Tests & Treatment,Payment to Private Contractors,8.04,BOOTS UK LTD (COWES)
Revenue,Managing Director & Head of Paid Service,5105600442,27.11.2014,Drug Misuse - Adults,Payment to Private Contractors,3.50,BOOTS UK LTD (COWES)
Revenue,Managing Director & Head of Paid Service,5105600419,27.11.2014,Contraception,Payment to Private Contractors,322.50,BOOTS UK LTD (NEWPORT)
Revenue,Managing Director & Head of Paid Service,5105600419,27.11.2014,Contraception,Payment to Private Contractors,78.00,BOOTS UK LTD (NEWPORT)
Revenue,Managing Director & Head of Paid Service,5105600419,27.11.2014,STI Tests & Treatment,Payment to Private Contractors,5.00,BOOTS UK LTD (NEWPORT)
Revenue,Managing Director & Head of Paid Service,5105600415,27.11.2014,Contraception,Payment to Private Contractors,107.50,BOOTS UK LTD (SANDOWN LARGE STORE)
Revenue,Managing Director & Head of Paid Service,5105600415,27.11.2014,Contraception,Payment to Private Contractors,26.00,BOOTS UK LTD (SANDOWN LARGE STORE)
Revenue,Managing Director & Head of Paid Service,5105600415,27.11.2014,Drug Misuse - Adults,Payment to Private Contractors,102.00,BOOTS UK LTD (SANDOWN LARGE STORE)
Revenue,Managing Director & Head of Paid Service,5105600440,27.11.2014,Contraception,Payment to Private Contractors,3.55,BOOTS UK LTD (YLB BEMBRIDGE)
Revenue,Managing Director & Head of Paid Service,5105600440,27.11.2014,Contraception,Payment to Private Contractors,86.00,BOOTS UK LTD (YLB BEMBRIDGE)
Revenue,Managing Director & Head of Paid Service,5105600440,27.11.2014,Contraception,Payment to Private Contractors,20.80,BOOTS UK LTD (YLB BEMBRIDGE)
Revenue,Managing Director & Head of Paid Service,5105694959,07.11.2014,Contraception,Payment to Private Contractors,86.00,BOOTS UK LTD (YLB BEMBRIDGE)
Revenue,Managing Director & Head of Paid Service,5105694959,07.11.2014,Contraception,Payment to Private Contractors,15.60,BOOTS UK LTD (YLB BEMBRIDGE)
Revenue,Managing Director & Head of Paid Service,5105600440,27.11.2014,Drug Misuse - Adults,Payment to Private Contractors,7.00,BOOTS UK LTD (YLB BEMBRIDGE)
Revenue,Managing Director & Head of Paid Service,5105600440,27.11.2014,Drug Misuse - Adults,Payment to Private Contractors,52.00,BOOTS UK LTD (YLB BEMBRIDGE)
Revenue,Managing Director & Head of Paid Service,5105694959,07.11.2014,Drug Misuse - Adults,Payment to Private Contractors,30.00,BOOTS UK LTD (YLB BEMBRIDGE)
Revenue,Head of Economy & Tourism,5105698779,12.11.2014,The Heights,Stock Purchases,109.03,BRAKE BROS LTD
Revenue,Head of Economy & Tourism,5105698258,07.11.2014,The Heights,Stock Purchases,128.37,BRAKE BROS LTD
Revenue,Head of Economy & Tourism,5105698009,07.11.2014,The Heights,Stock Purchases,53.53,BRAKE BROS LTD
Revenue,Head of ASC & Community Wellbeing,5105601026,27.11.2014,Leaseholds by LA,Accommodation Costs - Leaseholder Payments,746.81,BRAMBLE LETTINGS
Revenue,Head of ASC & Community Wellbeing,5105601026,27.11.2014,Leaseholds by LA,Accommodation Costs - Leaseholder Payments,746.81,BRAMBLE LETTINGS
Revenue,Head of ASC & Community Wellbeing,5105601026,27.11.2014,Leaseholds by LA,Accommodation Costs - Leaseholder Payments,746.81,BRAMBLE LETTINGS
Revenue,Head of ASC & Community Wellbeing,5105601026,27.11.2014,Leaseholds by LA,Accommodation Costs - Leaseholder Payments,746.81,BRAMBLE LETTINGS
Revenue,Head of ASC & Community Wellbeing,5105601026,27.11.2014,Leaseholds by LA,Accommodation Costs - Leaseholder Payments,746.81,BRAMBLE LETTINGS
Revenue,Head of ASC & Community Wellbeing,5105601026,27.11.2014,Leaseholds by LA,Accommodation Costs - Leaseholder Payments,746.81,BRAMBLE LETTINGS
Revenue,Head of ASC & Community Wellbeing,5105601026,27.11.2014,Leaseholds by LA,Accommodation Costs - Leaseholder Payments,746.81,BRAMBLE LETTINGS
Revenue,Head of ASC & Community Wellbeing,5105601026,27.11.2014,Leaseholds by LA,Accommodation Costs - Leaseholder Payments,588.38,BRAMBLE LETTINGS
Revenue,Head of ASC & Community Wellbeing,5105601026,27.11.2014,Leaseholds by LA,Accommodation Costs - Leaseholder Payments,746.81,BRAMBLE LETTINGS
Revenue,Head of ASC & Community Wellbeing,5105601026,27.11.2014,Leaseholds by LA,Accommodation Costs - Leaseholder Payments,769.43,BRAMBLE LETTINGS
Revenue,Head of ASC & Community Wellbeing,5105601026,27.11.2014,Leaseholds by LA,Accommodation Costs - Leaseholder Payments,746.81,BRAMBLE LETTINGS
Revenue,Head of ASC & Community Wellbeing,5105601026,27.11.2014,Leaseholds by LA,Accommodation Costs - Leaseholder Payments,746.81,BRAMBLE LETTINGS
Revenue,Head of ASC & Community Wellbeing,5105601026,27.11.2014,Leaseholds by LA,Accommodation Costs - Leaseholder Payments,746.81,BRAMBLE LETTINGS
Revenue,Head of ASC & Community Wellbeing,5105601026,27.11.2014,Leaseholds by LA,Accommodation Costs - Leaseholder Payments,746.81,BRAMBLE LETTINGS
Revenue,Head of ASC & Community Wellbeing,5105601026,27.11.2014,Leaseholds by LA,Accommodation Costs - Leaseholder Payments,746.81,BRAMBLE LETTINGS
Revenue,Head of ASC & Community Wellbeing,5105601026,27.11.2014,Leaseholds by LA,Accommodation Costs - Leaseholder Payments,746.81,BRAMBLE LETTINGS
Revenue,Head of ASC & Community Wellbeing,5105601026,27.11.2014,Leaseholds by LA,Accommodation Costs - Leaseholder Payments,746.81,BRAMBLE LETTINGS
Revenue,Head of ASC & Community Wellbeing,5105601026,27.11.2014,Leaseholds by LA,Accommodation Costs - Leaseholder Payments,588.38,BRAMBLE LETTINGS
Revenue,Head of ASC & Community Wellbeing,5105601026,27.11.2014,Leaseholds by LA,Accommodation Costs - Leaseholder Payments,588.38,BRAMBLE LETTINGS
Revenue,Head of ASC & Community Wellbeing,5105601026,27.11.2014,Leaseholds by LA,Accommodation Costs - Leaseholder Payments,588.38,BRAMBLE LETTINGS
Revenue,Head of ASC & Community Wellbeing,5105601026,27.11.2014,Leaseholds by LA,Accommodation Costs - Leaseholder Payments,588.38,BRAMBLE LETTINGS
Revenue,Head of ASC & Community Wellbeing,5105601026,27.11.2014,Leaseholds by LA,Accommodation Costs - Leaseholder Payments,588.38,BRAMBLE LETTINGS
Revenue,Managing Director & Head of Paid Service,5105601662,27.11.2014,Strengthening Families,Payments to Voluntary and Other Associations,100.00,BRAVEHEART SOCIAL ENTERPRISES LTD
Revenue,Chief Fire Officer,5105601412,27.11.2014,FRS Industrial Action,Catering Purchases,64.00,BRAVEHEART SOCIAL ENTERPRISES LTD
Revenue,Chief Fire Officer,5105601412,27.11.2014,FRS Industrial Action,Catering Purchases,64.00,BRAVEHEART SOCIAL ENTERPRISES LTD
Revenue,Chief Fire Officer,5105601412,27.11.2014,FRS Industrial Action,Catering Purchases,64.00,BRAVEHEART SOCIAL ENTERPRISES LTD
Revenue,Head of ASC & Community Wellbeing,5105697560,05.11.2014,Elderly Frail Residential Care,Charges from Independent Providers,"2,048.76",BRENDONCARE FOUNDATION
Revenue,Head of ASC & Community Wellbeing,5105697080,05.11.2014,Elderly Frail Residential Care,Charges from Independent Providers,"2,093.84",BRIGHSTONE CARE LTD
Revenue,Head of ASC & Community Wellbeing,5105697080,05.11.2014,Elderly Frail Residential Care,Charges from Independent Providers,"1,700.44",BRIGHSTONE CARE LTD
Revenue,Head of ASC & Community Wellbeing,5105697080,05.11.2014,Elderly Mentally Ill Residential Care,Charges from Independent Providers,"1,781.36",BRIGHSTONE CARE LTD
Revenue,Head of ASC & Community Wellbeing,5105697080,05.11.2014,Elderly Mentally Ill Residential Care,Charges from Independent Providers,"2,093.84",BRIGHSTONE CARE LTD
Revenue,Head of ASC & Community Wellbeing,5105697080,05.11.2014,REDACTED PERSONAL DATA,Order Settlement to Bal Sht GL,657.72,BRIGHSTONE CARE LTD
Revenue,Head of ASC & Community Wellbeing,5105697080,05.11.2014,REDACTED PERSONAL DATA,Order Settlement to Bal Sht GL,"1,781.36",BRIGHSTONE CARE LTD
Revenue,Head of ASC & Community Wellbeing,5105600439,27.11.2014,Overbrook,Grounds Maintenance,48.00,BRIGHSTONE LANDSCAPING LTD
Revenue,Head of ASC & Community Wellbeing,5105600439,27.11.2014,Seagulls,Grounds Maintenance,48.00,BRIGHSTONE LANDSCAPING LTD
Revenue,Head of ASC & Community Wellbeing,5105600439,27.11.2014,Plean Dene,Grounds Maintenance,387.49,BRIGHSTONE LANDSCAPING LTD
Revenue,Head of ASC & Community Wellbeing,5105600439,27.11.2014,Saxonbury,Grounds Maintenance,48.00,BRIGHSTONE LANDSCAPING LTD
Revenue,Head of ASC & Community Wellbeing,5105600439,27.11.2014,40 Venner Avenue,Grounds Maintenance,48.00,BRIGHSTONE LANDSCAPING LTD
Revenue,Head of ASC & Community Wellbeing,5105600439,27.11.2014,Highmead,Grounds Maintenance,126.00,BRIGHSTONE LANDSCAPING LTD
Revenue,Head of ASC & Community Wellbeing,5105600439,27.11.2014,The Laurels,Grounds Maintenance,126.00,BRIGHSTONE LANDSCAPING LTD
Revenue,Head of Economy & Tourism,5105698433,07.11.2014,Play Areas Health & Safety work,Payment to Private Contractors,265.00,BRIGHSTONE LANDSCAPING LTD
Revenue,Head of Economy & Tourism,5105697883,05.11.2014,Beach Cleaning,Payment to Private Contractors,420.00,BRIGHSTONE LANDSCAPING LTD
Revenue,Head of Economy & Tourism,5105697856,05.11.2014,Beach Cleaning,Payment to Private Contractors,55.00,BRIGHSTONE LANDSCAPING LTD
Revenue,Head of Economy & Tourism,5105600260,27.11.2014,Beach Cleaning,Beach Cleansing Contractors,"8,683.10",BRIGHSTONE LANDSCAPING LTD
Revenue,Head of Exchequer Services,5105601446,27.11.2014,Fraud Section,Sundry Office Expenses,141.84,BRIGHTON AND HOVE CITY COUNCIL
Revenue,Director of Childrens Services,5105696964,05.11.2014,Adult Community Learning,Licences,253.00,BRITISH COMPUTER SOCIETY
Revenue,Director of Childrens Services,5105696964,05.11.2014,Adult Community Learning,Licences,222.00,BRITISH COMPUTER SOCIETY
Revenue,Director of Childrens Services,5105698640,07.11.2014,Adult Community Learning,Licences,253.00,BRITISH COMPUTER SOCIETY
Revenue,Director of Childrens Services,5105698641,07.11.2014,Adult Community Learning,Licences,-253.00,BRITISH COMPUTER SOCIETY
Revenue,Director of Childrens Services,5105698641,07.11.2014,Adult Community Learning,Licences,-222.00,BRITISH COMPUTER SOCIETY
Revenue,Director of Childrens Services,5105698640,07.11.2014,Adult Community Learning,Licences,222.00,BRITISH COMPUTER SOCIETY
Revenue,Director of Childrens Services,5105698605,07.11.2014,Adult Community Learning,Licences,420.00,BRITISH COMPUTER SOCIETY
Revenue,Head of Economy & Tourism,5105698373,07.11.2014,IW Festival of Cycling,Professional Services,109.00,BRITISH RED CROSS SOCIETY
Revenue,Head of Economy & Tourism,5105698373,07.11.2014,Cycling festival - launch expenses,Professional Services,142.00,BRITISH RED CROSS SOCIETY
Revenue,Head of Economy & Tourism,5105698373,07.11.2014,Cycling festival - cycle the wight,Professional Services,631.00,BRITISH RED CROSS SOCIETY
Revenue,Head of ASC & Community Wellbeing,5105693399,14.11.2014,S75 Integrated Community Equipment Store,Payments to Voluntary and Other Associations,"55,000.00",BRITISH RED CROSS SOCIETY
Revenue,Head of Economy & Tourism,5105601238,27.11.2014,Transport Fleet Administration,Vehicle Fuel Costs,462.68,BROADWAY GARAGE
Revenue,Chief Fire Officer,5105699601,14.11.2014,Fire Technical Support,Vehicle Fuel Costs,209.86,BROADWAY GARAGE
Revenue,Head of HR & Organisational Change,5105698307,07.11.2014,Telephones,Fixed Telephones,629.30,BT FINANCE
Revenue,Head of ASC & Community Wellbeing,5105697101,05.11.2014,Elderly Frail Residential Care,Charges from Independent Providers,"2,093.84",BUCKLAND CARE LTD
Revenue,Head of ASC & Community Wellbeing,5105697101,05.11.2014,Elderly Frail Residential Care,Charges from Independent Providers,"2,093.84",BUCKLAND CARE LTD
Revenue,Head of ASC & Community Wellbeing,5105697101,05.11.2014,Elderly Frail Residential Care,Charges from Independent Providers,"2,093.84",BUCKLAND CARE LTD
Revenue,Head of ASC & Community Wellbeing,5105697101,05.11.2014,Elderly Frail Residential Care,Charges from Independent Providers,"2,093.84",BUCKLAND CARE LTD
Revenue,Head of ASC & Community Wellbeing,5105697101,05.11.2014,Elderly Frail Residential Care,Charges from Independent Providers,"2,093.84",BUCKLAND CARE LTD
Revenue,Head of ASC & Community Wellbeing,5105697101,05.11.2014,Elderly Frail Residential Care,Charges from Independent Providers,"1,700.44",BUCKLAND CARE LTD
Revenue,Head of ASC & Community Wellbeing,5105697101,05.11.2014,Elderly Frail Residential Care,Charges from Independent Providers,"1,700.44",BUCKLAND CARE LTD
Revenue,Head of ASC & Community Wellbeing,5105697101,05.11.2014,Elderly Frail Residential Care,Charges from Independent Providers,"1,700.44",BUCKLAND CARE LTD
Revenue,Head of ASC & Community Wellbeing,5105698709,12.11.2014,Elderly Frail Residential Care,Charges from Independent Providers,425.11,BUCKLAND CARE LTD
Revenue,Head of ASC & Community Wellbeing,5105698709,12.11.2014,Elderly Frail Residential Care,Charges from Independent Providers,"1,700.44",BUCKLAND CARE LTD
Revenue,Head of ASC & Community Wellbeing,5105600345,27.11.2014,Elderly Mentally Ill Residential Care,Charges from Independent Providers,"1,463.26",BUCKLAND CARE LTD
Revenue,Head of ASC & Community Wellbeing,5105697101,05.11.2014,Elderly Mentally Ill Residential Care,Charges from Independent Providers,"1,781.36",BUCKLAND CARE LTD
Revenue,Head of ASC & Community Wellbeing,5105600508,27.11.2014,Elderly Mentally Ill Residential Care,Charges from Independent Providers,149.56,BUCKLAND CARE LTD
Revenue,Head of ASC & Community Wellbeing,5105600508,27.11.2014,Elderly Mentally Ill Residential Care,Charges from Independent Providers,"4,187.68",BUCKLAND CARE LTD
Revenue,Head of ASC & Community Wellbeing,5105697101,05.11.2014,Elderly Mentally Ill Residential Care,Charges from Independent Providers,"2,093.84",BUCKLAND CARE LTD
Revenue,Head of ASC & Community Wellbeing,5105697101,05.11.2014,Elderly Mentally Ill Residential Care,Charges from Independent Providers,"1,781.36",BUCKLAND CARE LTD
Revenue,Head of ASC & Community Wellbeing,5105697101,05.11.2014,Elderly Mentally Ill Residential Care,Charges from Independent Providers,"2,093.84",BUCKLAND CARE LTD
Revenue,Head of ASC & Community Wellbeing,5105697101,05.11.2014,Elderly Mentally Ill Residential Care,Charges from Independent Providers,"1,781.36",BUCKLAND CARE LTD
Revenue,Head of ASC & Community Wellbeing,5105697101,05.11.2014,Elderly Mentally Ill Residential Care,Charges from Independent Providers,"1,781.36",BUCKLAND CARE LTD
Revenue,Head of ASC & Community Wellbeing,5105697101,05.11.2014,Elderly Mentally Ill Residential Care,Charges from Independent Providers,"2,093.84",BUCKLAND CARE LTD
Revenue,Head of ASC & Community Wellbeing,5105697101,05.11.2014,Elderly Mentally Ill Residential Care,Charges from Independent Providers,"2,093.84",BUCKLAND CARE LTD
Revenue,Head of ASC & Community Wellbeing,5105697101,05.11.2014,Elderly Mentally Ill Residential Care,Charges from Independent Providers,"2,093.84",BUCKLAND CARE LTD
Revenue,Head of ASC & Community Wellbeing,5105697101,05.11.2014,Elderly Mentally Ill Residential Care,Charges from Independent Providers,"1,781.36",BUCKLAND CARE LTD
Revenue,Head of ASC & Community Wellbeing,5105697101,05.11.2014,Elderly Mentally Ill Residential Care,Charges from Independent Providers,"2,093.84",BUCKLAND CARE LTD
Revenue,Head of ASC & Community Wellbeing,5105697101,05.11.2014,REDACTED PERSONAL DATA,Order Settlement to Bal Sht GL,"1,781.36",BUCKLAND CARE LTD
Revenue,Head of ASC & Community Wellbeing,5105697087,05.11.2014,Elderly Frail Nursing Island,Charges from Independent Providers,"2,780.40",BUCKLAND CARE LTD
Revenue,Head of ASC & Community Wellbeing,5105697087,05.11.2014,Elderly Frail Nursing Island,Charges from Independent Providers,"2,780.40",BUCKLAND CARE LTD
Revenue,Head of ASC & Community Wellbeing,5105697087,05.11.2014,Elderly Frail Nursing Island,Charges from Independent Providers,"2,780.40",BUCKLAND CARE LTD
Revenue,Head of ASC & Community Wellbeing,5105697087,05.11.2014,Elderly Frail Nursing Island,Charges from Independent Providers,"2,780.40",BUCKLAND CARE LTD
Revenue,Head of ASC & Community Wellbeing,5105697087,05.11.2014,Elderly Frail Nursing Island,Charges from Independent Providers,"2,780.40",BUCKLAND CARE LTD
Revenue,Head of ASC & Community Wellbeing,5105697087,05.11.2014,Elderly Frail Nursing Island,Charges from Independent Providers,"2,780.40",BUCKLAND CARE LTD
Revenue,Head of ASC & Community Wellbeing,5105697087,05.11.2014,Elderly Frail Nursing Island,Charges from Independent Providers,"2,780.40",BUCKLAND CARE LTD
Revenue,Head of ASC & Community Wellbeing,5105697087,05.11.2014,Elderly Frail Nursing Island,Charges from Independent Providers,"2,780.40",BUCKLAND CARE LTD
Revenue,Head of ASC & Community Wellbeing,5105697087,05.11.2014,Elderly Frail Nursing Island,Charges from Independent Providers,"2,780.40",BUCKLAND CARE LTD
Revenue,Head of ASC & Community Wellbeing,5105697087,05.11.2014,Elderly Frail Nursing Island,Charges from Independent Providers,"2,780.40",BUCKLAND CARE LTD
Revenue,Head of ASC & Community Wellbeing,5105697087,05.11.2014,Elderly Frail Nursing Island,Charges from Independent Providers,"2,780.40",BUCKLAND CARE LTD
Revenue,Head of ASC & Community Wellbeing,5105699085,12.11.2014,Elderly Frail Nursing Island,Charges from Independent Providers,695.10,BUCKLAND CARE LTD
Revenue,Head of ASC & Community Wellbeing,5105699085,12.11.2014,Elderly Frail Nursing Island,Charges from Independent Providers,"2,780.40",BUCKLAND CARE LTD
Revenue,Head of ASC & Community Wellbeing,5105601729,27.11.2014,Elderly Mentally Ill Nursing Island,Charges from Independent Providers,"1,290.90",BUCKLAND CARE LTD
Revenue,Head of ASC & Community Wellbeing,5105697087,05.11.2014,Elderly Mentally Ill Nursing Island,Charges from Independent Providers,"2,780.40",BUCKLAND CARE LTD
Revenue,Head of ASC & Community Wellbeing,5105697087,05.11.2014,Elderly Mentally Ill Nursing Island,Regular Respite Care,"2,780.40",BUCKLAND CARE LTD
Revenue,Head of ASC & Community Wellbeing,5105601729,27.11.2014,Physical Disability Nursing Island,Charges from Independent Providers,"1,688.10",BUCKLAND CARE LTD
Revenue,Head of ASC & Community Wellbeing,5105600147,27.11.2014,Funded Nursing Care Island,Charges from Independent Providers,63.40,BUCKLAND CARE LTD
Revenue,Head of ASC & Community Wellbeing,5105600147,27.11.2014,Funded Nursing Care Island,Charges from Independent Providers,443.80,BUCKLAND CARE LTD
Revenue,Head of ASC & Community Wellbeing,5105697087,05.11.2014,Funded Nursing Care Island,Charges from Independent Providers,443.80,BUCKLAND CARE LTD
Revenue,Head of ASC & Community Wellbeing,5105697087,05.11.2014,Funded Nursing Care Island,Charges from Independent Providers,443.80,BUCKLAND CARE LTD
Revenue,Head of ASC & Community Wellbeing,5105601729,27.11.2014,Funded Nursing Care Island,Charges from Independent Providers,158.50,BUCKLAND CARE LTD
Revenue,Head of ASC & Community Wellbeing,5105697087,05.11.2014,Funded Nursing Care Island,Charges from Independent Providers,443.80,BUCKLAND CARE LTD
Revenue,Head of ASC & Community Wellbeing,5105697087,05.11.2014,Funded Nursing Care Island,Charges from Independent Providers,443.80,BUCKLAND CARE LTD
Revenue,Head of ASC & Community Wellbeing,5105697087,05.11.2014,Funded Nursing Care Island,Charges from Independent Providers,443.80,BUCKLAND CARE LTD
Revenue,Head of ASC & Community Wellbeing,5105697087,05.11.2014,Funded Nursing Care Island,Charges from Independent Providers,443.80,BUCKLAND CARE LTD
Revenue,Head of ASC & Community Wellbeing,5105697087,05.11.2014,Funded Nursing Care Island,Charges from Independent Providers,443.80,BUCKLAND CARE LTD
Revenue,Head of ASC & Community Wellbeing,5105697087,05.11.2014,Funded Nursing Care Island,Charges from Independent Providers,443.80,BUCKLAND CARE LTD
Revenue,Head of ASC & Community Wellbeing,5105697087,05.11.2014,Funded Nursing Care Island,Charges from Independent Providers,443.80,BUCKLAND CARE LTD
Revenue,Head of ASC & Community Wellbeing,5105697087,05.11.2014,Funded Nursing Care Island,Charges from Independent Providers,443.80,BUCKLAND CARE LTD
Revenue,Head of ASC & Community Wellbeing,5105697087,05.11.2014,Funded Nursing Care Island,Charges from Independent Providers,443.80,BUCKLAND CARE LTD
Revenue,Head of ASC & Community Wellbeing,5105697087,05.11.2014,REDACTED PERSONAL DATA,Order Settlement to Bal Sht GL,"2,336.60",BUCKLAND CARE LTD
Revenue,Head of ASC & Community Wellbeing,5105697087,05.11.2014,REDACTED PERSONAL DATA,Order Settlement to Bal Sht GL,"2,336.60",BUCKLAND CARE LTD
Revenue,Head of ASC & Community Wellbeing,5105699006,12.11.2014,Plean Dene,Consumable Cleaning Materials,200.16,BUNZL CLEANING & HYGIENE SUPPLIES LTD
Revenue,Head of ASC & Community Wellbeing,5105697397,05.11.2014,Elderly Frail Nursing Mainland,Charges from Independent Providers,"1,841.84",BUPA CARE HOME (BNH) LTD
Revenue,Head of Economy & Tourism,5105601203,27.11.2014,Newport Library,Grounds Maintenance,148.50,C & J GROUND MAINTENANCE
Revenue,Head of Economy & Tourism,5105601353,27.11.2014,Ventnor Botanic Garden,Prop Svs only - Day to day mtce,248.90,C & J GROUND MAINTENANCE
Revenue,Director of Childrens Services,5105601571,27.11.2014,In-house Fostering,Boarding Out Allowances,16.50,REDACTED PERSONAL DATA
Revenue,Director of Childrens Services,5105600860,27.11.2014,In-house Fostering,Boarding Out Allowances,16.50,REDACTED PERSONAL DATA
Revenue,Director of Childrens Services,5105698128,07.11.2014,In-house Fostering,Boarding Out Allowances,16.50,REDACTED PERSONAL DATA
Revenue,Director of Childrens Services,5105699794,14.11.2014,In-house Fostering,Boarding Out Allowances,16.50,REDACTED PERSONAL DATA
Revenue,Director of Childrens Services,5105698104,07.11.2014,Children placed with Family&Friends,Boarding Out Allowances,278.50,REDACTED PERSONAL DATA
Revenue,Director of Childrens Services,5105600835,27.11.2014,Children placed with Family&Friends,Boarding Out Allowances,278.50,REDACTED PERSONAL DATA
Revenue,Director of Childrens Services,5105601546,27.11.2014,Children placed with Family&Friends,Boarding Out Allowances,278.50,REDACTED PERSONAL DATA
Revenue,Director of Childrens Services,5105699770,14.11.2014,Children placed with Family&Friends,Boarding Out Allowances,278.50,REDACTED PERSONAL DATA
Revenue,Director of Childrens Services,5105600812,27.11.2014,Special Guardianship Order Costs,Support Children,125.79,REDACTED PERSONAL DATA
Revenue,Director of Childrens Services,5105698081,07.11.2014,Special Guardianship Order Costs,Support Children,125.79,REDACTED PERSONAL DATA
Revenue,Director of Childrens Services,5105601524,27.11.2014,Special Guardianship Order Costs,Support Children,125.79,REDACTED PERSONAL DATA
Revenue,Director of Childrens Services,5105699747,14.11.2014,Special Guardianship Order Costs,Support Children,125.79,REDACTED PERSONAL DATA
Revenue,Chief Fire Officer,5105698399,07.11.2014,Fire Technical Support,Vehicle Maintenance Costs,28.00,C BREWER & SONS LTD
Revenue,Chief Fire Officer,5105698399,07.11.2014,Fire Technical Support,Vehicle Maintenance Costs,15.00,C BREWER & SONS LTD
Revenue,Director of Childrens Services,5105698134,07.11.2014,Leaving Care Costs,Transport of Clients,6.00,REDACTED PERSONAL DATA
Revenue,Director of Childrens Services,5105698134,07.11.2014,Children placed with Family&Friends,Boarding Out Allowances,140.33,REDACTED PERSONAL DATA
Revenue,Director of Childrens Services,5105600866,27.11.2014,Children placed with Family&Friends,Boarding Out Allowances,140.33,REDACTED PERSONAL DATA
Revenue,Director of Childrens Services,5105601577,27.11.2014,Children placed with Family&Friends,Boarding Out Allowances,140.33,REDACTED PERSONAL DATA
Revenue,Director of Childrens Services,5105699800,14.11.2014,Children placed with Family&Friends,Boarding Out Allowances,140.33,REDACTED PERSONAL DATA
Revenue,Director of Childrens Services,5105601557,27.11.2014,Adoption Costs,Support Children,125.79,REDACTED PERSONAL DATA
Revenue,Director of Childrens Services,5105601557,27.11.2014,Adoption Costs,Support Children,132.69,REDACTED PERSONAL DATA
Revenue,Director of Childrens Services,5105698115,07.11.2014,Adoption Costs,Support Children,125.79,REDACTED PERSONAL DATA
Revenue,Director of Childrens Services,5105698115,07.11.2014,Adoption Costs,Support Children,132.69,REDACTED PERSONAL DATA
Revenue,Director of Childrens Services,5105600846,27.11.2014,Adoption Costs,Support Children,125.79,REDACTED PERSONAL DATA
Revenue,Director of Childrens Services,5105600846,27.11.2014,Adoption Costs,Support Children,132.69,REDACTED PERSONAL DATA
Revenue,Director of Childrens Services,5105699781,14.11.2014,Adoption Costs,Support Children,125.79,REDACTED PERSONAL DATA
Revenue,Director of Childrens Services,5105699781,14.11.2014,Adoption Costs,Support Children,132.69,REDACTED PERSONAL DATA
Revenue,Head of Exchequer Services,5105601073,27.11.2014,Staff Benefits,Payment to Private Contractors,166.50,REDACTED PERSONAL DATA
Revenue,Director of Childrens Services,5105698166,07.11.2014,Children placed with Family&Friends,Boarding Out Allowances,199.00,REDACTED PERSONAL DATA
Revenue,Director of Childrens Services,5105600898,27.11.2014,Children placed with Family&Friends,Boarding Out Allowances,199.00,REDACTED PERSONAL DATA
Revenue,Director of Childrens Services,5105601609,27.11.2014,Children placed with Family&Friends,Boarding Out Allowances,199.00,REDACTED PERSONAL DATA
Revenue,Director of Childrens Services,5105699832,27.11.2014,Children placed with Family&Friends,Boarding Out Allowances,199.00,REDACTED PERSONAL DATA
Revenue,Director of Childrens Services,5105698096,07.11.2014,Special Guardianship Order Costs,Support Children,125.79,REDACTED PERSONAL DATA
Revenue,Director of Childrens Services,5105601538,27.11.2014,Special Guardianship Order Costs,Support Children,125.79,REDACTED PERSONAL DATA
Revenue,Director of Childrens Services,5105600827,27.11.2014,Special Guardianship Order Costs,Support Children,125.79,REDACTED PERSONAL DATA
Revenue,Director of Childrens Services,5105699762,14.11.2014,Special Guardianship Order Costs,Support Children,125.79,REDACTED PERSONAL DATA
Revenue,Director of Childrens Services,5105601528,27.11.2014,Adoption Costs,Support Children,168.39,REDACTED PERSONAL DATA
Revenue,Director of Childrens Services,5105601528,27.11.2014,Adoption Costs,Support Children,168.39,REDACTED PERSONAL DATA
Revenue,Director of Childrens Services,5105698085,07.11.2014,Adoption Costs,Support Children,168.39,REDACTED PERSONAL DATA
Revenue,Director of Childrens Services,5105698085,07.11.2014,Adoption Costs,Support Children,168.39,REDACTED PERSONAL DATA
Revenue,Director of Childrens Services,5105600816,27.11.2014,Adoption Costs,Support Children,168.39,REDACTED PERSONAL DATA
Revenue,Director of Childrens Services,5105600816,27.11.2014,Adoption Costs,Support Children,168.39,REDACTED PERSONAL DATA
Revenue,Director of Childrens Services,5105699751,14.11.2014,Adoption Costs,Support Children,168.39,REDACTED PERSONAL DATA
Revenue,Director of Childrens Services,5105699751,14.11.2014,Adoption Costs,Support Children,168.39,REDACTED PERSONAL DATA
Revenue,Director of Childrens Services,5105698155,07.11.2014,Special Guardianship Order Costs,Support Children,116.80,REDACTED PERSONAL DATA
Revenue,Director of Childrens Services,5105601597,27.11.2014,Special Guardianship Order Costs,Support Children,116.80,REDACTED PERSONAL DATA
Revenue,Director of Childrens Services,5105600886,27.11.2014,Special Guardianship Order Costs,Support Children,116.80,REDACTED PERSONAL DATA
Revenue,Director of Childrens Services,5105699820,14.11.2014,Special Guardianship Order Costs,Support Children,116.80,REDACTED PERSONAL DATA
Revenue,Director of Childrens Services,5105600809,27.11.2014,In-house Fostering,Boarding Out Allowances,199.00,REDACTED PERSONAL DATA
Revenue,Director of Childrens Services,5105600809,27.11.2014,In-house Fostering,Boarding Out Allowances,245.00,REDACTED PERSONAL DATA
Revenue,Director of Childrens Services,5105600809,27.11.2014,In-house Fostering,Boarding Out Allowances,242.08,REDACTED PERSONAL DATA
Revenue,Director of Childrens Services,5105601521,27.11.2014,In-house Fostering,Boarding Out Allowances,10.00,REDACTED PERSONAL DATA
Revenue,Director of Childrens Services,5105600809,27.11.2014,In-house Fostering,Boarding Out Allowances,10.00,REDACTED PERSONAL DATA
Revenue,Director of Childrens Services,5105698078,07.11.2014,In-house Fostering,Boarding Out Allowances,10.00,REDACTED PERSONAL DATA
Revenue,Director of Childrens Services,5105601521,27.11.2014,In-house Fostering,Boarding Out Allowances,199.00,REDACTED PERSONAL DATA
Revenue,Director of Childrens Services,5105601521,27.11.2014,In-house Fostering,Boarding Out Allowances,245.00,REDACTED PERSONAL DATA
Revenue,Director of Childrens Services,5105601521,27.11.2014,In-house Fostering,Boarding Out Allowances,242.08,REDACTED PERSONAL DATA
Revenue,Director of Childrens Services,5105699744,14.11.2014,In-house Fostering,Boarding Out Allowances,199.00,REDACTED PERSONAL DATA
Revenue,Director of Childrens Services,5105699744,14.11.2014,In-house Fostering,Boarding Out Allowances,245.00,REDACTED PERSONAL DATA
Revenue,Director of Childrens Services,5105699744,14.11.2014,In-house Fostering,Boarding Out Allowances,10.00,REDACTED PERSONAL DATA
Revenue,Director of Childrens Services,5105698078,07.11.2014,In-house Fostering,Boarding Out Allowances,199.00,REDACTED PERSONAL DATA
Revenue,Director of Childrens Services,5105698078,07.11.2014,In-house Fostering,Boarding Out Allowances,245.00,REDACTED PERSONAL DATA
Revenue,Director of Childrens Services,5105601497,27.11.2014,In-house Fostering,Boarding Out Allowances,199.00,REDACTED PERSONAL DATA
Revenue,Director of Childrens Services,5105600785,27.11.2014,In-house Fostering,Boarding Out Allowances,199.00,REDACTED PERSONAL DATA
Revenue,Director of Childrens Services,5105600785,27.11.2014,In-house Fostering,Boarding Out Allowances,242.08,REDACTED PERSONAL DATA
Revenue,Director of Childrens Services,5105600785,27.11.2014,In-house Fostering,Boarding Out Allowances,140.33,REDACTED PERSONAL DATA
Revenue,Director of Childrens Services,5105601497,27.11.2014,In-house Fostering,Boarding Out Allowances,15.00,REDACTED PERSONAL DATA
Revenue,Director of Childrens Services,5105600785,27.11.2014,In-house Fostering,Boarding Out Allowances,15.00,REDACTED PERSONAL DATA
Revenue,Director of Childrens Services,5105601497,27.11.2014,In-house Fostering,Boarding Out Allowances,140.33,REDACTED PERSONAL DATA
Revenue,Director of Childrens Services,5105601497,27.11.2014,In-house Fostering,Boarding Out Allowances,242.08,REDACTED PERSONAL DATA
Revenue,Director of Childrens Services,5105699720,14.11.2014,In-house Fostering,Boarding Out Allowances,199.00,REDACTED PERSONAL DATA
Revenue,Director of Childrens Services,5105698054,07.11.2014,In-house Fostering,Boarding Out Allowances,15.00,REDACTED PERSONAL DATA
Revenue,Director of Childrens Services,5105699720,14.11.2014,In-house Fostering,Boarding Out Allowances,15.00,REDACTED PERSONAL DATA
Revenue,Director of Childrens Services,5105698054,07.11.2014,In-house Fostering,Boarding Out Allowances,140.33,REDACTED PERSONAL DATA
Revenue,Director of Childrens Services,5105698054,07.11.2014,In-house Fostering,Boarding Out Allowances,242.08,REDACTED PERSONAL DATA
Revenue,Director of Childrens Services,5105698054,07.11.2014,In-house Fostering,Boarding Out Allowances,199.00,REDACTED PERSONAL DATA
Revenue,Director of Childrens Services,5105699720,14.11.2014,In-house Fostering,Boarding Out Allowances,140.33,REDACTED PERSONAL DATA
Revenue,Director of Childrens Services,5105699720,14.11.2014,In-house Fostering,Boarding Out Allowances,242.08,REDACTED PERSONAL DATA
Revenue,Director of Childrens Services,5105698073,07.11.2014,Children placed with Family&Friends,Boarding Out Allowances,199.00,REDACTED PERSONAL DATA
Revenue,Director of Childrens Services,5105698073,07.11.2014,Children placed with Family&Friends,Boarding Out Allowances,100.00,REDACTED PERSONAL DATA
Revenue,Director of Childrens Services,5105600804,27.11.2014,Children placed with Family&Friends,Boarding Out Allowances,199.00,REDACTED PERSONAL DATA
Revenue,Director of Childrens Services,5105600804,27.11.2014,Children placed with Family&Friends,Boarding Out Allowances,100.00,REDACTED PERSONAL DATA
Revenue,Director of Childrens Services,5105601516,27.11.2014,Children placed with Family&Friends,Boarding Out Allowances,199.00,REDACTED PERSONAL DATA
Revenue,Director of Childrens Services,5105601516,27.11.2014,Children placed with Family&Friends,Boarding Out Allowances,100.00,REDACTED PERSONAL DATA
Revenue,Director of Childrens Services,5105699739,14.11.2014,Children placed with Family&Friends,Boarding Out Allowances,199.00,REDACTED PERSONAL DATA
Revenue,Director of Childrens Services,5105699739,14.11.2014,Children placed with Family&Friends,Boarding Out Allowances,100.00,REDACTED PERSONAL DATA
Revenue,Head of Economy & Tourism,5105698794,12.11.2014,Other Grounds Maintenance,Payment to Private Contractors,58.31,C N SERVICES
Revenue,Head of Economy & Tourism,5105699048,12.11.2014,Other Grounds Maintenance,Payment to Private Contractors,922.81,C N SERVICES
Revenue,Head of Economy & Tourism,5105699033,12.11.2014,Play Areas Health & Safety work,Payment to Private Contractors,"1,098.50",C N SERVICES
Revenue,Head of Economy & Tourism,5105697841,05.11.2014,Play Areas Health & Safety work,Payment to Private Contractors,786.75,C N SERVICES
Revenue,Head of Economy & Tourism,5105698794,12.11.2014,Public Seats  (incl.Dedicated Seats),Payment to Private Contractors,116.86,C N SERVICES
Revenue,Head of Economy & Tourism,5105698674,12.11.2014,Beach Safety & Inspection / Beach Awards,Payment to Private Contractors,166.64,C N SERVICES
Revenue,Head of Economy & Tourism,5105698794,12.11.2014,Public Shelters - Ryde,Payment to Private Contractors,78.33,C N SERVICES
Capital,Head of Economy & Tourism,5105696492,05.11.2014,Cemeteries,Payment to Contractors - Capital,370.00,C N SERVICES
Capital,Head of Economy & Tourism,5105699054,12.11.2014,Rights Of Way Capital Programme,Payment to Contractors - Capital,830.00,C N SERVICES
Capital,Head of Economy & Tourism,5105699050,12.11.2014,Rights Of Way Capital Programme,Payment to Contractors - Capital,100.00,C N SERVICES
Revenue,Director of Childrens Services,5105601530,27.11.2014,In-house Fostering,Boarding Out Allowances,140.33,REDACTED PERSONAL DATA
Revenue,Director of Childrens Services,5105601530,27.11.2014,In-house Fostering,Boarding Out Allowances,10.00,REDACTED PERSONAL DATA
Revenue,Director of Childrens Services,5105600818,27.11.2014,In-house Fostering,Boarding Out Allowances,140.33,REDACTED PERSONAL DATA
Revenue,Director of Childrens Services,5105600818,27.11.2014,In-house Fostering,Boarding Out Allowances,10.00,REDACTED PERSONAL DATA
Revenue,Director of Childrens Services,5105698087,07.11.2014,In-house Fostering,Boarding Out Allowances,140.33,REDACTED PERSONAL DATA
Revenue,Director of Childrens Services,5105698087,07.11.2014,In-house Fostering,Boarding Out Allowances,10.00,REDACTED PERSONAL DATA
Revenue,Director of Childrens Services,5105699753,14.11.2014,In-house Fostering,Boarding Out Allowances,140.33,REDACTED PERSONAL DATA
Revenue,Director of Childrens Services,5105699753,14.11.2014,In-house Fostering,Boarding Out Allowances,10.00,REDACTED PERSONAL DATA
Revenue,Director of Childrens Services,5105698161,07.11.2014,Children placed with Family&Friends,Boarding Out Allowances,199.00,REDACTED PERSONAL DATA
Revenue,Director of Childrens Services,5105600892,27.11.2014,Children placed with Family&Friends,Boarding Out Allowances,199.00,REDACTED PERSONAL DATA
Revenue,Director of Childrens Services,5105601603,27.11.2014,Children placed with Family&Friends,Boarding Out Allowances,199.00,REDACTED PERSONAL DATA
Revenue,Director of Childrens Services,5105699826,14.11.2014,Children placed with Family&Friends,Boarding Out Allowances,199.00,REDACTED PERSONAL DATA
Revenue,Director of Childrens Services,5105600839,27.11.2014,Special Guardianship Order Costs,Support Children,161.49,REDACTED PERSONAL DATA
Revenue,Director of Childrens Services,5105601550,27.11.2014,Special Guardianship Order Costs,Support Children,161.49,REDACTED PERSONAL DATA
Revenue,Director of Childrens Services,5105698108,07.11.2014,Special Guardianship Order Costs,Support Children,161.49,REDACTED PERSONAL DATA
Revenue,Director of Childrens Services,5105699774,14.11.2014,Special Guardianship Order Costs,Support Children,161.49,REDACTED PERSONAL DATA
Revenue,Head of ASC & Community Wellbeing,5105697043,05.11.2014,Learning Disability Residential Care,Charges from Independent Providers,"1,894.76",REDACTED PERSONAL DATA
Revenue,Director of Childrens Services,5105698079,07.11.2014,Adoption Costs,Support Children,132.69,REDACTED PERSONAL DATA
Revenue,Director of Childrens Services,5105601522,27.11.2014,Adoption Costs,Support Children,132.69,REDACTED PERSONAL DATA
Revenue,Director of Childrens Services,5105600810,27.11.2014,Adoption Costs,Support Children,132.69,REDACTED PERSONAL DATA
Revenue,Director of Childrens Services,5105699745,14.11.2014,Adoption Costs,Support Children,132.69,REDACTED PERSONAL DATA
Revenue,Head of Economy & Tourism,5105697768,05.11.2014,Public Libraries Central,Publications,75.00,CALIBRE AUDIO LIBRARY
Revenue,Head of HR & Organisational Change,5105699968,27.11.2014,Telephones,Computer Purchase & Rental,"4,195.00",CALL VISIONTECHNOLOGIES LTD
Revenue,Head of HR & Organisational Change,5105699968,27.11.2014,Telephones,Computer Purchase & Rental,"2,380.00",CALL VISIONTECHNOLOGIES LTD
Revenue,Head of HR & Organisational Change,5105699968,27.11.2014,Telephones,Computer Purchase & Rental,"1,455.44",CALL VISIONTECHNOLOGIES LTD
Revenue,Head of HR & Organisational Change,5105699670,19.11.2014,Telephones,Payment to Private Contractors,"1,190.00",CALL VISIONTECHNOLOGIES LTD
Revenue,Director of Childrens Services,5105696926,05.11.2014,Learning & Development Running Costs,Gas,13.75,CALOR GAS LIMITED
Revenue,Head of Corp Gov & Monitoring Officer,5105698485,07.11.2014,Litigation Costs,Legal Fees - Other Parties,50.00,CAMERON LAMB LTD
Revenue,Head of Corp Gov & Monitoring Officer,5105698473,07.11.2014,Litigation Costs,Legal Fees - Other Parties,50.00,CAMERON LAMB LTD
Revenue,Director of Childrens Services,5105698791,12.11.2014,Beaulieu House,"Refuse Collection, Disposal and Recycling Costs",243.10,CANNON HYGIENE
Revenue,Head of Economy & Tourism,5105600605,27.11.2014,Print Unit,Photocopying Costs,"1,650.38",CANON (UK) LTD
Revenue,Director of Childrens Services,5105698756,12.11.2014,Purchased Fostering,Charges from Independent Providers,"4,071.30",CAPSTONE FOSTER CARE LTD
Revenue,Head of ASC & Community Wellbeing,5105600169,27.11.2014,Elderly Frail Homecare,Charges from Independent Providers,44.52,CARE FIRST IW LTD
Revenue,Head of ASC & Community Wellbeing,5105698567,07.11.2014,Elderly Frail Homecare,Charges from Independent Providers,430.36,CARE FIRST IW LTD
Revenue,Head of ASC & Community Wellbeing,5105698579,07.11.2014,Elderly Frail Homecare,Charges from Independent Providers,593.60,CARE FIRST IW LTD
Revenue,Head of ASC & Community Wellbeing,5105698584,07.11.2014,Elderly Frail Homecare,Charges from Independent Providers,"1,061.06",CARE FIRST IW LTD
Revenue,Head of ASC & Community Wellbeing,5105698576,07.11.2014,Elderly Frail Homecare,Charges from Independent Providers,"1,168.65",CARE FIRST IW LTD
Revenue,Head of ASC & Community Wellbeing,5105698585,07.11.2014,Elderly Frail Homecare,Charges from Independent Providers,259.70,CARE FIRST IW LTD
Revenue,Head of ASC & Community Wellbeing,5105698586,07.11.2014,Elderly Frail Homecare,Charges from Independent Providers,"1,550.78",CARE FIRST IW LTD
Revenue,Head of ASC & Community Wellbeing,5105698555,07.11.2014,Elderly Frail Homecare,Charges from Independent Providers,389.55,CARE FIRST IW LTD
Revenue,Head of ASC & Community Wellbeing,5105698559,07.11.2014,Elderly Frail Homecare,Charges from Independent Providers,704.90,CARE FIRST IW LTD
Revenue,Head of ASC & Community Wellbeing,5105698560,07.11.2014,Elderly Frail Homecare,Charges from Independent Providers,237.44,CARE FIRST IW LTD
Revenue,Head of ASC & Community Wellbeing,5105698562,07.11.2014,Elderly Frail Homecare,Charges from Independent Providers,534.24,CARE FIRST IW LTD
Revenue,Head of ASC & Community Wellbeing,5105698564,07.11.2014,Elderly Frail Homecare,Charges from Independent Providers,259.70,CARE FIRST IW LTD
Revenue,Head of ASC & Community Wellbeing,5105698603,07.11.2014,Elderly Frail Homecare,Charges from Independent Providers,148.40,CARE FIRST IW LTD
Revenue,Head of ASC & Community Wellbeing,5105698599,07.11.2014,Elderly Frail Homecare,Charges from Independent Providers,972.02,CARE FIRST IW LTD
Revenue,Head of ASC & Community Wellbeing,5105698571,07.11.2014,Elderly Frail Homecare,Charges from Independent Providers,296.80,CARE FIRST IW LTD
Revenue,Head of ASC & Community Wellbeing,5105698566,07.11.2014,Elderly Frail Homecare,Charges from Independent Providers,111.30,CARE FIRST IW LTD
Revenue,Head of ASC & Community Wellbeing,5105698572,07.11.2014,Elderly Frail Homecare,Charges from Independent Providers,259.70,CARE FIRST IW LTD
Revenue,Head of ASC & Community Wellbeing,5105698573,07.11.2014,Elderly Frail Homecare,Charges from Independent Providers,296.80,CARE FIRST IW LTD
Revenue,Head of ASC & Community Wellbeing,5105698595,07.11.2014,Elderly Frail Homecare,Charges from Independent Providers,259.70,CARE FIRST IW LTD
Revenue,Head of ASC & Community Wellbeing,5105698589,07.11.2014,Elderly Frail Homecare,Charges from Independent Providers,"1,261.40",CARE FIRST IW LTD
Revenue,Head of ASC & Community Wellbeing,5105698591,07.11.2014,Elderly Frail Homecare,Charges from Independent Providers,237.44,CARE FIRST IW LTD
Revenue,Head of ASC & Community Wellbeing,5105698602,07.11.2014,Elderly Frail Homecare,Charges from Independent Providers,155.82,CARE FIRST IW LTD
Revenue,Head of ASC & Community Wellbeing,5105698590,07.11.2014,Elderly Frail Homecare,Charges from Independent Providers,649.25,CARE FIRST IW LTD
Revenue,Head of ASC & Community Wellbeing,5105698565,07.11.2014,Elderly Frail Homecare,Charges from Independent Providers,649.25,CARE FIRST IW LTD
Revenue,Head of ASC & Community Wellbeing,5105698554,07.11.2014,Elderly Frail Homecare,Charges from Independent Providers,"1,869.84",CARE FIRST IW LTD
Revenue,Head of ASC & Community Wellbeing,5105698569,07.11.2014,Elderly Frail Homecare,Charges from Independent Providers,779.10,CARE FIRST IW LTD
Revenue,Head of ASC & Community Wellbeing,5105698574,07.11.2014,Elderly Frail Homecare,Charges from Independent Providers,178.08,CARE FIRST IW LTD
Revenue,Head of ASC & Community Wellbeing,5105698561,07.11.2014,Elderly Frail Homecare,Charges from Independent Providers,259.70,CARE FIRST IW LTD
Revenue,Head of ASC & Community Wellbeing,5105698556,07.11.2014,Elderly Frail Homecare,Charges from Independent Providers,222.60,CARE FIRST IW LTD
Revenue,Head of ASC & Community Wellbeing,5105698557,07.11.2014,Elderly Frail Homecare,Charges from Independent Providers,779.10,CARE FIRST IW LTD
Revenue,Head of ASC & Community Wellbeing,5105698575,07.11.2014,Elderly Frail Homecare,Charges from Independent Providers,519.40,CARE FIRST IW LTD
Revenue,Head of ASC & Community Wellbeing,5105698581,07.11.2014,Elderly Frail Homecare,Charges from Independent Providers,"1,558.20",CARE FIRST IW LTD
Revenue,Head of ASC & Community Wellbeing,5105698587,07.11.2014,Elderly Frail Homecare,Charges from Independent Providers,"2,597.00",CARE FIRST IW LTD
Revenue,Head of ASC & Community Wellbeing,5105698601,07.11.2014,Elderly Frail Homecare,Charges from Independent Providers,352.45,CARE FIRST IW LTD
Revenue,Head of ASC & Community Wellbeing,5105698600,07.11.2014,Elderly Frail Homecare,Charges from Independent Providers,467.46,CARE FIRST IW LTD
Revenue,Head of ASC & Community Wellbeing,5105698596,07.11.2014,Elderly Frail Homecare,Charges from Independent Providers,511.98,CARE FIRST IW LTD
Revenue,Head of ASC & Community Wellbeing,5105698582,07.11.2014,Elderly Frail Homecare,Charges from Independent Providers,"2,159.22",CARE FIRST IW LTD
Revenue,Head of ASC & Community Wellbeing,5105698583,07.11.2014,Elderly Frail Homecare,Charges from Independent Providers,779.10,CARE FIRST IW LTD
Revenue,Head of ASC & Community Wellbeing,5105698588,07.11.2014,Elderly Frail Homecare,Charges from Independent Providers,"1,016.54",CARE FIRST IW LTD
Revenue,Head of ASC & Community Wellbeing,5105698592,07.11.2014,Elderly Frail Homecare,Charges from Independent Providers,89.04,CARE FIRST IW LTD
Revenue,Head of ASC & Community Wellbeing,5105698598,07.11.2014,Elderly Frail Homecare,Charges from Independent Providers,29.68,CARE FIRST IW LTD
Revenue,Head of ASC & Community Wellbeing,5105600170,27.11.2014,Elderly Frail Homecare,Regular Respite Care,445.20,CARE FIRST IW LTD
Revenue,Head of ASC & Community Wellbeing,5105698597,07.11.2014,Elderly Frail Homecare,Regular Respite Care,118.72,CARE FIRST IW LTD
Revenue,Head of ASC & Community Wellbeing,5105698593,07.11.2014,Elderly Frail Homecare,Regular Respite Care,148.40,CARE FIRST IW LTD
Revenue,Head of ASC & Community Wellbeing,5105698947,12.11.2014,Elderly Frail Homecare,Regular Respite Care,29.68,CARE FIRST IW LTD
Revenue,Head of ASC & Community Wellbeing,5105698577,07.11.2014,Elderly Mentally Ill Homecare,Charges from Independent Providers,779.10,CARE FIRST IW LTD
Revenue,Head of ASC & Community Wellbeing,5105698568,07.11.2014,Elderly Mentally Ill Homecare,Charges from Independent Providers,"2,671.20",CARE FIRST IW LTD
Revenue,Head of ASC & Community Wellbeing,5105698578,07.11.2014,Elderly Mentally Ill Homecare,Regular Respite Care,148.40,CARE FIRST IW LTD
Revenue,Head of ASC & Community Wellbeing,5105698558,07.11.2014,Mental Health Homecare,Charges from Independent Providers,178.08,CARE FIRST IW LTD
Revenue,Head of ASC & Community Wellbeing,5105698563,07.11.2014,Physical Disability Homecare,Charges from Independent Providers,"1,098.16",CARE FIRST IW LTD
Revenue,Head of ASC & Community Wellbeing,5105698580,07.11.2014,Physical Disability Homecare,Charges from Independent Providers,200.34,CARE FIRST IW LTD
Revenue,Head of ASC & Community Wellbeing,5105698594,07.11.2014,Physical Disability Homecare,Charges from Independent Providers,274.54,CARE FIRST IW LTD
Revenue,Head of ASC & Community Wellbeing,5105698570,07.11.2014,Physical Disability Homecare,Regular Respite Care,59.36,CARE FIRST IW LTD
Revenue,Head of ASC & Community Wellbeing,5105600672,27.11.2014,Elderly Frail Homecare,Charges from Independent Providers,322.92,CAREWATCH (SOUTHAMPTON NEW FOREST & IOW)
Revenue,Head of ASC & Community Wellbeing,5105600666,27.11.2014,Elderly Frail Homecare,Charges from Independent Providers,-322.92,CAREWATCH (SOUTHAMPTON NEW FOREST & IOW)
Revenue,Head of ASC & Community Wellbeing,5105600665,27.11.2014,Elderly Frail Homecare,Charges from Independent Providers,-259.70,CAREWATCH (SOUTHAMPTON NEW FOREST & IOW)
Revenue,Head of ASC & Community Wellbeing,5105600671,27.11.2014,Elderly Frail Homecare,Charges from Independent Providers,259.70,CAREWATCH (SOUTHAMPTON NEW FOREST & IOW)
Revenue,Head of ASC & Community Wellbeing,5105699269,12.11.2014,Elderly Frail Homecare,Charges from Independent Providers,534.24,CAREWATCH (SOUTHAMPTON NEW FOREST & IOW)
Revenue,Head of ASC & Community Wellbeing,5105699271,12.11.2014,Elderly Frail Homecare,Charges from Independent Providers,519.40,CAREWATCH (SOUTHAMPTON NEW FOREST & IOW)
Revenue,Head of ASC & Community Wellbeing,5105699315,12.11.2014,Elderly Frail Homecare,Charges from Independent Providers,215.18,CAREWATCH (SOUTHAMPTON NEW FOREST & IOW)
Revenue,Head of ASC & Community Wellbeing,5105699316,12.11.2014,Elderly Frail Homecare,Charges from Independent Providers,860.72,CAREWATCH (SOUTHAMPTON NEW FOREST & IOW)
Revenue,Head of ASC & Community Wellbeing,5105699317,12.11.2014,Elderly Frail Homecare,Charges from Independent Providers,259.70,CAREWATCH (SOUTHAMPTON NEW FOREST & IOW)
Revenue,Head of ASC & Community Wellbeing,5105699313,12.11.2014,Elderly Frail Homecare,Charges from Independent Providers,222.60,CAREWATCH (SOUTHAMPTON NEW FOREST & IOW)
Revenue,Head of ASC & Community Wellbeing,5105699325,12.11.2014,Elderly Frail Homecare,Charges from Independent Providers,704.90,CAREWATCH (SOUTHAMPTON NEW FOREST & IOW)
Revenue,Head of ASC & Community Wellbeing,5105699324,12.11.2014,Elderly Frail Homecare,Charges from Independent Providers,237.44,CAREWATCH (SOUTHAMPTON NEW FOREST & IOW)
Revenue,Head of ASC & Community Wellbeing,5105699321,12.11.2014,Elderly Frail Homecare,Charges from Independent Providers,29.68,CAREWATCH (SOUTHAMPTON NEW FOREST & IOW)
Revenue,Head of ASC & Community Wellbeing,5105699327,12.11.2014,Elderly Frail Homecare,Charges from Independent Providers,908.95,CAREWATCH (SOUTHAMPTON NEW FOREST & IOW)
Revenue,Head of ASC & Community Wellbeing,5105699328,12.11.2014,Elderly Frail Homecare,Charges from Independent Providers,"1,090.74",CAREWATCH (SOUTHAMPTON NEW FOREST & IOW)
Revenue,Head of ASC & Community Wellbeing,5105699329,12.11.2014,Elderly Frail Homecare,Charges from Independent Providers,"2,597.00",CAREWATCH (SOUTHAMPTON NEW FOREST & IOW)
Revenue,Head of ASC & Community Wellbeing,5105699330,12.11.2014,Elderly Frail Homecare,Charges from Independent Providers,779.10,CAREWATCH (SOUTHAMPTON NEW FOREST & IOW)
Revenue,Head of ASC & Community Wellbeing,5105699331,12.11.2014,Elderly Frail Homecare,Charges from Independent Providers,"1,428.35",CAREWATCH (SOUTHAMPTON NEW FOREST & IOW)
Revenue,Head of ASC & Community Wellbeing,5105699287,12.11.2014,Elderly Frail Homecare,Charges from Independent Providers,831.04,CAREWATCH (SOUTHAMPTON NEW FOREST & IOW)
Revenue,Head of ASC & Community Wellbeing,5105699289,12.11.2014,Elderly Frail Homecare,Charges from Independent Providers,259.70,CAREWATCH (SOUTHAMPTON NEW FOREST & IOW)
Revenue,Head of ASC & Community Wellbeing,5105699291,12.11.2014,Elderly Frail Homecare,Charges from Independent Providers,519.40,CAREWATCH (SOUTHAMPTON NEW FOREST & IOW)
Revenue,Head of ASC & Community Wellbeing,5105699283,12.11.2014,Elderly Frail Homecare,Charges from Independent Providers,845.88,CAREWATCH (SOUTHAMPTON NEW FOREST & IOW)
Revenue,Head of ASC & Community Wellbeing,5105699275,12.11.2014,Elderly Frail Homecare,Charges from Independent Providers,389.55,CAREWATCH (SOUTHAMPTON NEW FOREST & IOW)
Revenue,Head of ASC & Community Wellbeing,5105699276,12.11.2014,Elderly Frail Homecare,Charges from Independent Providers,519.40,CAREWATCH (SOUTHAMPTON NEW FOREST & IOW)
Revenue,Head of ASC & Community Wellbeing,5105699285,12.11.2014,Elderly Frail Homecare,Charges from Independent Providers,519.40,CAREWATCH (SOUTHAMPTON NEW FOREST & IOW)
Revenue,Head of ASC & Community Wellbeing,5105699286,12.11.2014,Elderly Frail Homecare,Charges from Independent Providers,408.10,CAREWATCH (SOUTHAMPTON NEW FOREST & IOW)
Revenue,Head of ASC & Community Wellbeing,5105699290,12.11.2014,Elderly Frail Homecare,Charges from Independent Providers,908.95,CAREWATCH (SOUTHAMPTON NEW FOREST & IOW)
Revenue,Head of ASC & Community Wellbeing,5105699305,12.11.2014,Elderly Frail Homecare,Charges from Independent Providers,474.88,CAREWATCH (SOUTHAMPTON NEW FOREST & IOW)
Revenue,Head of ASC & Community Wellbeing,5105699296,12.11.2014,Elderly Frail Homecare,Charges from Independent Providers,389.55,CAREWATCH (SOUTHAMPTON NEW FOREST & IOW)
Revenue,Head of ASC & Community Wellbeing,5105699295,12.11.2014,Elderly Frail Homecare,Charges from Independent Providers,519.40,CAREWATCH (SOUTHAMPTON NEW FOREST & IOW)
Revenue,Head of ASC & Community Wellbeing,5105699299,12.11.2014,Elderly Frail Homecare,Charges from Independent Providers,"2,077.60",CAREWATCH (SOUTHAMPTON NEW FOREST & IOW)
Revenue,Head of ASC & Community Wellbeing,5105699301,12.11.2014,Elderly Frail Homecare,Charges from Independent Providers,259.70,CAREWATCH (SOUTHAMPTON NEW FOREST & IOW)
Revenue,Head of ASC & Community Wellbeing,5105699307,12.11.2014,Elderly Frail Homecare,Charges from Independent Providers,"1,187.20",CAREWATCH (SOUTHAMPTON NEW FOREST & IOW)
Revenue,Head of ASC & Community Wellbeing,5105699308,12.11.2014,Elderly Frail Homecare,Charges from Independent Providers,575.05,CAREWATCH (SOUTHAMPTON NEW FOREST & IOW)
Revenue,Head of ASC & Community Wellbeing,5105699348,12.11.2014,Elderly Frail Homecare,Charges from Independent Providers,497.14,CAREWATCH (SOUTHAMPTON NEW FOREST & IOW)
Revenue,Head of ASC & Community Wellbeing,5105699326,12.11.2014,Elderly Frail Homecare,Charges from Independent Providers,352.45,CAREWATCH (SOUTHAMPTON NEW FOREST & IOW)
Revenue,Head of ASC & Community Wellbeing,5105699334,12.11.2014,Elderly Frail Homecare,Charges from Independent Providers,74.20,CAREWATCH (SOUTHAMPTON NEW FOREST & IOW)
Revenue,Head of ASC & Community Wellbeing,5105699341,12.11.2014,Elderly Frail Homecare,Charges from Independent Providers,779.10,CAREWATCH (SOUTHAMPTON NEW FOREST & IOW)
Revenue,Head of ASC & Community Wellbeing,5105699323,12.11.2014,Elderly Frail Homecare,Charges from Independent Providers,148.40,CAREWATCH (SOUTHAMPTON NEW FOREST & IOW)
Revenue,Head of ASC & Community Wellbeing,5105699318,12.11.2014,Elderly Frail Homecare,Charges from Independent Providers,"1,521.10",CAREWATCH (SOUTHAMPTON NEW FOREST & IOW)
Revenue,Head of ASC & Community Wellbeing,5105699343,12.11.2014,Elderly Frail Homecare,Charges from Independent Providers,237.44,CAREWATCH (SOUTHAMPTON NEW FOREST & IOW)
Revenue,Head of ASC & Community Wellbeing,5105699344,12.11.2014,Elderly Frail Homecare,Charges from Independent Providers,"1,736.28",CAREWATCH (SOUTHAMPTON NEW FOREST & IOW)
Revenue,Head of ASC & Community Wellbeing,5105699345,12.11.2014,Elderly Frail Homecare,Charges from Independent Providers,66.78,CAREWATCH (SOUTHAMPTON NEW FOREST & IOW)
Revenue,Head of ASC & Community Wellbeing,5105699357,12.11.2014,Elderly Frail Homecare,Charges from Independent Providers,178.08,CAREWATCH (SOUTHAMPTON NEW FOREST & IOW)
Revenue,Head of ASC & Community Wellbeing,5105699356,12.11.2014,Elderly Frail Homecare,Charges from Independent Providers,118.72,CAREWATCH (SOUTHAMPTON NEW FOREST & IOW)
Revenue,Head of ASC & Community Wellbeing,5105699335,12.11.2014,Elderly Frail Homecare,Charges from Independent Providers,649.25,CAREWATCH (SOUTHAMPTON NEW FOREST & IOW)
Revenue,Head of ASC & Community Wellbeing,5105699342,12.11.2014,Elderly Frail Homecare,Charges from Independent Providers,415.52,CAREWATCH (SOUTHAMPTON NEW FOREST & IOW)
Revenue,Head of ASC & Community Wellbeing,5105699336,12.11.2014,Elderly Frail Homecare,Charges from Independent Providers,341.32,CAREWATCH (SOUTHAMPTON NEW FOREST & IOW)
Revenue,Head of ASC & Community Wellbeing,5105699337,12.11.2014,Elderly Frail Homecare,Charges from Independent Providers,103.88,CAREWATCH (SOUTHAMPTON NEW FOREST & IOW)
Revenue,Head of ASC & Community Wellbeing,5105699339,12.11.2014,Elderly Frail Homecare,Charges from Independent Providers,22.26,CAREWATCH (SOUTHAMPTON NEW FOREST & IOW)
Revenue,Head of ASC & Community Wellbeing,5105699350,12.11.2014,Elderly Frail Homecare,Charges from Independent Providers,"1,098.16",CAREWATCH (SOUTHAMPTON NEW FOREST & IOW)
Revenue,Head of ASC & Community Wellbeing,5105699351,12.11.2014,Elderly Frail Homecare,Charges from Independent Providers,445.20,CAREWATCH (SOUTHAMPTON NEW FOREST & IOW)
Revenue,Head of ASC & Community Wellbeing,5105699359,12.11.2014,Elderly Frail Homecare,Charges from Independent Providers,322.92,CAREWATCH (SOUTHAMPTON NEW FOREST & IOW)
Revenue,Head of ASC & Community Wellbeing,5105699360,12.11.2014,Elderly Frail Homecare,Charges from Independent Providers,259.70,CAREWATCH (SOUTHAMPTON NEW FOREST & IOW)
Revenue,Head of ASC & Community Wellbeing,5105699355,12.11.2014,Elderly Frail Homecare,Charges from Independent Providers,207.76,CAREWATCH (SOUTHAMPTON NEW FOREST & IOW)
Revenue,Head of ASC & Community Wellbeing,5105699333,12.11.2014,Elderly Frail Homecare,Charges from Independent Providers,259.70,CAREWATCH (SOUTHAMPTON NEW FOREST & IOW)
Revenue,Head of ASC & Community Wellbeing,5105699259,12.11.2014,Elderly Frail Homecare,Charges from Independent Providers,652.96,CAREWATCH (SOUTHAMPTON NEW FOREST & IOW)
Revenue,Head of ASC & Community Wellbeing,5105699270,12.11.2014,Elderly Frail Homecare,Charges from Independent Providers,"1,372.70",CAREWATCH (SOUTHAMPTON NEW FOREST & IOW)
Revenue,Head of ASC & Community Wellbeing,5105699251,12.11.2014,Elderly Frail Homecare,Charges from Independent Providers,389.55,CAREWATCH (SOUTHAMPTON NEW FOREST & IOW)
Revenue,Head of ASC & Community Wellbeing,5105699853,27.11.2014,Elderly Frail Homecare,Charges from Independent Providers,823.62,CAREWATCH (SOUTHAMPTON NEW FOREST & IOW)
Revenue,Head of ASC & Community Wellbeing,5105699240,12.11.2014,Elderly Frail Homecare,Charges from Independent Providers,"1,372.70",CAREWATCH (SOUTHAMPTON NEW FOREST & IOW)
Revenue,Head of ASC & Community Wellbeing,5105699241,12.11.2014,Elderly Frail Homecare,Charges from Independent Providers,519.40,CAREWATCH (SOUTHAMPTON NEW FOREST & IOW)
Revenue,Head of ASC & Community Wellbeing,5105699245,12.11.2014,Elderly Frail Homecare,Charges from Independent Providers,853.30,CAREWATCH (SOUTHAMPTON NEW FOREST & IOW)
Revenue,Head of ASC & Community Wellbeing,5105699246,12.11.2014,Elderly Frail Homecare,Charges from Independent Providers,259.70,CAREWATCH (SOUTHAMPTON NEW FOREST & IOW)
Revenue,Head of ASC & Community Wellbeing,5105699238,12.11.2014,Elderly Frail Homecare,Charges from Independent Providers,519.40,CAREWATCH (SOUTHAMPTON NEW FOREST & IOW)
Revenue,Head of ASC & Community Wellbeing,5105699247,12.11.2014,Elderly Frail Homecare,Charges from Independent Providers,259.70,CAREWATCH (SOUTHAMPTON NEW FOREST & IOW)
Revenue,Head of ASC & Community Wellbeing,5105699248,12.11.2014,Elderly Frail Homecare,Charges from Independent Providers,389.55,CAREWATCH (SOUTHAMPTON NEW FOREST & IOW)
Revenue,Head of ASC & Community Wellbeing,5105699249,12.11.2014,Elderly Frail Homecare,Charges from Independent Providers,886.69,CAREWATCH (SOUTHAMPTON NEW FOREST & IOW)
Revenue,Head of ASC & Community Wellbeing,5105699250,12.11.2014,Elderly Frail Homecare,Charges from Independent Providers,0.00,CAREWATCH (SOUTHAMPTON NEW FOREST & IOW)
Revenue,Head of ASC & Community Wellbeing,5105699252,12.11.2014,Elderly Frail Homecare,Charges from Independent Providers,742.00,CAREWATCH (SOUTHAMPTON NEW FOREST & IOW)
Revenue,Head of ASC & Community Wellbeing,5105699253,12.11.2014,Elderly Frail Homecare,Charges from Independent Providers,170.66,CAREWATCH (SOUTHAMPTON NEW FOREST & IOW)
Revenue,Head of ASC & Community Wellbeing,5105699254,12.11.2014,Elderly Frail Homecare,Charges from Independent Providers,908.95,CAREWATCH (SOUTHAMPTON NEW FOREST & IOW)
Revenue,Head of ASC & Community Wellbeing,5105699255,12.11.2014,Elderly Frail Homecare,Charges from Independent Providers,241.15,CAREWATCH (SOUTHAMPTON NEW FOREST & IOW)
Revenue,Head of ASC & Community Wellbeing,5105699235,12.11.2014,Elderly Frail Homecare,Charges from Independent Providers,259.70,CAREWATCH (SOUTHAMPTON NEW FOREST & IOW)
Revenue,Head of ASC & Community Wellbeing,5105699236,12.11.2014,Elderly Frail Homecare,Charges from Independent Providers,445.20,CAREWATCH (SOUTHAMPTON NEW FOREST & IOW)
Revenue,Head of ASC & Community Wellbeing,5105699234,12.11.2014,Elderly Frail Homecare,Charges from Independent Providers,667.80,CAREWATCH (SOUTHAMPTON NEW FOREST & IOW)
Revenue,Head of ASC & Community Wellbeing,5105699242,12.11.2014,Elderly Frail Homecare,Charges from Independent Providers,185.50,CAREWATCH (SOUTHAMPTON NEW FOREST & IOW)
Revenue,Head of ASC & Community Wellbeing,5105600158,27.11.2014,Elderly Frail Homecare,Regular Respite Care,0.00,CAREWATCH (SOUTHAMPTON NEW FOREST & IOW)
Revenue,Head of ASC & Community Wellbeing,5105600158,27.11.2014,Elderly Frail Homecare,Regular Respite Care,0.00,CAREWATCH (SOUTHAMPTON NEW FOREST & IOW)
Revenue,Head of ASC & Community Wellbeing,5105600158,27.11.2014,Elderly Frail Homecare,Regular Respite Care,0.00,CAREWATCH (SOUTHAMPTON NEW FOREST & IOW)
Revenue,Head of ASC & Community Wellbeing,5105699267,12.11.2014,Elderly Frail Homecare,Regular Respite Care,445.20,CAREWATCH (SOUTHAMPTON NEW FOREST & IOW)
Revenue,Head of ASC & Community Wellbeing,5105699268,12.11.2014,Elderly Frail Homecare,Regular Respite Care,59.36,CAREWATCH (SOUTHAMPTON NEW FOREST & IOW)
Revenue,Head of ASC & Community Wellbeing,5105699273,12.11.2014,Elderly Frail Homecare,Regular Respite Care,89.04,CAREWATCH (SOUTHAMPTON NEW FOREST & IOW)
Revenue,Head of ASC & Community Wellbeing,5105699256,12.11.2014,Elderly Frail Homecare,Regular Respite Care,148.40,CAREWATCH (SOUTHAMPTON NEW FOREST & IOW)
Revenue,Head of ASC & Community Wellbeing,5105699298,12.11.2014,Elderly Frail Homecare,Regular Respite Care,118.72,CAREWATCH (SOUTHAMPTON NEW FOREST & IOW)
Revenue,Head of ASC & Community Wellbeing,5105699284,12.11.2014,Elderly Frail Homecare,Regular Respite Care,118.72,CAREWATCH (SOUTHAMPTON NEW FOREST & IOW)
Revenue,Head of ASC & Community Wellbeing,5105699278,12.11.2014,Elderly Frail Homecare,Regular Respite Care,385.84,CAREWATCH (SOUTHAMPTON NEW FOREST & IOW)
Revenue,Head of ASC & Community Wellbeing,5105699277,12.11.2014,Elderly Frail Homecare,Regular Respite Care,118.72,CAREWATCH (SOUTHAMPTON NEW FOREST & IOW)
Revenue,Head of ASC & Community Wellbeing,5105699281,12.11.2014,Elderly Frail Homecare,Regular Respite Care,148.40,CAREWATCH (SOUTHAMPTON NEW FOREST & IOW)
Revenue,Head of ASC & Community Wellbeing,5105699272,12.11.2014,Elderly Frail Homecare,Regular Respite Care,89.04,CAREWATCH (SOUTHAMPTON NEW FOREST & IOW)
Revenue,Head of ASC & Community Wellbeing,5105699274,12.11.2014,Elderly Frail Homecare,Regular Respite Care,148.40,CAREWATCH (SOUTHAMPTON NEW FOREST & IOW)
Revenue,Head of ASC & Community Wellbeing,5105699303,12.11.2014,Elderly Frail Homecare,Regular Respite Care,148.40,CAREWATCH (SOUTHAMPTON NEW FOREST & IOW)
Revenue,Head of ASC & Community Wellbeing,5105699346,12.11.2014,Elderly Frail Homecare,Regular Respite Care,118.72,CAREWATCH (SOUTHAMPTON NEW FOREST & IOW)
Revenue,Head of ASC & Community Wellbeing,5105699347,12.11.2014,Elderly Frail Homecare,Regular Respite Care,59.36,CAREWATCH (SOUTHAMPTON NEW FOREST & IOW)
Revenue,Head of ASC & Community Wellbeing,5105699349,12.11.2014,Elderly Frail Homecare,Regular Respite Care,103.88,CAREWATCH (SOUTHAMPTON NEW FOREST & IOW)
Revenue,Head of ASC & Community Wellbeing,5105699338,12.11.2014,Elderly Frail Homecare,Regular Respite Care,0.00,CAREWATCH (SOUTHAMPTON NEW FOREST & IOW)
Revenue,Head of ASC & Community Wellbeing,5105699310,12.11.2014,Elderly Frail Homecare,Regular Respite Care,148.40,CAREWATCH (SOUTHAMPTON NEW FOREST & IOW)
Revenue,Head of ASC & Community Wellbeing,5105699322,12.11.2014,Elderly Frail Homecare,Regular Respite Care,192.92,CAREWATCH (SOUTHAMPTON NEW FOREST & IOW)
Revenue,Head of ASC & Community Wellbeing,5105699320,12.11.2014,Elderly Frail Homecare,Regular Respite Care,215.18,CAREWATCH (SOUTHAMPTON NEW FOREST & IOW)
Revenue,Head of ASC & Community Wellbeing,5105699854,27.11.2014,Elderly Frail Homecare,Charges from Independent Providers,311.64,CAREWATCH (SOUTHAMPTON NEW FOREST & IOW)
Revenue,Head of ASC & Community Wellbeing,5105699855,27.11.2014,Elderly Frail Homecare,Charges from Independent Providers,81.62,CAREWATCH (SOUTHAMPTON NEW FOREST & IOW)
Revenue,Head of ASC & Community Wellbeing,5105699361,12.11.2014,Elderly Frail Homecare,Charges from Independent Providers,200.34,CAREWATCH (SOUTHAMPTON NEW FOREST & IOW)
Revenue,Head of ASC & Community Wellbeing,5105699866,27.11.2014,Elderly Frail Homecare,Charges from Independent Providers,170.66,CAREWATCH (SOUTHAMPTON NEW FOREST & IOW)
Revenue,Head of ASC & Community Wellbeing,5105699864,27.11.2014,Elderly Frail Homecare,Charges from Independent Providers,382.13,CAREWATCH (SOUTHAMPTON NEW FOREST & IOW)
Revenue,Head of ASC & Community Wellbeing,5105699260,12.11.2014,Elderly Frail Homecare,Charges from Independent Providers,59.36,CAREWATCH (SOUTHAMPTON NEW FOREST & IOW)
Revenue,Head of ASC & Community Wellbeing,5105699258,12.11.2014,Elderly Frail Homecare,Charges from Independent Providers,389.55,CAREWATCH (SOUTHAMPTON NEW FOREST & IOW)
Revenue,Head of ASC & Community Wellbeing,5105699263,12.11.2014,Elderly Frail Homecare,Charges from Independent Providers,"1,038.80",CAREWATCH (SOUTHAMPTON NEW FOREST & IOW)
Revenue,Head of ASC & Community Wellbeing,5105699863,27.11.2014,Elderly Frail Homecare,Charges from Independent Providers,7.42,CAREWATCH (SOUTHAMPTON NEW FOREST & IOW)
Revenue,Head of ASC & Community Wellbeing,5105699858,27.11.2014,Elderly Frail Homecare,Regular Respite Care,452.62,CAREWATCH (SOUTHAMPTON NEW FOREST & IOW)
Revenue,Head of ASC & Community Wellbeing,5105699862,27.11.2014,Elderly Frail Homecare,Regular Respite Care,89.04,CAREWATCH (SOUTHAMPTON NEW FOREST & IOW)
Revenue,Head of ASC & Community Wellbeing,5105699309,12.11.2014,Elderly Mentally Ill Homecare,Charges from Independent Providers,148.40,CAREWATCH (SOUTHAMPTON NEW FOREST & IOW)
Revenue,Head of ASC & Community Wellbeing,5105699311,12.11.2014,Elderly Mentally Ill Homecare,Charges from Independent Providers,779.10,CAREWATCH (SOUTHAMPTON NEW FOREST & IOW)
Revenue,Head of ASC & Community Wellbeing,5105699293,12.11.2014,Elderly Mentally Ill Homecare,Charges from Independent Providers,"1,002.60",CAREWATCH (SOUTHAMPTON NEW FOREST & IOW)
Revenue,Head of ASC & Community Wellbeing,5105699294,12.11.2014,Elderly Mentally Ill Homecare,Charges from Independent Providers,779.10,CAREWATCH (SOUTHAMPTON NEW FOREST & IOW)
Revenue,Head of ASC & Community Wellbeing,5105699340,12.11.2014,Elderly Mentally Ill Homecare,Charges from Independent Providers,0.00,CAREWATCH (SOUTHAMPTON NEW FOREST & IOW)
Revenue,Head of ASC & Community Wellbeing,5105699280,12.11.2014,Elderly Mentally Ill Homecare,Charges from Independent Providers,"1,038.80",CAREWATCH (SOUTHAMPTON NEW FOREST & IOW)
Revenue,Head of ASC & Community Wellbeing,5105699264,12.11.2014,Elderly Mentally Ill Homecare,Charges from Independent Providers,801.36,CAREWATCH (SOUTHAMPTON NEW FOREST & IOW)
Revenue,Head of ASC & Community Wellbeing,5105699262,12.11.2014,Elderly Mentally Ill Homecare,Charges from Independent Providers,623.28,CAREWATCH (SOUTHAMPTON NEW FOREST & IOW)
Revenue,Head of ASC & Community Wellbeing,5105699292,12.11.2014,Elderly Mentally Ill Homecare,Regular Respite Care,118.72,CAREWATCH (SOUTHAMPTON NEW FOREST & IOW)
Revenue,Head of ASC & Community Wellbeing,5105699856,27.11.2014,Elderly Mentally Ill Homecare,Charges from Independent Providers,33.39,CAREWATCH (SOUTHAMPTON NEW FOREST & IOW)
Revenue,Head of ASC & Community Wellbeing,5105699353,12.11.2014,Elderly Mentally Ill Homecare,Regular Respite Care,59.36,CAREWATCH (SOUTHAMPTON NEW FOREST & IOW)
Revenue,Head of ASC & Community Wellbeing,5105600159,27.11.2014,Mental Health Homecare,Charges from Independent Providers,81.62,CAREWATCH (SOUTHAMPTON NEW FOREST & IOW)
Revenue,Head of ASC & Community Wellbeing,5105600354,27.11.2014,Mental Health Homecare,Charges from Independent Providers,74.20,CAREWATCH (SOUTHAMPTON NEW FOREST & IOW)
Revenue,Head of ASC & Community Wellbeing,5105600354,27.11.2014,Mental Health Homecare,Charges from Independent Providers,59.36,CAREWATCH (SOUTHAMPTON NEW FOREST & IOW)
Revenue,Head of ASC & Community Wellbeing,5105600354,27.11.2014,Mental Health Homecare,Charges from Independent Providers,111.30,CAREWATCH (SOUTHAMPTON NEW FOREST & IOW)
Revenue,Head of ASC & Community Wellbeing,5105699282,12.11.2014,Mental Health Homecare,Charges from Independent Providers,259.70,CAREWATCH (SOUTHAMPTON NEW FOREST & IOW)
Revenue,Head of ASC & Community Wellbeing,5105699237,12.11.2014,Mental Health Homecare,Charges from Independent Providers,133.56,CAREWATCH (SOUTHAMPTON NEW FOREST & IOW)
Revenue,Head of ASC & Community Wellbeing,5105699257,12.11.2014,Mental Health Homecare,Charges from Independent Providers,89.04,CAREWATCH (SOUTHAMPTON NEW FOREST & IOW)
Revenue,Head of ASC & Community Wellbeing,5105699261,12.11.2014,Mental Health Homecare,Charges from Independent Providers,148.40,CAREWATCH (SOUTHAMPTON NEW FOREST & IOW)
Revenue,Head of ASC & Community Wellbeing,5105699859,27.11.2014,Mental Health Homecare,Charges from Independent Providers,"2,344.72",CAREWATCH (SOUTHAMPTON NEW FOREST & IOW)
Revenue,Head of ASC & Community Wellbeing,5105699243,12.11.2014,Physical Disability Homecare,Charges from Independent Providers,148.40,CAREWATCH (SOUTHAMPTON NEW FOREST & IOW)
Revenue,Head of ASC & Community Wellbeing,5105699244,12.11.2014,Physical Disability Homecare,Charges from Independent Providers,"1,606.43",CAREWATCH (SOUTHAMPTON NEW FOREST & IOW)
Revenue,Head of ASC & Community Wellbeing,5105699239,12.11.2014,Physical Disability Homecare,Charges from Independent Providers,927.50,CAREWATCH (SOUTHAMPTON NEW FOREST & IOW)
Revenue,Head of ASC & Community Wellbeing,5105699265,12.11.2014,Physical Disability Homecare,Charges from Independent Providers,"1,317.05",CAREWATCH (SOUTHAMPTON NEW FOREST & IOW)
Revenue,Head of ASC & Community Wellbeing,5105699266,12.11.2014,Physical Disability Homecare,Charges from Independent Providers,489.72,CAREWATCH (SOUTHAMPTON NEW FOREST & IOW)
Revenue,Head of ASC & Community Wellbeing,5105699312,12.11.2014,Physical Disability Homecare,Charges from Independent Providers,"1,261.40",CAREWATCH (SOUTHAMPTON NEW FOREST & IOW)
Revenue,Head of ASC & Community Wellbeing,5105699319,12.11.2014,Physical Disability Homecare,Charges from Independent Providers,"2,077.60",CAREWATCH (SOUTHAMPTON NEW FOREST & IOW)
Revenue,Head of ASC & Community Wellbeing,5105699304,12.11.2014,Physical Disability Homecare,Charges from Independent Providers,949.76,CAREWATCH (SOUTHAMPTON NEW FOREST & IOW)
Revenue,Head of ASC & Community Wellbeing,5105699288,12.11.2014,Physical Disability Homecare,Charges from Independent Providers,460.04,CAREWATCH (SOUTHAMPTON NEW FOREST & IOW)
Revenue,Head of ASC & Community Wellbeing,5105699279,12.11.2014,Physical Disability Homecare,Charges from Independent Providers,"2,582.16",CAREWATCH (SOUTHAMPTON NEW FOREST & IOW)
Revenue,Head of ASC & Community Wellbeing,5105699332,12.11.2014,Physical Disability Homecare,Charges from Independent Providers,"1,038.80",CAREWATCH (SOUTHAMPTON NEW FOREST & IOW)
Revenue,Head of ASC & Community Wellbeing,5105699297,12.11.2014,Physical Disability Homecare,Charges from Independent Providers,74.20,CAREWATCH (SOUTHAMPTON NEW FOREST & IOW)
Revenue,Head of ASC & Community Wellbeing,5105699302,12.11.2014,Physical Disability Homecare,Charges from Independent Providers,"1,906.94",CAREWATCH (SOUTHAMPTON NEW FOREST & IOW)
Revenue,Head of ASC & Community Wellbeing,5105699300,12.11.2014,Physical Disability Homecare,Charges from Independent Providers,779.10,CAREWATCH (SOUTHAMPTON NEW FOREST & IOW)
Revenue,Head of ASC & Community Wellbeing,5105699314,12.11.2014,Physical Disability Homecare,Charges from Independent Providers,"1,409.80",CAREWATCH (SOUTHAMPTON NEW FOREST & IOW)
Revenue,Head of ASC & Community Wellbeing,5105699860,27.11.2014,Physical Disability Homecare,Charges from Independent Providers,22.26,CAREWATCH (SOUTHAMPTON NEW FOREST & IOW)
Revenue,Head of ASC & Community Wellbeing,5105699860,27.11.2014,Physical Disability Homecare,Charges from Independent Providers,508.27,CAREWATCH (SOUTHAMPTON NEW FOREST & IOW)
Revenue,Head of ASC & Community Wellbeing,5105699865,27.11.2014,Physical Disability Homecare,Charges from Independent Providers,267.12,CAREWATCH (SOUTHAMPTON NEW FOREST & IOW)
Revenue,Head of ASC & Community Wellbeing,5105699352,12.11.2014,Physical Disability Homecare,Charges from Independent Providers,534.24,CAREWATCH (SOUTHAMPTON NEW FOREST & IOW)
Revenue,Head of ASC & Community Wellbeing,5105699354,12.11.2014,Physical Disability Homecare,Charges from Independent Providers,793.94,CAREWATCH (SOUTHAMPTON NEW FOREST & IOW)
Revenue,Head of ASC & Community Wellbeing,5105699306,12.11.2014,Physical Disability Homecare,Regular Respite Care,474.88,CAREWATCH (SOUTHAMPTON NEW FOREST & IOW)
Revenue,Head of ASC & Community Wellbeing,5105699358,12.11.2014,Physical Disability Homecare,Regular Respite Care,29.68,CAREWATCH (SOUTHAMPTON NEW FOREST & IOW)
Revenue,Head of ASC & Community Wellbeing,5105699861,27.11.2014,Physical Disability Homecare,Regular Respite Care,118.72,CAREWATCH (SOUTHAMPTON NEW FOREST & IOW)
Revenue,Head of ASC & Community Wellbeing,5105699861,27.11.2014,Physical Disability Homecare,Regular Respite Care,59.36,CAREWATCH (SOUTHAMPTON NEW FOREST & IOW)
Revenue,Director of Childrens Services,5105600928,27.11.2014,Disabled Childrens Team,Charges from Independent Providers,59.36,CAREWATCH (SOUTHAMPTON NEW FOREST & IOW)
Revenue,Director of Childrens Services,5105600922,27.11.2014,S17 Disabled Children,Charges from Independent Providers,353.74,CAREWATCH (SOUTHAMPTON NEW FOREST & IOW)
Revenue,Director of Childrens Services,5105600918,27.11.2014,S17 Disabled Children,Charges from Independent Providers,793.52,CAREWATCH (SOUTHAMPTON NEW FOREST & IOW)
Revenue,Director of Childrens Services,5105697791,05.11.2014,S17 Disabled Children,Charges from Independent Providers,29.68,CAREWATCH (SOUTHAMPTON NEW FOREST & IOW)
Revenue,Director of Childrens Services,5105699857,27.11.2014,S17 Disabled Children,Charges from Independent Providers,383.88,CAREWATCH (SOUTHAMPTON NEW FOREST & IOW)
Revenue,Director of Childrens Services,5105600923,27.11.2014,Agency Domiciliary Care,Charges from Independent Providers,475.77,CAREWATCH (SOUTHAMPTON NEW FOREST & IOW)
Revenue,Director of Childrens Services,5105600919,27.11.2014,Agency Domiciliary Care,Charges from Independent Providers,415.52,CAREWATCH (SOUTHAMPTON NEW FOREST & IOW)
Revenue,Director of Childrens Services,5105600920,27.11.2014,Agency Domiciliary Care,Charges from Independent Providers,207.76,CAREWATCH (SOUTHAMPTON NEW FOREST & IOW)
Revenue,Director of Childrens Services,5105600921,27.11.2014,Agency Domiciliary Care,Charges from Independent Providers,247.59,CAREWATCH (SOUTHAMPTON NEW FOREST & IOW)
Revenue,Director of Childrens Services,5105600916,27.11.2014,Agency Domiciliary Care,Charges from Independent Providers,237.44,CAREWATCH (SOUTHAMPTON NEW FOREST & IOW)
Revenue,Director of Childrens Services,5105600917,27.11.2014,Agency Domiciliary Care,Charges from Independent Providers,492.64,CAREWATCH (SOUTHAMPTON NEW FOREST & IOW)
Revenue,Director of Childrens Services,5105601114,27.11.2014,Agency Domiciliary Care,Charges from Independent Providers,44.52,CAREWATCH (SOUTHAMPTON NEW FOREST & IOW)
Revenue,Director of Childrens Services,5105601115,27.11.2014,Agency Domiciliary Care,Charges from Independent Providers,215.52,CAREWATCH (SOUTHAMPTON NEW FOREST & IOW)
Revenue,Director of Childrens Services,5105601627,27.11.2014,Agency Domiciliary Care,Charges from Independent Providers,319.44,CAREWATCH (SOUTHAMPTON NEW FOREST & IOW)
Revenue,Director of Childrens Services,5105697790,05.11.2014,Agency Domiciliary Care,Charges from Independent Providers,0.05,CAREWATCH (SOUTHAMPTON NEW FOREST & IOW)
Revenue,Director of Childrens Services,5105600927,27.11.2014,Agency Domiciliary Care,Support Children,"1,172.36",CAREWATCH (SOUTHAMPTON NEW FOREST & IOW)
Revenue,Director of Childrens Services,5105600926,27.11.2014,Agency Domiciliary Care,Support Children,372.86,CAREWATCH (SOUTHAMPTON NEW FOREST & IOW)
Revenue,Director of Childrens Services,5105697794,05.11.2014,Agency Domiciliary Care,Support Children,0.10,CAREWATCH (SOUTHAMPTON NEW FOREST & IOW)
Revenue,Director of Childrens Services,5105697792,05.11.2014,Support for Looked After Children - Disabled Childrens Team,Transport of Clients,267.12,CAREWATCH (SOUTHAMPTON NEW FOREST & IOW)
Revenue,Director of Childrens Services,5105600925,27.11.2014,Support for Looked After Children - Disabled Childrens Team,Transport of Clients,593.60,CAREWATCH (SOUTHAMPTON NEW FOREST & IOW)
Revenue,Director of Childrens Services,5105600924,27.11.2014,Support for Looked After Children - Disabled Childrens Team,Charges from Independent Providers,211.47,CAREWATCH (SOUTHAMPTON NEW FOREST & IOW)
Revenue,Director of Childrens Services,5105697030,05.11.2014,Support for Looked After Children - Disabled Childrens Team,Charges from Independent Providers,240.57,CAREWATCH (SOUTHAMPTON NEW FOREST & IOW)
Revenue,Director of Childrens Services,5105697789,05.11.2014,Support for Looked After Children - Disabled Childrens Team,Support Children,522.72,CAREWATCH (SOUTHAMPTON NEW FOREST & IOW)
Revenue,Director of Childrens Services,5105601266,27.11.2014,Beaulieu House,Agency staff,"1,334.24",CAREWATCH (SOUTHAMPTON NEW FOREST & IOW)
Revenue,Director of Childrens Services,5105697793,05.11.2014,Independ. & Non-Maint. Special Schls & Independ. Specialist Provision,Transport of Clients,267.12,CAREWATCH (SOUTHAMPTON NEW FOREST & IOW)
Revenue,Head of ASC & Community Wellbeing,5105601678,27.11.2014,Elderly Frail Homecare,Charges from Independent Providers,143.30,CARING FOR YOU LTD
Revenue,Head of Exchequer Services,5105601033,27.11.2014,Staff Benefits,Payment to Private Contractors,120.00,CARISBROOKE CLEVER CLOGGS DAY CARE
Revenue,Head of ASC & Community Wellbeing,5105601734,27.11.2014,Elderly Frail Residential Care,Charges from Independent Providers,713.16,REDACTED PERSONAL DATA
Revenue,Head of ASC & Community Wellbeing,5105601734,27.11.2014,Elderly Frail Residential Care,Charges from Independent Providers,"2,852.64",REDACTED PERSONAL DATA
Revenue,Head of ASC & Community Wellbeing,5105601194,27.11.2014,Adelaide Resource Centre,Catering Equipment,950.00,CATER WIGHT
Capital,Director of Childrens Services,5105600533,27.11.2014,Children Services Early Years,Catering Equipment,"1,195.00",CATER WIGHT
Capital,Director of Childrens Services,5105698679,12.11.2014,Children Services Early Years,Payment to Contractors - Capital,475.00,CATER WIGHT
Capital,Director of Childrens Services,5105698679,12.11.2014,Children Services Early Years,Payment to Contractors - Capital,575.00,CATER WIGHT
Capital,Director of Childrens Services,5105698679,12.11.2014,Children Services Early Years,Payment to Contractors - Capital,795.00,CATER WIGHT
Capital,Director of Childrens Services,5105699079,12.11.2014,Children Services Early Years,Payment to Contractors - Capital,150.00,CATER WIGHT
Revenue,Director of Childrens Services,5105600132,27.11.2014,Thompson House Tuition Centre (PRU),Teaching Materials,22.50,CO-ORDINATION GROUP PUBLICATIONS
Revenue,Director of Childrens Services,5105600132,27.11.2014,Thompson House Tuition Centre (PRU),Teaching Materials,22.50,CO-ORDINATION GROUP PUBLICATIONS
Revenue,Director of Childrens Services,5105600132,27.11.2014,Thompson House Tuition Centre (PRU),Teaching Materials,10.00,CO-ORDINATION GROUP PUBLICATIONS
Revenue,Director of Childrens Services,5105600132,27.11.2014,Thompson House Tuition Centre (PRU),Teaching Materials,1.00,CO-ORDINATION GROUP PUBLICATIONS
Revenue,Director of Childrens Services,5105600132,27.11.2014,Thompson House Tuition Centre (PRU),Teaching Materials,20.00,CO-ORDINATION GROUP PUBLICATIONS
Revenue,Director of Childrens Services,5105600132,27.11.2014,Thompson House Tuition Centre (PRU),Teaching Materials,1.00,CO-ORDINATION GROUP PUBLICATIONS
Revenue,Director of Childrens Services,5105600132,27.11.2014,Thompson House Tuition Centre (PRU),Teaching Materials,5.50,CO-ORDINATION GROUP PUBLICATIONS
Revenue,Director of Childrens Services,5105600132,27.11.2014,Thompson House Tuition Centre (PRU),Teaching Materials,25.00,CO-ORDINATION GROUP PUBLICATIONS
Revenue,Director of Childrens Services,5105600938,27.11.2014,Clatterford Pupil Referral Unit (PRU),Teaching Materials,25.00,CO-ORDINATION GROUP PUBLICATIONS
Revenue,Head of Economy & Tourism,5105699966,27.11.2014,Play Development,Vehicle Maintenance Costs,66.00,CHAMELEON CODEWING LTD
Revenue,Head of Economy & Tourism,5105699980,27.11.2014,Play Development,Vehicle Maintenance Costs,66.00,CHAMELEON CODEWING LTD
Revenue,Head of Economy & Tourism,5105699981,27.11.2014,Play Development,Vehicle Maintenance Costs,66.00,CHAMELEON CODEWING LTD
Revenue,Head of Economy & Tourism,5105699981,27.11.2014,Play Development,Vehicle Maintenance Costs,45.54,CHAMELEON CODEWING LTD
Revenue,Head of Economy & Tourism,5105699980,27.11.2014,Play Development,Vehicle Maintenance Costs,45.54,CHAMELEON CODEWING LTD
Revenue,Head of Economy & Tourism,5105699966,27.11.2014,Play Development,Vehicle Maintenance Costs,45.54,CHAMELEON CODEWING LTD
Revenue,Head of Economy & Tourism,5105699982,27.11.2014,Rights of Way Operations,Vehicle Maintenance Costs,50.00,CHAMELEON CODEWING LTD
Revenue,Head of Economy & Tourism,5105699966,27.11.2014,Environment officers,Vehicle Maintenance Costs,46.92,CHAMELEON CODEWING LTD
Revenue,Head of Economy & Tourism,5105699980,27.11.2014,Environment officers,Vehicle Maintenance Costs,46.92,CHAMELEON CODEWING LTD
Revenue,Head of Economy & Tourism,5105699981,27.11.2014,Environment officers,Vehicle Maintenance Costs,46.92,CHAMELEON CODEWING LTD
Revenue,Head of Economy & Tourism,5105699981,27.11.2014,Environment officers,Vehicle Maintenance Costs,68.00,CHAMELEON CODEWING LTD
Revenue,Head of Economy & Tourism,5105699980,27.11.2014,Environment officers,Vehicle Maintenance Costs,68.00,CHAMELEON CODEWING LTD
Revenue,Head of Economy & Tourism,5105699966,27.11.2014,Environment officers,Vehicle Maintenance Costs,68.00,CHAMELEON CODEWING LTD
Revenue,Head of Economy & Tourism,5105699980,27.11.2014,Cemeteries Administration,Vehicle Maintenance Costs,45.54,CHAMELEON CODEWING LTD
Revenue,Head of Economy & Tourism,5105699966,27.11.2014,Cemeteries Administration,Vehicle Maintenance Costs,45.54,CHAMELEON CODEWING LTD
Revenue,Head of Economy & Tourism,5105699966,27.11.2014,Cemeteries Administration,Vehicle Maintenance Costs,66.00,CHAMELEON CODEWING LTD
Revenue,Head of Economy & Tourism,5105699980,27.11.2014,Cemeteries Administration,Vehicle Maintenance Costs,66.00,CHAMELEON CODEWING LTD
Revenue,Head of Economy & Tourism,5105699981,27.11.2014,Cemeteries Administration,Vehicle Maintenance Costs,66.00,CHAMELEON CODEWING LTD
Revenue,Head of Economy & Tourism,5105699981,27.11.2014,Cemeteries Administration,Vehicle Maintenance Costs,45.54,CHAMELEON CODEWING LTD
Revenue,Head of ASC & Community Wellbeing,5105601637,27.11.2014,Mental Health Day Services,Prop Svs only - Day to day mtce,56.00,CHANT LOCK & SECURITY SERVICE
Revenue,Director of Childrens Services,5105600287,27.11.2014,Youth- Newport,Prop Svs only - Day to day mtce,459.54,CHANT LOCK & SECURITY SERVICE
Revenue,Director of Childrens Services,5105600293,27.11.2014,Mobile Youth Provision,Security of Buildings,49.00,CHANT LOCK & SECURITY SERVICE
Revenue,Director of Childrens Services,5105600282,27.11.2014,Gatten & Lake Primary School Disposal,Security of Buildings,7.00,CHANT LOCK & SECURITY SERVICE
Revenue,Director of Childrens Services,5105698662,12.11.2014,Sandham Middle School Disposal,Security of Buildings,83.26,CHANT LOCK & SECURITY SERVICE
Revenue,Head of Finance & S151 Officer,5105698669,12.11.2014,Public Conveniences - General,Property Services - Planned Maintenance,344.27,CHANT LOCK & SECURITY SERVICE
Revenue,Head of Finance & S151 Officer,5105600285,27.11.2014,Public Conveniences - General,Prop Svs only - Day to day mtce,143.56,CHANT LOCK & SECURITY SERVICE
Revenue,Head of Economy & Tourism,5105600289,27.11.2014,Other Grounds Maintenance,Payment to Private Contractors,724.75,CHANT LOCK & SECURITY SERVICE
Revenue,Head of Economy & Tourism,5105600312,27.11.2014,Parks and Gardens Misc Equip & Works,Operational Equipment,"1,185.75",CHANT LOCK & SECURITY SERVICE
Revenue,Head of Economy & Tourism,5105600289,27.11.2014,Open space lettings,Payment to Private Contractors,907.58,CHANT LOCK & SECURITY SERVICE
Revenue,Head of Economy & Tourism,5105600283,27.11.2014,Ryde Depot,Payment to Private Contractors,32.00,CHANT LOCK & SECURITY SERVICE
Revenue,Head of Economy & Tourism,5105698665,12.11.2014,Beach Safety & Inspection / Beach Awards,Operational Equipment,105.94,CHANT LOCK & SECURITY SERVICE
Revenue,Chief Fire Officer,5105698667,12.11.2014,Deputy Chief Fire Office,Operational Equipment,8.50,CHANT LOCK & SECURITY SERVICE
Revenue,Chief Fire Officer,5105698667,12.11.2014,Deputy Chief Fire Office,Operational Equipment,17.00,CHANT LOCK & SECURITY SERVICE
Revenue,Head of ASC & Community Wellbeing,5105698504,07.11.2014,Plean Dene,Catering Purchases,49.10,CHAPEL NURSERIES
Revenue,Head of ASC & Community Wellbeing,5105698509,07.11.2014,Plean Dene,Catering Purchases,48.90,CHAPEL NURSERIES
Revenue,Head of ASC & Community Wellbeing,5105698507,07.11.2014,Plean Dene,Catering Purchases,38.00,CHAPEL NURSERIES
Revenue,Head of ASC & Community Wellbeing,5105600553,27.11.2014,Plean Dene,Catering Purchases,38.40,CHAPEL NURSERIES
Revenue,Head of ASC & Community Wellbeing,5105600555,27.11.2014,Plean Dene,Catering Purchases,46.30,CHAPEL NURSERIES
Revenue,Head of ASC & Community Wellbeing,5105601195,27.11.2014,Plean Dene,Catering Purchases,32.30,CHAPEL NURSERIES
Revenue,Head of ASC & Community Wellbeing,5105600558,27.11.2014,Saxonbury,Catering Purchases,40.60,CHAPEL NURSERIES
Revenue,Head of ASC & Community Wellbeing,5105600498,27.11.2014,Saxonbury,Catering Purchases,33.70,CHAPEL NURSERIES
Revenue,Head of Exchequer Services,5105601072,27.11.2014,Staff Benefits,Payment to Private Contractors,243.00,CHARLOTTE AND EMMA'S CHILDMINDING SERVICE
Revenue,Director of Childrens Services,5105601364,27.11.2014,Clatterford Pupil Referral Unit (PRU),Schools Catering Contract,323.90,CHARTWELLS
Revenue,Director of Childrens Services,5105601364,27.11.2014,Clatterford Pupil Referral Unit (PRU),Schools Catering Contract,2.36,CHARTWELLS
Revenue,Head of Exchequer Services,5105601050,27.11.2014,Staff Benefits,Payment to Private Contractors,185.50,CHATTERBOX NURSERY LTD
Revenue,Head of Exchequer Services,5105601050,27.11.2014,Staff Benefits,Payment to Private Contractors,75.80,CHATTERBOX NURSERY LTD
Revenue,Head of Exchequer Services,5105601050,27.11.2014,Staff Benefits,Payment to Private Contractors,200.00,CHATTERBOX NURSERY LTD
Revenue,Head of Exchequer Services,5105601050,27.11.2014,Staff Benefits,Payment to Private Contractors,116.67,CHATTERBOX NURSERY LTD
Revenue,Head of Exchequer Services,5105601050,27.11.2014,Staff Benefits,Payment to Private Contractors,243.00,CHATTERBOX NURSERY LTD
Revenue,Head of Exchequer Services,5105601050,27.11.2014,Staff Benefits,Payment to Private Contractors,236.00,CHATTERBOX NURSERY LTD
Revenue,Head of Exchequer Services,5105601050,27.11.2014,Staff Benefits,Payment to Private Contractors,187.00,CHATTERBOX NURSERY LTD
Revenue,Head of Exchequer Services,5105601050,27.11.2014,Staff Benefits,Payment to Private Contractors,187.00,CHATTERBOX NURSERY LTD
Revenue,Head of Exchequer Services,5105601050,27.11.2014,Staff Benefits,Payment to Private Contractors,125.00,CHATTERBOX NURSERY LTD
Revenue,Head of Exchequer Services,5105601061,27.11.2014,Staff Benefits,Payment to Private Contractors,200.00,CHEEKY CHIMPS CHILDCARE
Revenue,Head of Exchequer Services,5105601061,27.11.2014,Staff Benefits,Payment to Private Contractors,200.00,CHEEKY CHIMPS CHILDCARE
Revenue,Head of Exchequer Services,5105601061,27.11.2014,Staff Benefits,Payment to Private Contractors,160.00,CHEEKY CHIMPS CHILDCARE
Revenue,Head of Exchequer Services,5105601061,27.11.2014,Staff Benefits,Payment to Private Contractors,83.92,CHEEKY CHIMPS CHILDCARE
Revenue,Head of Economy & Tourism,5105601196,27.11.2014,Ventnor Haven - General,Payment to Private Contractors,"6,048.33",CHEETAH MARINE LLP
Revenue,Head of Economy & Tourism,5105600950,27.11.2014,Ventnor Haven - General,Payment to Private Contractors,"6,048.33",CHEETAH MARINE LLP
Revenue,Head of Economy & Tourism,5105601672,27.11.2014,Ventnor Haven - General,Payment to Private Contractors,"6,048.33",CHEETAH MARINE LLP
Revenue,Head of Economy & Tourism,5105601673,27.11.2014,Ventnor Haven - General,Payment to Private Contractors,"6,048.33",CHEETAH MARINE LLP
Revenue,Head of ASC & Community Wellbeing,5105698834,12.11.2014,Elderly Frail Daycare,Charges from Independent Providers,50.80,CHERRY TREES I.W. LTD
Revenue,Head of ASC & Community Wellbeing,5105600143,27.11.2014,Elderly Frail Residential Care,Charges from Independent Providers,"1,700.44",CHERRY TREES I.W. LTD
Revenue,Head of ASC & Community Wellbeing,5105697049,05.11.2014,Elderly Frail Residential Care,Charges from Independent Providers,"2,093.84",CHERRY TREES I.W. LTD
Revenue,Head of ASC & Community Wellbeing,5105697049,05.11.2014,Elderly Frail Residential Care,Charges from Independent Providers,"1,700.44",CHERRY TREES I.W. LTD
Revenue,Head of ASC & Community Wellbeing,5105697049,05.11.2014,Elderly Frail Residential Care,Charges from Independent Providers,"1,700.44",CHERRY TREES I.W. LTD
Revenue,Head of ASC & Community Wellbeing,5105697049,05.11.2014,Elderly Frail Residential Care,Charges from Independent Providers,"2,093.84",CHERRY TREES I.W. LTD
Revenue,Head of ASC & Community Wellbeing,5105697049,05.11.2014,Elderly Frail Residential Care,Charges from Independent Providers,"1,700.44",CHERRY TREES I.W. LTD
Revenue,Head of ASC & Community Wellbeing,5105697049,05.11.2014,Elderly Frail Residential Care,Charges from Independent Providers,"1,700.44",CHERRY TREES I.W. LTD
Revenue,Head of ASC & Community Wellbeing,5105697049,05.11.2014,Elderly Frail Residential Care,Charges from Independent Providers,"1,700.44",CHERRY TREES I.W. LTD
Revenue,Head of ASC & Community Wellbeing,5105697049,05.11.2014,Elderly Mentally Ill Residential Care,Charges from Independent Providers,"2,093.84",CHERRY TREES I.W. LTD
Revenue,Head of ASC & Community Wellbeing,5105697049,05.11.2014,Elderly Mentally Ill Residential Care,Charges from Independent Providers,"1,781.36",CHERRY TREES I.W. LTD
Revenue,Head of ASC & Community Wellbeing,5105697049,05.11.2014,Elderly Mentally Ill Residential Care,Charges from Independent Providers,"1,700.44",CHERRY TREES I.W. LTD
Revenue,Head of ASC & Community Wellbeing,5105697049,05.11.2014,Elderly Mentally Ill Residential Care,Charges from Independent Providers,"1,781.36",CHERRY TREES I.W. LTD
Revenue,Head of ASC & Community Wellbeing,5105697049,05.11.2014,Elderly Mentally Ill Residential Care,Charges from Independent Providers,"1,781.36",CHERRY TREES I.W. LTD
Revenue,Head of Economy & Tourism,5105699012,14.11.2014,Rights of Way Operations,General Materials,398.75,WHITEFIELD WOODYARD LTD
Revenue,Head of Exchequer Services,5105601035,27.11.2014,Staff Benefits,Payment to Private Contractors,243.00,CHILLERTON & ROOKLEY CP SCHOOL
Revenue,Head of Exchequer Services,5105601035,27.11.2014,Staff Benefits,Payment to Private Contractors,237.00,CHILLERTON & ROOKLEY CP SCHOOL
Revenue,Head of Exchequer Services,5105601035,27.11.2014,Staff Benefits,Payment to Private Contractors,50.00,CHILLERTON & ROOKLEY CP SCHOOL
Revenue,Head of Exchequer Services,5105601035,27.11.2014,Staff Benefits,Payment to Private Contractors,185.00,CHILLERTON & ROOKLEY CP SCHOOL
Revenue,Director of Childrens Services,5105699663,14.11.2014,Workforce Development Schools,Training,"11,400.00",CHIMP MANAGEMENT LTD
Revenue,Head of ASC & Community Wellbeing,5105697036,05.11.2014,Mental Health Residential Care,Charges from Independent Providers,"2,898.00",CHOICE SUPPORT
Revenue,Head of ASC & Community Wellbeing,5105697036,05.11.2014,Mental Health Residential Care,Charges from Independent Providers,"2,898.00",CHOICE SUPPORT
Revenue,Director of Childrens Services,5105600691,27.11.2014,Adult Skills,General Materials,37.50,CITY AND GUILDS
Revenue,Director of Childrens Services,5105600444,27.11.2014,Adult Skills,General Materials,7.50,CITY AND GUILDS
Revenue,Director of Childrens Services,5105600445,27.11.2014,Adult Skills,General Materials,7.50,CITY AND GUILDS
Revenue,Director of Childrens Services,5105699020,12.11.2014,Accreditation Centre,Training,27.00,CITY AND GUILDS
